{"text_format":"1","workbook":"xlsx","n_sheets":35,"sheets":["表紙","目次 (3)","3-1","3-1-1","3-1-2","3-1-3","3-1-4","3-1-5","3-1-6","3-1-7","3-1-8","3-2","3-2-1","3-3","3-3-1","3-4","3-4-1","3-4-2","3-4-3","3-4-4","3-5","3-5-1","3-5-2","3-5-3","3-5-4","3-6","3-6-1","3-6-2","3-6-3","3-6-4","3-6-5","3-6-6","3-6-7","3-6-8","1-1-12"],"not_rendered":{"charts":0,"images":0,"macros":1,"external_links":8,"defined_names":697,"comments":0,"pivot_tables":0},"unopened":[],"bounds":{"document_bytes":16777216,"sheet_cells":100000,"rows_first":2000,"rows_last":500,"rows_between":2000,"halvings":0,"cell_chars":16384,"cell_head_chars":4096},"cells_cut":0,"cells_raw":0,"read":"whole","date_system":"1900"}

{"sheet":"表紙","index":0,"n_rows":64,"n_cols":1,"rows_kept":64,"cut":false,"hidden":false,"merged":[[28,0,28,7],[29,0,29,7],[30,0,30,7],[7,0,7,7],[8,0,8,7],[24,0,24,7],[25,0,25,7],[26,0,26,7],[27,0,27,7],[10,0,10,7]]}
[]
[]
[]
[]
[]
[]
[]
["令和４年度"]
["大正区事業・業務計画書"]
[]
["３　次世代の未来が輝くまちへ"]
[]
[]
[]
[]
[]
[]
[]
[]
[]
[]
[]
[]
[]
[]
[]
[]
["大　阪　市　大　正　区"]
[]
["令和４年４月１日　策定"]
[]
[]
[]
[]
["「大正区将来ビジョン」「事業・業務計画書」の概要及び位置づけについて"]
[]
[]
[]
[]
[]
[]
[]
[]
[]
[]
[]
[]
[]
[]
[]
[]
[]
[]
[]
[]
[]
[]
[]
[]
["本書の構成について"]
[]
["　　本書では、大正区将来ビジョン５つの柱にそって、事業・業務計画を体系化するため、"]
["　５つの柱を構成する各施策を１つの単位とし、事業・業務計画を紐付けております。"]
["　また、５つの柱に該当しない、いわゆる内部事務のような事務は、その他に集約しています。"]

{"sheet":"目次 (3)","index":1,"n_rows":43,"n_cols":15,"rows_kept":43,"cut":false,"hidden":false,"merged":[[8,0,8,3],[6,4,7,4],[6,5,7,5],[6,6,7,6],[6,7,7,7],[6,8,7,8],[6,9,6,12],[6,13,6,14],[3,0,3,12],[4,0,4,12],[5,0,5,12]]}
["令和４年度大正区事業・業務計画書　一覧（目次）"]
[]
["【表の記載項目】"]
["・修正箇所：令和４年度事業・業務計画書の当初からの修正箇所がある場合、○を記載しております。"]
["・スケジュール：○（予定通り進捗）、△（一部進捗に遅れ）、×（計画の変更を必要とするほど進捗の遅れ）、－（該当する項目なし）"]
["・自己評価：　◎：目標値を大幅に上回り達成（目標数値の+10%以上）、〇：目標値を達成（目標数値の0%以上～+10%未満）\n　　　　　　　　　△：目標値を下回り未達成（目標数値の－10%以上～0%未満）、×：目標値を大幅に下回り未達成（目標数値の－10%未満）"]
[null,null,null,null,"ﾍﾟｰｼﾞ","重複\n番号","新規","担当課","修正箇所","スケジュール",null,null,null,"自己評価"]
[null,null,null,null,null,null,null,null,null,"4～6月","7～9月","10～12月","1～3月","業績目標","成果目標"]
["「大正区将来ビジョン」「事業・業務計画書」の概要及び位置づけについて",null,null,null,1]
["本書の構成について",null,null,null,2]
["３","次世代の未来が輝くまちへ"]
[null,"3-1","子育て施策の充実（見守り）",null,1]
[null,null,"3-1-1",{"$f":"'3-1-1'!E2","v":"プレパパ・プレママレッスンの開催"},{"$f":"E12+2","v":3},null,null,"保健福祉課\n（保健活動）",null,{"$f":"'3-1-1'!$AC$34","v":"〇"},{"$f":"'3-1-1'!$AC$37","v":"〇"},{"$f":"'3-1-1'!$AC$40","v":"〇"},{"$f":"'3-1-1'!$AC$43","v":"〇"},{"$f":"'3-1-1'!$AD$70","v":"◎"},{"$f":"'3-1-1'!$AD$73","v":"〇"}]
[null,null,"3-1-2",{"$f":"'3-1-2'!E2","v":"乳幼児健康診査等の実施"},{"$f":"E13+2","v":5},null,null,"保健福祉課\n（保健活動）",null,{"$f":"'3-1-2'!$AC$34","v":"〇"},{"$f":"'3-1-2'!$AC$37","v":"〇"},{"$f":"'3-1-2'!$AC$40","v":"〇"},{"$f":"'3-1-2'!$AC$43","v":"〇"},{"$f":"'3-1-2'!$AD$70","v":"〇"},{"$f":"'3-1-2'!$AD$73","v":"〇"}]
[null,null,"3-1-3",{"$f":"'3-1-3'!E2","v":"児童への虐待対応・防止"},{"$f":"E14+2","v":7},"1-4-5\n3-5-4\n3-6-2",null,"保健福祉課\n（こども教育）",null,{"$f":"'3-1-3'!$AC$34","v":"〇"},{"$f":"'3-1-3'!$AC$37","v":"〇"},{"$f":"'3-1-3'!$AC$40","v":"〇"},{"$f":"'3-1-3'!$AC$43","v":"〇"},{"$f":"'3-1-3'!$AD$70","v":"◎"},{"$f":"'3-1-3'!$AD$73","v":"△"}]
[null,null,"3-1-4",{"$f":"'3-1-4'!E2","v":"子育てコンシェルジュ（利用者支援専門員）による子育て支援"},{"$f":"E15+2","v":9},"1-4-6",null,"保健福祉課\n（こども教育）","○",{"$f":"'3-1-4'!$AC$34","v":"〇"},{"$f":"'3-1-4'!$AC$37","v":"〇"},{"$f":"'3-1-4'!$AC$40","v":"〇"},{"$f":"'3-1-4'!$AC$43","v":"〇"},{"$f":"'3-1-4'!$AD$70","v":"◎"},{"$f":"'3-1-4'!$AD$73","v":"×"}]
[null,null,"3-1-5",{"$f":"'3-1-5'!E2","v":"「こどもサポートネット」の実施"},11,"3-5-3\n3-6-1",null,"保健福祉課\n（こども教育）",null,{"$f":"'3-1-5'!$AC$34","v":"〇"},{"$f":"'3-1-5'!$AC$37","v":"〇"},{"$f":"'3-1-5'!$AC$40","v":"〇"},{"$f":"'3-1-5'!$AC$43","v":"〇"},{"$f":"'3-1-5'!$AD$70","v":"〇"},{"$f":"'3-1-5'!$AD$73","v":"×"}]
[null,null,"3-1-6",{"$f":"'3-1-6'!E2","v":"就学前（４・５歳児）こどもサポートネット事業（大正区版ネウボラ）"},13,"3-6-7",null,"保健福祉課\n（こども教育）",null,{"$f":"'3-1-6'!$AC$34","v":"〇"},{"$f":"'3-1-6'!$AC$37","v":"〇"},{"$f":"'3-1-6'!$AC$40","v":"〇"},{"$f":"'3-1-6'!$AC$43","v":"〇"},{"$f":"'3-1-6'!$AD$70","v":"◎"},{"$f":"'3-1-6'!$AD$73","v":"〇"}]
[null,null,"3-1-7",{"$f":"'3-1-7'!E2","v":"保育所入所事務"},15,null,null,"保健福祉課\n（こども教育）",null,{"$f":"'3-1-7'!$AC$34","v":"〇"},{"$f":"'3-1-7'!$AC$37","v":"〇"},{"$f":"'3-1-7'!$AC$40","v":"〇"},{"$f":"'3-1-7'!$AC$43","v":"〇"},{"$f":"'3-1-7'!$AD$70","v":"○"},{"$f":"'3-1-7'!$AD$73","v":"○"}]
[null,null,"3-1-8",{"$f":"'3-1-8'!E2","v":"子育て支援機関とのネットワーク強化"},{"$f":"E19+2","v":17},null,null,"保健福祉課\n（保健活動）",null,{"$f":"'3-1-8'!$AC$32","v":"〇"},{"$f":"'3-1-8'!$AC$35","v":"〇"},{"$f":"'3-1-8'!$AC$38","v":"〇"},{"$f":"'3-1-8'!$AC$41","v":"〇"},{"$f":"'3-1-8'!$AD$68","v":"〇"},{"$f":"'3-1-8'!$AD$70","v":"〇"}]
[null,"3-2","学校選択制の充実",null,{"$f":"E20+2","v":19}]
[null,null,"3-2-1",{"$f":"'3-2-1'!E2","v":"学校選択制の実施"},{"$f":"E21+1","v":20},null,null,"保健福祉課\n（こども教育）",null,{"$f":"'3-2-1'!$AC$34","v":"〇"},{"$f":"'3-2-1'!$AC$37","v":"〇"},{"$f":"'3-2-1'!$AC$40","v":"〇"},{"$f":"'3-2-1'!$AC$43","v":"〇"},{"$f":"'3-2-1'!$AD$70","v":"〇"},{"$f":"'3-2-1'!$AD$73","v":"〇"}]
[null,"3-3","学校の適正配置",null,{"$f":"E22+2","v":22}]
[null,null,"3-3-1",{"$f":"'3-3-1'!E2","v":"小学校の適正配置"},{"$f":"E23+1","v":23},null,null,"保健福祉課\n（こども教育）",null,{"$f":"'3-3-1'!$AC$34","v":"-"},{"$f":"'3-3-1'!$AC$37","v":"〇"},{"$f":"'3-3-1'!$AC$40","v":"〇"},{"$f":"'3-3-1'!$AC$43","v":"〇"},{"$f":"'3-3-1'!$AD$70","v":"-"},{"$f":"'3-3-1'!$AD$73","v":"◎"}]
[null,"3-4","生活習慣の改善",null,{"$f":"E24+2","v":25}]
[null,null,"3-4-1",{"$f":"'3-4-1'!E2","v":"分権型教育行政にかかる意見聴取（大正区総合教育会議）"},{"$f":"E25+1","v":26},null,null,"保健福祉課\n（こども教育）",null,{"$f":"'3-4-1'!$AC$34","v":"〇"},{"$f":"'3-4-1'!$AC$37","v":"〇"},{"$f":"'3-4-1'!$AC$40","v":"〇"},{"$f":"'3-4-1'!$AC$43","v":"〇"},{"$f":"'3-4-1'!$AD$70","v":"〇"},{"$f":"'3-4-1'!$AD$73","v":"◎"}]
[null,null,"3-4-2",{"$f":"'3-4-2'!E2","v":"分権型教育行政にかかる連絡調整・意見交換（大正区教育行政連絡会）"},{"$f":"E26+2","v":28},null,null,"保健福祉課\n（こども教育）","○",{"$f":"'3-4-2'!$AC$34","v":"〇"},{"$f":"'3-4-2'!$AC$37","v":"〇"},{"$f":"'3-4-2'!$AC$40","v":"〇"},{"$f":"'3-4-2'!$AC$43","v":"〇"},{"$f":"'3-4-2'!$AD$70","v":"〇"},{"$f":"'3-4-2'!$AD$73","v":"△"}]
[null,null,"3-4-3",{"$f":"'3-4-3'!E2","v":"学校協議会の運営補佐"},{"$f":"E27+2","v":30},null,null,"保健福祉課\n（こども教育）",null,{"$f":"'3-4-3'!$AC$34","v":"〇"},{"$f":"'3-4-3'!$AC$37","v":"〇"},{"$f":"'3-4-3'!$AC$40","v":"〇"},{"$f":"'3-4-3'!$AC$43","v":"〇"},{"$f":"'3-4-3'!$AD$70","v":"〇"},{"$f":"'3-4-3'!$AD$73","v":"△"}]
[null,null,"3-4-4",{"$f":"'3-4-4'!E2","v":"食育の推進"},{"$f":"E28+2","v":32},"1-6-10","〇","保健福祉課\n（健康づくり）",null,{"$f":"'3-4-4'!$AC$32","v":"〇"},{"$f":"'3-4-4'!$AC$35","v":"〇"},{"$f":"'3-4-4'!$AC$38","v":"〇"},{"$f":"'3-4-4'!$AC$41","v":"〇"},{"$f":"'3-4-4'!$AD$68","v":"△"},{"$f":"'3-4-4'!$AD$71","v":"◎"}]
[null,"3-5","問題行動の対応",null,{"$f":"E29+2","v":34}]
[null,null,"3-5-1",{"$f":"'3-5-1'!E2","v":"区独自スクールソーシャルワーカーの活用事業"},{"$f":"E30+1","v":35},"3-6-3",null,"保健福祉課\n（こども教育）",null,{"$f":"'3-5-1'!$AC$34","v":"〇"},{"$f":"'3-5-1'!$AC$37","v":"〇"},{"$f":"'3-5-1'!$AC$40","v":"〇"},{"$f":"'3-5-1'!$AC$43","v":"〇"},{"$f":"'3-5-1'!$AD$70","v":"◎"},{"$f":"'3-5-1'!$AD$73","v":"◎"}]
[null,null,"3-5-2",{"$f":"'3-5-2'!E2","v":"学習・登校サポート事業"},{"$f":"E31+2","v":37},"3-6-5",null,"保健福祉課\n（こども教育）",null,{"$f":"'3-5-2'!$AC$34","v":"〇"},{"$f":"'3-5-2'!$AC$37","v":"〇"},{"$f":"'3-5-2'!$AC$40","v":"〇"},{"$f":"'3-5-2'!$AC$43","v":"〇"},{"$f":"'3-5-2'!$AD$70","v":"○"},{"$f":"'3-5-2'!$AD$73","v":"×"}]
[null,null,"3-5-3",{"$f":"'3-5-3'!E2","v":"「こどもサポートネット」の実施"},{"$f":"E32+2","v":39},"3-1-5\n3-6-1",null,"保健福祉課\n（こども教育）",null,{"$f":"'3-5-3'!$AC$34","v":"〇"},{"$f":"'3-5-3'!$AC$37","v":"〇"},{"$f":"'3-5-3'!$AC$40","v":"〇"},{"$f":"'3-5-3'!$AC$43","v":"〇"},{"$f":"'3-5-3'!$AD$70","v":"〇"},{"$f":"'3-5-3'!$AD$73","v":"×"}]
[null,null,"3-5-4",{"$f":"'3-5-4'!E2","v":"児童への虐待対応・防止"},41,"1-4-5\n3-1-3\n3-6-2",null,"保健福祉課\n（こども教育）",null,{"$f":"'3-5-4'!$AC$34","v":"〇"},{"$f":"'3-5-4'!$AC$37","v":"〇"},{"$f":"'3-5-4'!$AC$40","v":"〇"},{"$f":"'3-5-4'!$AC$43","v":"〇"},{"$f":"'3-5-4'!$AD$70","v":"◎"},{"$f":"'3-5-4'!$AD$73","v":"△"}]
[null,"3-6","こどもの貧困対策（こどもサポートネット事業）",null,{"$f":"E34+2","v":43}]
[null,null,"3-6-1",{"$f":"'3-6-1'!E2","v":"「こどもサポートネット」の実施"},{"$f":"E35+2","v":45},"3-1-5\n3-5-3",null,"保健福祉課\n（こども教育）",null,{"$f":"'3-6-1'!$AC$34","v":"〇"},{"$f":"'3-6-1'!$AC$37","v":"〇"},{"$f":"'3-6-1'!$AC$40","v":"〇"},{"$f":"'3-6-1'!$AC$43","v":"〇"},{"$f":"'3-6-1'!$AD$70","v":"〇"},{"$f":"'3-6-1'!$AD$73","v":"×"}]
[null,null,"3-6-2",{"$f":"'3-6-2'!E2","v":"児童への虐待対応・防止"},{"$f":"E36+2","v":47},"1-4-5\n3-1-3\n3-5-4",null,"保健福祉課\n（こども教育）",null,{"$f":"'3-6-2'!$AC$34","v":"〇"},{"$f":"'3-6-2'!$AC$37","v":"〇"},{"$f":"'3-6-2'!$AC$40","v":"〇"},{"$f":"'3-6-2'!$AC$43","v":"〇"},{"$f":"'3-6-2'!$AD$70","v":"◎"},{"$f":"'3-6-2'!$AD$73","v":"△"}]
[null,null,"3-6-3",{"$f":"'3-6-3'!E2","v":"区独自スクールソーシャルワーカーの活用事業"},{"$f":"E37+2","v":49},"3-5-1",null,"保健福祉課\n（こども教育）",null,{"$f":"'3-6-3'!$AC$34","v":"〇"},{"$f":"'3-6-3'!$AC$37","v":"〇"},{"$f":"'3-6-3'!$AC$40","v":"〇"},{"$f":"'3-6-3'!$AC$43","v":"〇"},{"$f":"'3-6-3'!$AD$70","v":"◎"},{"$f":"'3-6-3'!$AD$73","v":"◎"}]
[null,null,"3-6-4",{"$f":"'3-6-4'!E2","v":"民間事業者を活用した課外学習支援事業"},{"$f":"E38+2","v":51},null,null,"保健福祉課\n（こども教育）",null,{"$f":"'3-6-4'!$AC$34","v":"〇"},{"$f":"'3-6-4'!$AC$37","v":"〇"},{"$f":"'3-6-4'!$AC$40","v":"〇"},{"$f":"'3-6-4'!$AC$43","v":"〇"},{"$f":"'3-6-4'!$AD$70","v":"△"},{"$f":"'3-6-4'!$AD$73","v":"×"}]
[null,null,"3-6-5",{"$f":"'3-6-5'!E2","v":"学習・登校サポート事業"},53,"3-5-2",null,"保健福祉課\n（こども教育）",null,{"$f":"'3-6-5'!$AC$34","v":"〇"},{"$f":"'3-6-5'!$AC$37","v":"〇"},{"$f":"'3-6-5'!$AC$40","v":"〇"},{"$f":"'3-6-5'!$AC$43","v":"〇"},{"$f":"'3-6-5'!$AD$70","v":"○"},{"$f":"'3-6-5'!$AD$73","v":"×"}]
[null,null,"3-6-6",{"$f":"'3-6-6'!E2","v":"つつじサポーター（大正教育活動協力隊）の活用"},{"$f":"E40+2","v":55},null,null,"保健福祉課\n（こども教育）",null,{"$f":"'3-6-6'!$AC$34","v":"〇"},{"$f":"'3-6-6'!$AC$37","v":"〇"},{"$f":"'3-6-6'!$AC$40","v":"〇"},{"$f":"'3-6-6'!$AC$43","v":"〇"},{"$f":"'3-6-6'!$AD$70","v":"×"},{"$f":"'3-6-6'!$AD$73","v":"―"}]
[null,null,"3-6-7",{"$f":"'3-6-7'!E2","v":"就学前（４・５歳児）こどもサポートネット事業（大正区版ネウボラ）"},57,"3-1-6",null,"保健福祉課\n（こども教育）",null,{"$f":"'3-6-7'!$AC$34","v":"〇"},{"$f":"'3-6-7'!$AC$37","v":"〇"},{"$f":"'3-6-7'!$AC$40","v":"〇"},{"$f":"'3-6-7'!$AC$43","v":"〇"},{"$f":"'3-6-7'!$AD$70","v":"◎"},{"$f":"'3-6-7'!$AD$73","v":"〇"}]
[null,null,"3-6-8",{"$f":"'3-6-8'!E2","v":"基礎学力向上支援事業"},{"$f":"E42+2","v":59},null,null,"保健福祉課\n（こども教育）",null,{"$f":"'3-6-8'!$AC$34","v":"〇"},{"$f":"'3-6-8'!$AC$37","v":"〇"},{"$f":"'3-6-8'!$AC$40","v":"〇"},{"$f":"'3-6-8'!$AC$43","v":"〇"},{"$f":"'3-6-8'!$AD$70","v":"〇"},{"$f":"'3-6-8'!$AD$73","v":"△"}]

{"sheet":"3-1","index":2,"n_rows":32,"n_cols":5,"rows_kept":32,"cut":false,"hidden":false,"merged":[[23,2,23,3],[23,4,23,9],[24,2,24,3],[24,4,24,9],[30,2,30,3],[30,4,30,9],[31,2,31,3],[31,4,31,9],[25,2,25,3],[25,4,25,9],[26,2,26,3],[26,4,26,9],[27,2,27,3],[27,4,27,9],[28,2,28,3],[28,4,28,9],[29,2,29,3],[29,4,29,9]]}
["【3】次世代の未来が輝くまちへ"]
[]
[null,"3-1　子育て施策の充実（見守り）"]
[]
[null,"◆","目指すべき将来像"]
[]
[]
[]
[]
[]
[null,"◆","施策"]
[]
[]
[]
[]
[]
[null,"◆","施策目標"]
[]
[]
[]
[]
[]
[null,"◆","具体的取組（事業・業務計画書）"]
[null,null,"取組番号",null,"事業名"]
[null,null,"3-1-1",null,{"$f":"'目次 (3)'!D13","v":"プレパパ・プレママレッスンの開催"}]
[null,null,"3-1-2",null,{"$f":"'目次 (3)'!D14","v":"乳幼児健康診査等の実施"}]
[null,null,"3-1-3",null,{"$f":"'目次 (3)'!D15","v":"児童への虐待対応・防止"}]
[null,null,"3-1-4",null,{"$f":"'目次 (3)'!D16","v":"子育てコンシェルジュ（利用者支援専門員）による子育て支援"}]
[null,null,"3-1-5",null,{"$f":"'目次 (3)'!D17","v":"「こどもサポートネット」の実施"}]
[null,null,"3-1-6",null,{"$f":"'目次 (3)'!D18","v":"就学前（４・５歳児）こどもサポートネット事業（大正区版ネウボラ）"}]
[null,null,"3-1-7",null,{"$f":"'目次 (3)'!D19","v":"保育所入所事務"}]
[null,null,"3-1-8",null,{"$f":"'目次 (3)'!D20","v":"子育て支援機関とのネットワーク強化"}]

{"sheet":"3-1-1","index":3,"n_rows":90,"n_cols":34,"rows_kept":90,"cut":false,"hidden":false,"merged":[[89,0,89,3],[89,4,89,31],[80,0,83,6],[80,7,83,31],[85,0,87,3],[85,4,85,7],[85,8,85,31],[86,4,86,7],[86,8,86,31],[87,4,87,7],[87,8,87,31],[77,0,79,6],[77,7,79,31],[67,0,67,6],[67,7,67,31],[68,0,71,3],[68,4,71,6],[68,7,71,19],[68,20,71,28],[68,29,68,31],[69,29,71,31],[66,0,66,6],[66,7,66,31],[57,1,61,6],[57,7,61,31],[62,1,62,6],[62,7,62,31],[63,1,63,6],[63,7,63,31],[72,0,76,3],[72,4,76,6],[72,7,76,19],[72,20,76,28],[72,29,76,31],[53,7,53,31],[54,1,54,6],[54,7,54,31],[55,1,55,6],[55,7,55,31],[56,1,56,6],[56,7,56,31],[49,0,65,0],[49,1,49,6],[49,7,49,31],[50,1,50,6],[50,7,50,31],[51,1,51,6],[51,7,51,31],[52,1,52,6],[52,7,52,31],[53,1,53,6],[64,1,64,6],[64,7,64,31],[65,1,65,6],[65,7,65,31],[45,0,46,1],[45,2,46,31],[47,0,47,6],[47,7,47,31],[48,0,48,6],[48,7,48,31],[39,0,41,1],[39,2,41,23],[39,24,41,27],[39,28,41,29],[39,30,41,31],[42,0,44,1],[42,2,44,23],[42,24,44,27],[42,28,44,29],[42,30,44,31],[33,0,35,1],[33,2,35,23],[33,24,35,27],[33,28,35,29],[33,30,35,31],[36,0,38,1],[36,2,38,23],[36,24,38,27],[36,28,38,29],[36,30,38,31],[29,0,29,23],[29,24,29,27],[29,28,29,29],[29,30,29,31],[30,0,32,0],[30,1,32,1],[30,2,32,23],[30,24,32,27],[30,28,32,29],[30,30,32,31],[20,0,27,0],[20,1,20,6],[20,7,20,31],[21,1,23,6],[21,7,23,31],[24,1,26,6],[24,7,26,31],[27,1,27,6],[27,7,27,31],[5,33,7,34],[9,1,16,6],[9,7,16,31],[17,1,17,6],[17,7,17,31],[18,1,18,6],[18,7,18,31],[4,0,4,6],[4,7,4,31],[5,0,19,0],[5,1,8,6],[5,7,8,31],[19,1,19,6],[19,7,19,31],[0,0,0,3],[0,4,0,20],[0,21,0,27],[0,28,0,29],[0,30,0,31],[1,4,2,20],[1,21,2,27],[1,28,2,29],[1,30,2,31],[1,0,2,3]]}
["取組番号",null,null,null,"事業名",null,null,null,null,null,null,null,null,null,null,null,null,null,null,null,null,"作成年月日・担当",null,null,null,null,null,null,"重点",null,"新規"]
[{"$f":"RIGHT(CELL(\"filename\",A4),LEN(CELL(\"filename\",A4))-FIND(\"]\",CELL(\"filename\",A4)))","v":"3-1-1"},null,null,null,"プレパパ・プレママレッスンの開催",null,null,null,null,null,null,null,null,null,null,null,null,null,null,null,null,"令和４年４月１日\n保健福祉課（保健活動）\n保健福祉課（健康づくり）"]
[]
[]
["項目",null,null,null,null,null,null,"内容"]
["事業・業務概要","目的\n（事業の背景を含む）",null,null,null,null,null,"母子保健法第9条に基づき、母性及び乳幼児の健康の保持増進並びに父母の育児力の向上を目指す。\n子育ての孤立化を防ぎ母親が安心して子育てができるよう、妊娠期から父親の育児参加を促し、身近な相談場所等地域の子育てに関する情報提供をする。",null,null,null,null,null,null,null,null,null,null,null,null,null,null,null,null,null,null,null,null,null,null,null,null,null,"一覧へ戻る"]
[]
[]
[]
[null,"内容",null,null,null,null,null,"◆レッスンAについて\n・偶数月第１月曜日：妊娠中および産後の過ごし方、子育てに関する情報提供、沐浴体験、衣類の交換(保健師)、妊娠中の栄養(栄養士)、妊婦歯科健診(歯科医師・歯科衛生士)\n◆レッスンBについて\n・6・10・2月第4日曜日：沐浴体験、妊婦疑似体験、衣類の交換（保健師）、お産の経過（助産師）、子育て情報提供（地域における支援者）、妊婦歯科健診(歯科医師・歯科衛生士)　　　\n◆共通事項\n・参加していない対象者に対して、HPやSNSを活用し、上記内容をいつでも入手できるよう情報発信する。　\n・区役所において事業のPDCAを回していく観点から、事業内容（予算編成含む）について担当部局に働きかけを行う。"]
[]
[]
[]
[]
[]
[]
[]
[null,"予算額（予算科目）",null,null,null,null,null,"(令和4年度）こども青少年局予算（報償金：314千円・消耗品費：23千円）"]
[null,"事業実施期間（回数）",null,null,null,null,null,"9回/年"]
[null,"事業対象者（人数）",null,null,null,null,null,"令和３年度妊娠届出数２９７人"]
["委託関係","契約・入札方法",null,null,null,null,null,"－"]
[null,"募集要項のポイント",null,null,null,null,null,"－"]
[]
[]
[null,"仕様書のポイント",null,null,null,null,null,"－"]
[]
[]
[null,"選考委員等選考方式",null,null,null,null,null,"－"]
[]
["スケジュール（実施決裁、入札募集開始、説明会、選考会、事業の実施　等）",null,null,null,null,null,null,null,null,null,null,null,null,null,null,null,null,null,null,null,null,null,null,null,"広報スケジュール",null,null,null,"スケ",null,"作業"]
["（前年度）","1月～3月","1月：グループ内における日程並びに内容の調整、実施場所の確保\n令和４年度教室勧奨チラシ作成、印刷\n3月：事業評価　令和３年度参加者アンケートまとめ　従事者意見交換会\n　　区内産科医療機関への周知協力依頼",null,null,null,null,null,null,null,null,null,null,null,null,null,null,null,null,null,null,null,null,null,"広報紙・チラシ作成\n",null,null,null,"〇",null,"〇"]
[]
[]
["4月～\n6月",null,"4月：レッスンA・妊婦歯科健診\n6月：レッスンA・妊婦歯科健診\n　　 ：レッスンB・妊婦歯科健診\nHP等情報発信データ作成\n※母子健康手帳交付時面接にて個別勧奨、電話勧奨",null,null,null,null,null,null,null,null,null,null,null,null,null,null,null,null,null,null,null,null,null,"広報紙・HP\nFacebook・Twitter・チラシ・ポスター",null,null,null,"〇",null,"〇"]
[]
[]
["7月～\n9月",null,"8月：レッスンA・妊婦歯科健診\n※母子健康手帳交付時面接にて個別勧奨、電話勧奨\nHP等情報発信データ更新\n※上半期まとめ、事業計画立案",null,null,null,null,null,null,null,null,null,null,null,null,null,null,null,null,null,null,null,null,null,"広報紙・HP\nFacebook・Twitter・チラシ・ポスター",null,null,null,"〇",null,"〇"]
[]
[]
["10月～\n12月",null,"10月：レッスンA・妊婦歯科健診\n　　　：レッスンB・妊婦歯科健診\n12月：レッスンA・妊婦歯科健診\n※母子健康手帳交付時面接にて個別勧奨、電話勧奨",null,null,null,null,null,null,null,null,null,null,null,null,null,null,null,null,null,null,null,null,null,"広報紙・HP\nFacebook・Twitter・チラシ・ポスター",null,null,null,"〇",null,"〇"]
[]
[]
["1月～\n3月",null,"2月：レッスンA・妊婦歯科健診\n　　 ：レッスンB・妊婦歯科健診\n※母子健康手帳交付時面接にて個別勧奨、電話勧奨\n※下半期まとめ、事業評価、実施場所の確保、次年度勧奨チラシ作成、印刷",null,null,null,null,null,null,null,null,null,null,null,null,null,null,null,null,null,null,null,null,null,"広報紙・HP\nFacebook・Twitter・チラシ・ポスター",null,null,null,"〇",null,"〇"]
[]
[]
["備考"]
[]
["項目",null,null,null,null,null,null,"内容"]
["講座・イベント・会議名",null,null,null,null,null,null,"プレパパ・プレママレッスン"]
["イベント等開催関係","開催日時",null,null,null,null,null,"偶数月第1月曜日（レッスンA）、6・10・2月第4日曜日（レッスンB）"]
[null,"開催場所",null,null,null,null,null,"区民ホール（確保困難の場合は区役所301会議室等）"]
[null,"区役所の主催等",null,null,null,null,null,"主催"]
[null,"その他主催団体・組織等",null,null,null,null,null,"―"]
[null,"共催団体・組織等",null,null,null,null,null,"―"]
[null,"後援団体・組織等",null,null,null,null,null,"―"]
[null,"目標事業規模",null,null,null,null,null,"前年度実績相当"]
[null,"その他留意事項",null,null,null,null,null,"―"]
[null,"イベント等\n当日タイムテーブル",null,null,null,null,null,"●レッスンA\n13:15～13:30　　受付\n13:30～15:30　　内容実施、アンケート記入\n●レッスンB\n9:45～10:00      受付\n10:00～12:00    内容実施、アンケート記入"]
[]
[]
[]
[]
[null,"挨拶者",null,null,null,null,null,"当日の担当保健師"]
[null,"来賓紹介",null,null,null,null,null,"―"]
[null,"祝電紹介の方法",null,null,null,null,null,"―"]
[null,"動員の方法",null,null,null,null,null,"―"]
["その他他課との連携等",null,null,null,null,null,null,"―"]
["前年度実績",null,null,null,null,null,null,"(令和３年度実績）\n・年間実施回数：９回（参加人員：１１４人）参加率32，4％\n・相談件数・９１２件\n・区民意識調査において、子育てがしやすくなったと感じる区民の割合　４６．７％"]
["業績目標",null,null,null,"実績",null,null,"プレパパ・プレママレッスンA・B　9回　参加率40％以上",null,null,null,null,null,null,null,null,null,null,null,null,"プレパパ・ママレッスンA・B　9回\n参加者85人　参加率54.5％",null,null,null,null,null,null,null,null,"自己評価"]
[null,null,null,null,null,null,null,null,null,null,null,null,null,null,null,null,null,null,null,null,null,null,null,null,null,null,null,null,null,"◎"]
[]
[]
["成果目標",null,null,null,"実績",null,null,"区民意識調査において、子育てがしやすくなったと感じる区民の割合　50％以上",null,null,null,null,null,null,null,null,null,null,null,null,"区民意識調査において、子育てがしやすくなったと感じる区民の割合　52.2％",null,null,null,null,null,null,null,null,"〇"]
[]
[]
[]
[]
["中期展望",null,null,null,null,null,null,"母親だけでなく父親の妊娠期からの育児参加を呼びかけることで、母親が安心して子育てできる環境づくりにつながる\n"]
[]
[]
["成果目標が\n中期展望に\n寄与する理由",null,null,null,null,null,null,"妊娠中の衛生並びに父親の早期育児参加を促し、妊娠・出産への理解並びに育児力を高めることが子育ての孤立化を防ぎ、安心して子育てできるため"]
[]
[]
[]
[]
["SDGｓゴール",null,null,null,3,null,null,null,"すべての人に健康と福祉を"]
[null,null,null,null,null,null,null,null,""]
[null,null,null,null,null,null,null,null,""]
[]
["修正履歴"]

{"sheet":"3-1-2","index":4,"n_rows":90,"n_cols":34,"rows_kept":90,"cut":false,"hidden":false,"merged":[[89,0,89,3],[89,4,89,31],[80,0,83,6],[80,7,83,31],[85,0,87,3],[85,4,85,7],[85,8,85,31],[86,4,86,7],[86,8,86,31],[87,4,87,7],[87,8,87,31],[77,0,79,6],[77,7,79,31],[67,0,67,6],[67,7,67,31],[68,0,71,3],[68,4,71,6],[68,7,71,19],[68,20,71,28],[68,29,68,31],[69,29,71,31],[66,0,66,6],[66,7,66,31],[57,1,61,6],[57,7,61,31],[62,1,62,6],[62,7,62,31],[63,1,63,6],[63,7,63,31],[72,0,76,3],[72,4,76,6],[72,7,76,19],[72,20,76,28],[72,29,76,31],[53,7,53,31],[54,1,54,6],[54,7,54,31],[55,1,55,6],[55,7,55,31],[56,1,56,6],[56,7,56,31],[49,0,65,0],[49,1,49,6],[49,7,49,31],[50,1,50,6],[50,7,50,31],[51,1,51,6],[51,7,51,31],[52,1,52,6],[52,7,52,31],[53,1,53,6],[64,1,64,6],[64,7,64,31],[65,1,65,6],[65,7,65,31],[45,0,46,1],[45,2,46,31],[47,0,47,6],[47,7,47,31],[48,0,48,6],[48,7,48,31],[39,0,41,1],[39,2,41,23],[39,24,41,27],[39,28,41,29],[39,30,41,31],[42,0,44,1],[42,2,44,23],[42,24,44,27],[42,28,44,29],[42,30,44,31],[33,0,35,1],[33,2,35,23],[33,24,35,27],[33,28,35,29],[33,30,35,31],[36,0,38,1],[36,2,38,23],[36,24,38,27],[36,28,38,29],[36,30,38,31],[29,0,29,23],[29,24,29,27],[29,28,29,29],[29,30,29,31],[30,0,32,0],[30,1,32,1],[30,2,32,23],[30,24,32,27],[30,28,32,29],[30,30,32,31],[20,0,27,0],[20,1,20,6],[20,7,20,31],[21,1,23,6],[21,7,23,31],[24,1,26,6],[24,7,26,31],[27,1,27,6],[27,7,27,31],[5,33,7,34],[9,1,16,6],[9,7,16,31],[17,1,17,6],[17,7,17,31],[18,1,18,6],[18,7,18,31],[4,0,4,6],[4,7,4,31],[5,0,19,0],[5,1,8,6],[5,7,8,31],[19,1,19,6],[19,7,19,31],[0,0,0,3],[0,4,0,20],[0,21,0,27],[0,28,0,29],[0,30,0,31],[1,4,2,20],[1,21,2,27],[1,28,2,29],[1,30,2,31],[1,0,2,3]]}
["取組番号",null,null,null,"事業名",null,null,null,null,null,null,null,null,null,null,null,null,null,null,null,null,"作成年月日・担当",null,null,null,null,null,null,"重点",null,"新規"]
[{"$f":"RIGHT(CELL(\"filename\",A4),LEN(CELL(\"filename\",A4))-FIND(\"]\",CELL(\"filename\",A4)))","v":"3-1-2"},null,null,null,"乳幼児健康診査等の実施",null,null,null,null,null,null,null,null,null,null,null,null,null,null,null,null,"令和４年４月１日\n保健福祉課（保健活動）\n保健福祉課（健康づくり）"]
[]
[]
["項目",null,null,null,null,null,null,"内容"]
["事業・業務概要","目的\n（事業の背景を含む）",null,null,null,null,null,"母子保健法に基づき、乳幼児期の健全な発育、発達をもたらすため養護、栄養、育児に関する指導を行うこと及び疾病の早期発見と予防を図る。\n養育者が安心して子育てができるよう保健指導を行うとともに虐待の早期発見と予防を図る。",null,null,null,null,null,null,null,null,null,null,null,null,null,null,null,null,null,null,null,null,null,null,null,null,null,"一覧へ戻る"]
[]
[]
[]
[null,"内容",null,null,null,null,null,"・身体の発育及び栄養状態　・身体の疾病及び異常の有無\n・歯の疾病及び異常の有無　・行動発達、言語発達の状況及び異常の有無\n・予防接種の実施状況　　　　・眼科・耳鼻科二次健診、尿検査\n・その他育児上問題となる事項の指導\n　医師、歯科医師による健康診査、心理相談員、歯科衛生士、保健師、栄養士等が幼児期の適切な栄養、生活習慣の自立、う歯予防等の育児指導を実施する。\n・生後5か月頃から18か月頃までの離乳食の進め方の指導\n・未受診児については、すみやかに子育て支援室と連携して健康状態の把握を行い、全件把握する。\n・区役所において事業のPDCAを回していく観点から、事業内容（予算編成含む）について担当部局に働きかけを行う。"]
[]
[]
[]
[]
[]
[]
[]
[null,"予算額（予算科目）",null,null,null,null,null,"（令和４年度）こども青少年局予算（報償金：3,781千円・消耗品費：52千円）"]
[null,"事業実施期間（回数）",null,null,null,null,null,"・３か月児健康診査、１歳６か月児健康診査、３歳児健康診査、発達相談（月１回）\n・４・５歳児発達相談（奇数月１回）・離乳食講習会（月１回）・未受診児の健康状態の確認（随時）"]
[null,"事業対象者（人数）",null,null,null,null,null,"・３か月児、１歳６か月児、３歳児、発達相談、離乳食講習会（対象児とその保護者）\n・４・５歳児発達相談（定員：２人／回）【こどもの発達に不安のある方に対してのみ申込により実施している。１人当たりの相談時間が長くなるため定員を設定せざるを得ない】\n"]
["委託関係","契約・入札方法",null,null,null,null,null,"－"]
[null,"募集要項のポイント",null,null,null,null,null,"－"]
[]
[]
[null,"仕様書のポイント",null,null,null,null,null,"－"]
[]
[]
[null,"選考委員等選考方式",null,null,null,null,null,"－"]
[]
["スケジュール（実施決裁、入札募集開始、説明会、選考会、事業の実施　等）",null,null,null,null,null,null,null,null,null,null,null,null,null,null,null,null,null,null,null,null,null,null,null,"広報スケジュール",null,null,null,"スケ",null,"作業"]
["（前年度）","1月～3月","乳幼児健康診査の実施にかかる実施決裁\n健診従事者の医師・歯科医師・歯科衛生士・介助者の雇上げにかかる実施決裁",null,null,null,null,null,null,null,null,null,null,null,null,null,null,null,null,null,null,null,null,null,null,null,null,null,"〇",null,"〇"]
[]
[]
["4月～\n6月",null,"・３か月児健康診査、１歳６か月児健康診査、３歳児健康診査(月1回)　\n・未受診児の健康状態の確認（随時）\n・発達相談（月１回）・４・５歳児発達相談（奇数月１回）\n・離乳食講習会（月１回）\n・雇上げ従事者への報償金支払事務",null,null,null,null,null,null,null,null,null,null,null,null,null,null,null,null,null,null,null,null,null,"広報紙・HP・Facebook・Twitter・LINE",null,null,null,"〇",null,"〇"]
[]
[]
["7月～\n9月",null,"・３か月児健康診査、１歳６か月児健康診査、３歳児健康診査(月1回)\n・未受診児の健康状態の確認（随時）\n・発達相談（月１回）・４・５歳児発達相談（奇数月１回）\n・離乳食講習会（月１回）\n・雇上げ従事者への報償金支払事務",null,null,null,null,null,null,null,null,null,null,null,null,null,null,null,null,null,null,null,null,null,"広報紙・HP・Facebook・Twitter・LINE",null,null,null,"〇",null,"〇"]
[]
[]
["10月～\n12月",null,"・３か月児健康診査、１歳６か月児健康診査、３歳児健康診査(月1回)\n・未受診児の健康状態の確認（随時）\n・発達相談（月１回）・４・５歳児発達相談（奇数月１回）\n・離乳食講習会（月１回）\n・雇上げ従事者への報償金支払事務",null,null,null,null,null,null,null,null,null,null,null,null,null,null,null,null,null,null,null,null,null,"広報紙・HP・Facebook・Twitter・LINE",null,null,null,"〇",null,"〇"]
[]
[]
["1月～\n3月",null,"・３か月児健康診査、１歳６か月児健康診査、３歳児健康診査(月1回)\n・未受診児の健康状態の確認（随時）\n・発達相談（月１回）・４・５歳児発達相談（奇数月１回）\n・離乳食講習会（月１回）\n・雇上げ従事者への報償金支払事務",null,null,null,null,null,null,null,null,null,null,null,null,null,null,null,null,null,null,null,null,null,"広報紙・HP・Facebook・Twitter・LINE",null,null,null,"〇",null,"〇"]
[]
[]
["備考"]
[]
["項目",null,null,null,null,null,null,"内容"]
["講座・イベント・会議名",null,null,null,null,null,null,"３か月児健康診査、１歳６か月児健康診査、３歳児健康診査、発達相談、４・５歳児発達相談、離乳食講習会"]
["イベント等開催関係","開催日時",null,null,null,null,null,"３か月児健康診査（毎月第１火曜日）、１歳６か月児健康診査（毎月第２火曜日）、\n３歳児健康診査（毎月第３火曜日）、発達相談（毎月第３月曜日）、\n４・５歳児発達相談（奇数月第１水曜日）、離乳食講習会（毎月第３木曜日）"]
[null,"開催場所",null,null,null,null,null,"大正区保健福祉センター　または　大正区民ホール"]
[null,"区役所の主催等",null,null,null,null,null,"その他（広報及び会場の提供）"]
[null,"その他主催団体・組織等",null,null,null,null,null,"―"]
[null,"共催団体・組織等",null,null,null,null,null,"―"]
[null,"後援団体・組織等",null,null,null,null,null,"―"]
[null,"目標事業規模",null,null,null,null,null,"―"]
[null,"その他留意事項",null,null,null,null,null,"―"]
[null,"イベント等\n当日タイムテーブル",null,null,null,null,null,"・３か月児健康診査　　１２：５０～１５：００　　 ・１歳６か月児健康診査　　１３：１５～１５：００\n・３歳児健康診査　　　 １３：１５～１５：００　   ・発達相談　　　　　　　 　　 １３：３０～１４：３０\n・４・５歳児発達相談　 　９：３０～１２：００　    ・離乳食講習会　　　  　　　１４：００～１５：３０"]
[]
[]
[]
[]
[null,"挨拶者",null,null,null,null,null,"当日の担当保健師"]
[null,"来賓紹介",null,null,null,null,null,"―"]
[null,"祝電紹介の方法",null,null,null,null,null,"―"]
[null,"動員の方法",null,null,null,null,null,"対象者の保護者宛てに個別案内を送付する（発達相談・離乳食講習会を除く）"]
["その他他課との連携等",null,null,null,null,null,null,"こども青少年局・子育て支援室"]
["前年度実績",null,null,null,null,null,null,"（令和３年度実績）\n・３か月児健康診査(12回)、１歳６か月児健康診査(１２回)、３歳児健康診査(１２回)、\n発達相談(１２回)、４・５歳児発達相談(８回)、離乳食講習会（６回）、健診対象児の健康状態の把握率100％"]
["業績目標",null,null,null,"実績",null,null,"・３か月児健康診査（12回）\n・１歳６か月児健康診査（12回）\n・３歳児健康診査（12回）\n・発達相談（12回）\n・４・５歳児発達相談（6回）\n・離乳食講習会（12回）",null,null,null,null,null,null,null,null,null,null,null,null,"・３か月児健康診査（12回）\n・１歳６か月児健康診査（12回）\n・３歳児健康診査（12回）\n・発達相談（12回）\n・４・５歳児発達相談（6回）\n・離乳食講習会（12回）",null,null,null,null,null,null,null,null,"自己評価"]
[null,null,null,null,null,null,null,null,null,null,null,null,null,null,null,null,null,null,null,null,null,null,null,null,null,null,null,null,null,"〇"]
[]
[]
["成果目標",null,null,null,"実績",null,null,"健診対象児の健康状態の把握率100％",null,null,null,null,null,null,null,null,null,null,null,null,"健診対象児の健康状態の把握率100％",null,null,null,null,null,null,null,null,"〇"]
[]
[]
[]
[]
["中期展望",null,null,null,null,null,null,"乳幼児に対する健康診査、保健指導、医療、その他の措置を講じて、乳幼児の健康の保持・増進並びに育児不安の早期把握・早期対応を行うこと"]
[]
[]
["成果目標が\n中期展望に\n寄与する理由",null,null,null,null,null,null,"乳幼児健康診査対象児の健康状態の全件把握に取り組むことにより、乳幼児の健康の保持・増進並びに育児不安の早期把握・早期対応を図ることができるため。"]
[]
[]
[]
[]
["SDGｓゴール",null,null,null,3,null,null,null,"すべての人に健康と福祉を"]
[null,null,null,null,null,null,null,null,""]
[null,null,null,null,null,null,null,null,""]
[]
["修正履歴"]

{"sheet":"3-1-3","index":5,"n_rows":90,"n_cols":33,"rows_kept":90,"cut":false,"hidden":false,"merged":[[89,0,89,3],[89,4,89,31],[80,0,83,6],[80,7,83,31],[85,0,87,3],[85,4,85,7],[85,8,85,31],[86,4,86,7],[86,8,86,31],[87,4,87,7],[87,8,87,31],[77,0,79,6],[77,7,79,31],[67,0,67,6],[67,7,67,31],[68,0,71,3],[68,4,71,6],[68,7,71,19],[68,20,71,28],[68,29,68,31],[69,29,71,31],[66,0,66,6],[66,7,66,31],[57,1,61,6],[57,7,61,31],[62,1,62,6],[62,7,62,31],[63,1,63,6],[63,7,63,31],[72,0,76,3],[72,4,76,6],[72,7,76,19],[72,20,76,28],[72,29,76,31],[53,7,53,31],[54,1,54,6],[54,7,54,31],[55,1,55,6],[55,7,55,31],[56,1,56,6],[56,7,56,31],[49,0,65,0],[49,1,49,6],[49,7,49,31],[50,1,50,6],[50,7,50,31],[51,1,51,6],[51,7,51,31],[52,1,52,6],[52,7,52,31],[53,1,53,6],[64,1,64,6],[64,7,64,31],[65,1,65,6],[65,7,65,31],[45,0,46,1],[45,2,46,31],[47,0,47,6],[47,7,47,31],[48,0,48,6],[48,7,48,31],[39,0,41,1],[39,2,41,23],[39,24,41,27],[39,28,41,29],[39,30,41,31],[42,0,44,1],[42,2,44,23],[42,24,44,27],[42,28,44,29],[42,30,44,31],[33,0,35,1],[33,2,35,23],[33,24,35,27],[33,28,35,29],[33,30,35,31],[36,0,38,1],[36,2,38,23],[36,24,38,27],[36,28,38,29],[36,30,38,31],[29,0,29,23],[29,24,29,27],[29,28,29,29],[29,30,29,31],[30,0,32,0],[30,1,32,1],[30,2,32,23],[30,24,32,27],[30,28,32,29],[30,30,32,31],[20,0,27,0],[20,1,20,6],[20,7,20,31],[21,1,23,6],[21,7,23,31],[24,1,26,6],[24,7,26,31],[27,1,27,6],[27,7,27,31],[5,32,7,33],[9,1,16,6],[9,7,16,31],[17,1,17,6],[17,7,17,31],[18,1,18,6],[18,7,18,31],[4,0,4,6],[4,7,4,31],[5,0,19,0],[5,1,8,6],[5,7,8,31],[19,1,19,6],[19,7,19,31],[0,0,0,3],[0,4,0,20],[0,21,0,27],[0,28,0,29],[0,30,0,31],[1,4,2,20],[1,21,2,27],[1,28,2,29],[1,30,2,31],[1,0,2,3]]}
["取組番号",null,null,null,"事業名",null,null,null,null,null,null,null,null,null,null,null,null,null,null,null,null,"作成年月日・担当",null,null,null,null,null,null,"重点",null,"新規"]
["1-4-5\n3-1-3\n3-5-4\n3-6-2",null,null,null,"児童への虐待対応・防止",null,null,null,null,null,null,null,null,null,null,null,null,null,null,null,null,"令和４年４月１日\n保健福祉課（こども・教育）"]
[]
[]
["項目",null,null,null,null,null,null,"内容"]
["事業・業務概要","目的\n（事業の背景を含む）",null,null,null,null,null,"核家族化の影響により家庭における養育能力の低下が懸念される昨今、コロナウィルス蔓延も相まって行政未把握のリスクが増加していると考えられる。子育て支援室として「養育能力に欠ける保護者へのサポート」「児童の性格、生活習慣、発達やいじめ等の相談および支援」「子育て、教育、福祉、行政など関係機関どうしの緊密な連携」を課題とし取り組みを行う。",null,null,null,null,null,null,null,null,null,null,null,null,null,null,null,null,null,null,null,null,null,null,null,null,"一覧へ戻る"]
[]
[]
[]
[null,"内容",null,null,null,null,null,"〇要保護児童対策地域協議会の運営\n・子育て支援室が事務局として調整機関の役割を担い、ケースの現状について関係各機関（学校、保育所、保健師、生活支援担当、こども相談センター、警察、消防、民生委員、主任児童委員等）がそれぞれの情報を共有。\n虐待レベルに応じた頻度にて実務者会議に諮り、リスク把握、主担当機関の確認、危険度、援助方針の見直しをおこなう。\n・児童虐待通告に占める割合が最も多いものは面前DVによる心理的虐待となっているため、\n面前DV事案（心理的虐待ケース）について、要対協登録ケースは、虐待レベルの再検討し、要対協未登録ケースは、こどもサポートネット事業等での関りを確認し、該当すればDV事案情報を共有し、支援方針策定の際に判断材料としていく。また、こども相談センターと面前DV事案の対応について、連携を密にする。\n・要保護児童対策地域協議会において協議・報告がなされた事項は「地域福祉推進会議」への報告を行う。\n児童虐待事例に関しては、大阪市児童福祉審議会児童虐待事例検証部会に大正区事例をあげて、その部会で検証する。また、部会で検証とならなかったケースについても、個別ケース検討会議でのスーパーバイザーの活用を図る。\n・DV相談\nDV相談へのケースワーク段階において要保護・要支援児童を把握し保護者への効果的支援を図っていく。\n\n〇家庭児童相談\n児童の性格、生活習慣、言語等の発達、いじめ、不登校、非行などに関する相談対応。発達障がいの早期発見。必要に応じ関係機関との情報共有および社会資源へのつなぎを行う。"]
[]
[]
[]
[]
[]
[]
[]
[null,"予算額（予算科目）",null,null,null,null,null,"・要対協…180千円（通信運搬費・消耗品費・旅費・報酬金）／R3年度同額\n・家庭児童相談…7,280千円（区CM：こども青少年局）／R3年度同額\n・乳幼児心理相談・・・2,393千円（区まち：報酬・旅費・消耗品費）"]
[null,"事業実施期間（回数）",null,null,null,null,null,"令和４年４月～令和５年３月"]
[null,"事業対象者（人数）",null,null,null,null,null,"児童（18歳未満）、児童に関係する機関・団体（保育・教育施設、小・中・高等学校、支援学校）"]
["委託関係","契約・入札方法"]
[null,"募集要項のポイント"]
[]
[]
[null,"仕様書のポイント"]
[]
[]
[null,"選考委員等選考方式"]
[]
["スケジュール（実施決裁、入札募集開始、説明会、選考会、事業の実施　等）",null,null,null,null,null,null,null,null,null,null,null,null,null,null,null,null,null,null,null,null,null,null,null,"広報スケジュール",null,null,null,"スケ",null,"作業"]
["（前年度）","1月～3月","実務者会議　１，２月１回開催（第４金曜日）３月２回開催（第２、第４金曜日）\n支援室会議　毎月２回開催（第2、第４金曜日）個別ケース会議（通年で随時開催 ）\n次年度就学予定児童の情報共有会議　家庭児童相談（通年で随時）",null,null,null,null,null,null,null,null,null,null,null,null,null,null,null,null,null,null,null,null,null,null,null,null,null,"〇",null,"〇"]
[]
[]
["4月～\n6月",null,"実務者会議　毎月１回開催（第４金曜日）\n支援室会議　毎月２回程度開催、個別ケース会議（通年で随時開催） \n家庭児童相談（通年で随時）\n",null,null,null,null,null,null,null,null,null,null,null,null,null,null,null,null,null,null,null,null,null,null,null,null,null,"〇",null,"〇"]
[]
[]
["7月～\n9月",null,"実務者会議　毎月１回開催（第４金曜日）\n支援室会議　毎月２回程度開催、個別ケース会議（通年で随時開催）\n代表者会議の開催\n家庭児童相談（通年で随時）",null,null,null,null,null,null,null,null,null,null,null,null,null,null,null,null,null,null,null,null,null,null,null,null,null,"〇",null,"〇"]
[]
[]
["10月～\n12月",null,"実務者会議　毎月１回開催（第４金曜日）\n支援室会議　毎月２回程度開催、個別ケース会議（通年で随時開催） \n家庭児童相談（通年で随時）里親月間\nオレンジリボンキャンペーン",null,null,null,null,null,null,null,null,null,null,null,null,null,null,null,null,null,null,null,null,null,"SNS、HPによる各キャンペーンの周知",null,null,null,"〇",null,"〇"]
[]
[]
["1月～\n3月",null,"実務者会議　毎月１回開催（第４金曜日）\n支援室会議　毎月２回程度開催、個別ケース会議（通年で随時開催 ）\n次年度就学予定児童の情報共有会議　家庭児童相談（通年で随時）",null,null,null,null,null,null,null,null,null,null,null,null,null,null,null,null,null,null,null,null,null,null,null,null,null,"〇",null,"〇"]
[]
[]
["備考",null,"家庭児童相談（通年で随時）個別ケース会議（通年で随時開催）"]
[]
["項目",null,null,null,null,null,null,"内容"]
["講座・イベント・会議名",null,null,null,null,null,null,"①代表者会議　②実務者会議　③支援室会議　④個別ケース検討会議"]
["イベント等開催関係","開催日時",null,null,null,null,null,"①８月　②毎月第４金曜日　③毎月２回程度　④随時　"]
[null,"開催場所",null,null,null,null,null,"区役所"]
[null,"区役所の主催等",null,null,null,null,null,"主催"]
[null,"その他主催団体・組織等",null,null,null,null,null,"保健福祉課（地域福祉・保健活動・生活支援）・こども相談センター\n・教育委員会・保育所・児童虐待防止協会・警察・民生委員・児童委員・配偶者暴力相談支援センター"]
[null,"共催団体・組織等",null,null,null,null,null,"―"]
[null,"後援団体・組織等",null,null,null,null,null,"―"]
[null,"目標事業規模",null,null,null,null,null,"―"]
[null,"その他留意事項",null,null,null,null,null,"―"]
[null,"イベント等\n当日タイムテーブル",null,null,null,null,null,"①虐待問題の認識向上と実務者会議等が円滑に行われる環境づくり\n　１４：００～要保護児童の状況について報告　１４：３０～令和４年度の取り組みについて　１５：００～意見交換\n②要対協に登録された全ケースのリスク管理及び新規ケースについての要対協登録にかかる検討\n　１４：００～新規ケース検討　１５：００継続ケース検討\n③要対協に登録されたケースのうち、軽微なケースの検討\n④子どもと家庭の情報把握、課題の整理とその解決に向けた具体的な支援内容の検討\n　児童の一時保護開始時、一時保護解除前、関係機関からの要請があった場合、その他子育て支援室が必要と判断した場合に開催する。\n　"]
[]
[]
[]
[]
[null,"挨拶者",null,null,null,null,null,"―"]
[null,"来賓紹介",null,null,null,null,null,"―"]
[null,"祝電紹介の方法",null,null,null,null,null,"―"]
[null,"動員の方法",null,null,null,null,null,"―"]
["その他他課との連携等",null,null,null,null,null,null,"―"]
["前年度実績",null,null,null,null,null,null,"・代表者会議　3月30日付け資料送付\n・実務者会議　年間１６回開催\n・個別ケース検討会議　５８件\n・虐待レベルの改善率  ４４％　・要対協登録件数　延べ２３５件・養護相談受理件数　１４１３件（うち虐待相談　１７０件） \n・家庭児童相談員対応数　要対協ケース５５件、家庭児童相談ケース６５件（うち継続支援 19件）（令和３年度）  \n・乳幼児心理相談数　144件"]
["業績目標",null,null,null,"実績",null,null,"代表者会議の開催（１回）\n実務者会議の開催（年間１２回）\n支援室会議の開催（毎月２回程度）\n個別ケース検討会議（一時保護開始後、一時保護解除前、その他要対協の進捗管理上情報共有や関係機関の役割分担を検討する必要が生じた際などに開催）\n家庭児童相談（新規相談・継続相談）",null,null,null,null,null,null,null,null,null,null,null,null,"代表者会議の開催（１回）\n実務者会議の開催（１２回）\n支援室会議の開催（３７回）\n個別ケース検討会議（４０件）\n家庭児童相談受理件数（６１２件うち虐待相談９４件、虐待以外の養護相談４３４件）\n",null,null,null,null,null,null,null,null,"自己評価"]
[null,null,null,null,null,null,null,null,null,null,null,null,null,null,null,null,null,null,null,null,null,null,null,null,null,null,null,null,null,"◎"]
[]
[]
["成果目標",null,null,null,"実績",null,null,"要保護児童対策地域協議会登録ケースについて\n・児童虐待にかかる危険度判断や支援内容の見直しを行い、１００％の進捗管理を実施する。\n・登録中のケースについて、改善率が前年度（４４％）を上回る状況。\n（基準日を年度初めと年度末に定め進行管理台帳の登録レベルを比較する）",null,null,null,null,null,null,null,null,null,null,null,null,"要対協登録件数　延べ２４８件\n・進捗管理実施　１００％\n・改善率　４０％（98/２４８）",null,null,null,null,null,null,null,null,"△"]
[]
[]
[]
[]
["中期展望",null,null,null,null,null,null,"児童に関わる関係機関（学校、保育所、幼稚園、保健師、生活支援、こども相談センター、警察等）の共通理解を促進し、代表者会議におけるそれぞれの役割の確認を通じて、具体的な事例における円滑な連携を確立する。"]
[]
[]
["成果目標が\n中期展望に\n寄与する理由",null,null,null,null,null,null,"要保護児童対策地域協議会登録ケースについて、確実な進捗管理がなされ、ケースが改善されることは、関係機関の連携がなされ支援が実行されたことの結果であるとともに、さらなる連携の確立につながることとなるため。"]
[]
[]
[]
[]
["SDGｓゴール",null,null,null,1,null,null,null,{"$f":"+IF(ISERROR(VLOOKUP($E86,[1]SDGｓ!$A$2:$B$18,2,0)),\"\",VLOOKUP($E86,[1]SDGｓ!$A$2:$B$18,2,0))","v":"貧困をなくそう"}]
[null,null,null,null,3,null,null,null,{"$f":"+IF(ISERROR(VLOOKUP($E87,[1]SDGｓ!$A$2:$B$18,2,0)),\"\",VLOOKUP($E87,[1]SDGｓ!$A$2:$B$18,2,0))","v":"すべての人に健康と福祉を"}]
[null,null,null,null,16,null,null,null,{"$f":"+IF(ISERROR(VLOOKUP($E88,[1]SDGｓ!$A$2:$B$18,2,0)),\"\",VLOOKUP($E88,[1]SDGｓ!$A$2:$B$18,2,0))","v":"平和と公正をすべての人に"}]
[]
["修正履歴"]

{"sheet":"3-1-4","index":6,"n_rows":90,"n_cols":34,"rows_kept":90,"cut":false,"hidden":false,"merged":[[0,0,0,3],[0,4,0,20],[0,21,0,27],[0,28,0,29],[0,30,0,31],[1,0,2,3],[1,4,2,20],[1,21,2,27],[1,28,2,29],[1,30,2,31],[4,0,4,6],[4,7,4,31],[5,0,19,0],[5,1,8,6],[5,7,8,31],[5,33,7,34],[9,1,16,6],[9,7,16,31],[17,1,17,6],[17,7,17,31],[18,1,18,6],[18,7,18,31],[19,1,19,6],[19,7,19,31],[20,0,27,0],[20,1,20,6],[20,7,20,31],[21,1,23,6],[21,7,23,31],[24,1,26,6],[30,0,32,0],[30,1,32,1],[30,2,32,23],[30,24,32,27],[30,28,32,29],[30,30,32,31],[24,7,26,31],[27,1,27,6],[27,7,27,31],[29,0,29,23],[29,24,29,27],[29,28,29,29],[29,30,29,31],[33,0,35,1],[33,2,35,23],[33,24,35,27],[33,28,35,29],[33,30,35,31],[36,0,38,1],[36,2,38,23],[36,24,38,27],[36,28,38,29],[36,30,38,31],[45,0,46,1],[45,2,46,31],[47,0,47,6],[47,7,47,31],[48,0,48,6],[48,7,48,31],[39,0,41,1],[39,2,41,23],[39,24,41,27],[39,28,41,29],[39,30,41,31],[42,0,44,1],[42,2,44,23],[42,24,44,27],[42,28,44,29],[42,30,44,31],[53,7,53,31],[54,1,54,6],[54,7,54,31],[55,1,55,6],[55,7,55,31],[56,1,56,6],[56,7,56,31],[49,0,65,0],[49,1,49,6],[49,7,49,31],[50,1,50,6],[50,7,50,31],[51,1,51,6],[51,7,51,31],[52,1,52,6],[52,7,52,31],[53,1,53,6],[64,1,64,6],[64,7,64,31],[65,1,65,6],[65,7,65,31],[66,0,66,6],[66,7,66,31],[57,1,61,6],[57,7,61,31],[62,1,62,6],[62,7,62,31],[63,1,63,6],[63,7,63,31],[72,0,76,3],[72,4,76,6],[72,7,76,19],[72,20,76,28],[72,29,76,31],[77,0,79,6],[77,7,79,31],[67,0,67,6],[67,7,67,31],[68,0,71,3],[68,4,71,6],[68,7,71,19],[68,20,71,28],[68,29,68,31],[69,29,71,31],[89,0,89,3],[89,4,89,31],[80,0,83,6],[80,7,83,31],[85,0,87,3],[85,4,85,7],[85,8,85,31],[86,4,86,7],[86,8,86,31],[87,4,87,7],[87,8,87,31]]}
["取組番号",null,null,null,"事業名",null,null,null,null,null,null,null,null,null,null,null,null,null,null,null,null,"作成年月日・担当",null,null,null,null,null,null,"重点",null,"新規"]
["1-4-6\n3-1-4",null,null,null,"子育てコンシェルジュ（利用者支援専門員）による子育て支援",null,null,null,null,null,null,null,null,null,null,null,null,null,null,null,null,"令和４年４月１日\n保健福祉課（こども・教育）"]
[]
[]
["項目",null,null,null,null,null,null,"内容"]
["事業・業務概要","目的\n（事業の背景を含む）",null,null,null,null,null,"利用者支援専門員を配置し、子ども及びその保護者等が、教育・保育施設や地域の子育て支援事業等を円滑に利用できるよう、身近な場所において、当事者目線の寄り添い型の支援を実施することを目的とする。",null,null,null,null,null,null,null,null,null,null,null,null,null,null,null,null,null,null,null,null,null,null,null,null,null,"一覧へ戻る"]
[]
[]
[]
[null,"内容",null,null,null,null,null,"＜子育てコンシェルジュ（利用者支援専門員）の業務＞\n・利用者の個別ニーズを把握し、それに基づいて情報の集約・提供、相談、利用支援等を行うことにより、教育・保育施設や地域の子育て支援事業等を円滑に利用できるよう実施する。\n・教育・保育施設や地域の子育て支援事業等を提供している関係機関との連絡・調整、連携、協働の体制づくりを行うとともに、地域の子育て資源の育成、地域課題の発見・共有、地域で必要な社会資源の開発等に努める。\n・リーフレットその他の広告媒体を活用し、積極的な広報・啓発活動を実施し、広くサービス利用者に周知を図る。"]
[]
[]
[]
[]
[]
[]
[]
[null,"予算額（予算科目）",null,null,null,null,null,"7,061千円　（区ＣＭ：こども青少年局）/7,061千円（R3）"]
[null,"事業実施期間（回数）",null,null,null,null,null,"令和4年4月１日～令和5年3月31日"]
[null,"事業対象者（人数）",null,null,null,null,null,"乳幼児と保護者、子育て支援関係者"]
["委託関係","契約・入札方法",null,null,null,null,null,"利用者支援専門員（会計年度任用職員・公募）"]
[null,"募集要項のポイント",null,null,null,null,null,"保育士・社会福祉士等"]
[]
[]
[null,"仕様書のポイント",null,null,null,null,null,"利用者支援事業、地域子育て支援拠点事業等の実務経験（１年以上）"]
[]
[]
[null,"選考委員等選考方式",null,null,null,null,null,"―"]
[]
["スケジュール（実施決裁、入札募集開始、説明会、選考会、事業の実施　等）",null,null,null,null,null,null,null,null,null,null,null,null,null,null,null,null,null,null,null,null,null,null,null,"広報スケジュール",null,null,null,"スケ",null,"作業"]
["（前年度）","1月～3月","・区内の子育て情報、関係施設の情報提供講座(事前予約制)",null,null,null,null,null,null,null,null,null,null,null,null,null,null,null,null,null,null,null,null,null,null,null,null,null,"〇",null,"〇"]
[]
[]
["4月～\n6月",null,"・区内の子育て情報、関係施設の情報提供\n・ＨＰ掲載の子育て情報の更新、配付用子育てマップ・子育てねっとの発行（６月）\n（各施設からの情報収集及び調査により発行準備）",null,null,null,null,null,null,null,null,null,null,null,null,null,null,null,null,null,null,null,null,null,"子育て応援フェアウィーク：区内関係施設へポスター掲示等の依頼(6月)",null,null,null,"〇",null,"〇"]
[]
[]
["7月～\n9月",null,"・区内の子育て情報、関係施設の情報提供講座(事前予約制)\n・利用者支援専門員アンケート実施（全区統一）\n・子育て応援フェアウィーク",null,null,null,null,null,null,null,null,null,null,null,null,null,null,null,null,null,null,null,null,null,"子育て応援フェアウィーク：広報紙掲載(7月)\n子育てコンシェルジュ：広報紙掲載及び保育所利用申込パンフレットへのチラシ折り込み(9月)",null,null,null,"〇",null,"〇"]
[]
[]
["10月～\n12月",null,"・保育所一斉入所受付面接時にニーズ等についてアンケートを実施（区独自）",null,null,null,null,null,null,null,null,null,null,null,null,null,null,null,null,null,null,null,null,null,null,null,null,null,"〇",null,"〇"]
[]
[]
["1月～\n3月",null,"・区内の子育て情報、関係施設の情報提供講座(事前予約制)",null,null,null,null,null,null,null,null,null,null,null,null,null,null,null,null,null,null,null,null,null,null,null,null,null,"〇",null,"〇"]
[]
[]
["備考",null,"《通年業務は以下のとおり》\n・区役所窓口や電話等を通じて、子ども・子育て支援新制度についての問い合わせや保育を希望する保護者の相談に応じるとともに、リーフレットやSNS等の媒体を活用し、保育・教育サービスに関する情報提供や案内及び積極的な広報を行う。\n・子育てサークルの巡回及び出張相談。\n・幼稚園、保育所新規入所にかかる相談・受付。\n・関係機関との連絡調整。\n・主任児童委員会への参加。（奇数月の第４火曜日１４:００～）\n・毎月定例で子ども・子育てプラザとの情報共有。"]
[]
["項目",null,null,null,null,null,null,"内容"]
["講座・イベント・会議名",null,null,null,null,null,null,"子育て応援フェアウィーク"]
["イベント等開催関係","開催日時",null,null,null,null,null,"７月～８月の概ね１カ月1週間程度開催予定"]
[null,"開催場所",null,null,null,null,null,"大正区役所内　さわやか広場"]
[null,"区役所の主催等",null,null,null,null,null,"主催"]
[null,"その他主催団体・組織等",null,null,null,null,null,"―"]
[null,"共催団体・組織等",null,null,null,null,null,"―"]
[null,"後援団体・組織等",null,null,null,null,null,"―"]
[null,"目標事業規模",null,null,null,null,null,"―"]
[null,"その他留意事項",null,null,null,null,null,"―"]
[null,"イベント等\n当日タイムテーブル",null,null,null,null,null,"・子育てねっと情報（地域の親子が参加できる施設・サークル等の紹介）\n・秋の保育施設一斉入所申込みに向けての情報発信（幼稚園・保育所・認定こども園他）\n・子育て支援情報の発信\n・うちわづくり、缶バッチづくり、絵本の読み聞かせ"]
[]
[]
[]
[]
[null,"挨拶者",null,null,null,null,null,"―"]
[null,"来賓紹介",null,null,null,null,null,"―"]
[null,"祝電紹介の方法",null,null,null,null,null,"―"]
[null,"動員の方法",null,null,null,null,null,"―"]
["その他他課との連携等",null,null,null,null,null,null,"―"]
["前年度実績",null,null,null,null,null,null,"・子育てコンシェルジュが応対した相談件数　681件（令和3年度）\n・保育所入所申込時に実施したアンケート調査の結果、相談に対する満足度　94％\n・子育て相談窓口が区役所にあることを知っている人の割合　57.8％"]
["業績目標",null,null,null,"実績",null,null,"子育てコンシェルジュが応対する相談件数　500件",null,null,null,null,null,null,null,null,null,null,null,null,"子育てコンシェルジュが応対した相談件数　595件",null,null,null,null,null,null,null,null,"自己評価"]
[null,null,null,null,null,null,null,null,null,null,null,null,null,null,null,null,null,null,null,null,null,null,null,null,null,null,null,null,null,"◎"]
[]
[]
["成果目標",null,null,null,"実績",null,null,"・区民意識調査において、子育て相談窓口が区役所にあることを知っている人の割合　65％以上\n・利用者満足度90％以上の維持(こども青少年局が実施する利用者(相談者)に対するアンケート調査結果による)",null,null,null,null,null,null,null,null,null,null,null,null,"・区民意識調査において、子育て相談窓口が区役所にあることを知っている人の割合：53.1％\n・こども青少年局が実施する利用者(相談者)に対するアンケート調査結果「大いに役に立った」「役に立った」合計98％",null,null,null,null,null,null,null,null,"×"]
[]
[]
[]
[]
["中期展望",null,null,null,null,null,null,"子育て世帯が安心して子育てできる環境をつくり、「住みたいまち」となっている状態をめざす。"]
[]
[]
["成果目標が\n中期展望に\n寄与する理由",null,null,null,null,null,null,"子育て相談窓口としてコンシェルジュが広く認知され、また、個々の相談を通じて利用者（相談者）の満足度が向上することは、本事業が子育て世帯の保護者の不安軽減につながり、ひいては大正区が安心して子育てができる環境となっていることとなるため。"]
[]
[]
[]
[]
["SDGｓゴール",null,null,null,1,null,null,null,"貧困をなくそう"]
[null,null,null,null,3,null,null,null,"すべての人に健康と福祉を"]
[null,null,null,null,16,null,null,null,"平和と公正をすべての人に"]
[]
["修正履歴",null,null,null,"イベント名、開催期間、内容の修正"]

{"sheet":"3-1-5","index":7,"n_rows":90,"n_cols":34,"rows_kept":90,"cut":false,"hidden":false,"merged":[[89,0,89,3],[89,4,89,31],[80,0,83,6],[80,7,83,31],[85,0,87,3],[85,4,85,7],[85,8,85,31],[86,4,86,7],[86,8,86,31],[87,4,87,7],[87,8,87,31],[77,0,79,6],[77,7,79,31],[67,0,67,6],[67,7,67,31],[68,0,71,3],[68,4,71,6],[68,7,71,19],[68,20,71,28],[68,29,68,31],[69,29,71,31],[66,0,66,6],[66,7,66,31],[57,1,61,6],[57,7,61,31],[62,1,62,6],[62,7,62,31],[63,1,63,6],[63,7,63,31],[72,0,76,3],[72,4,76,6],[72,7,76,19],[72,20,76,28],[72,29,76,31],[53,7,53,31],[54,1,54,6],[54,7,54,31],[55,1,55,6],[55,7,55,31],[56,1,56,6],[56,7,56,31],[49,0,65,0],[49,1,49,6],[49,7,49,31],[50,1,50,6],[50,7,50,31],[51,1,51,6],[51,7,51,31],[52,1,52,6],[52,7,52,31],[53,1,53,6],[64,1,64,6],[64,7,64,31],[65,1,65,6],[65,7,65,31],[45,0,46,1],[45,2,46,31],[47,0,47,6],[47,7,47,31],[48,0,48,6],[48,7,48,31],[39,0,41,1],[39,2,41,23],[39,24,41,27],[39,28,41,29],[39,30,41,31],[42,0,44,1],[42,2,44,23],[42,24,44,27],[42,28,44,29],[42,30,44,31],[33,0,35,1],[33,2,35,23],[33,24,35,27],[33,28,35,29],[33,30,35,31],[36,0,38,1],[36,2,38,23],[36,24,38,27],[36,28,38,29],[36,30,38,31],[29,0,29,23],[29,24,29,27],[29,28,29,29],[29,30,29,31],[30,0,32,0],[30,1,32,1],[30,2,32,23],[30,24,32,27],[30,28,32,29],[30,30,32,31],[20,0,27,0],[20,1,20,6],[20,7,20,31],[21,1,23,6],[21,7,23,31],[24,1,26,6],[24,7,26,31],[27,1,27,6],[27,7,27,31],[5,33,7,34],[9,1,16,6],[9,7,16,31],[17,1,17,6],[17,7,17,31],[18,1,18,6],[18,7,18,31],[4,0,4,6],[4,7,4,31],[5,0,19,0],[5,1,8,6],[5,7,8,31],[19,1,19,6],[19,7,19,31],[0,0,0,3],[0,4,0,20],[0,21,0,27],[0,28,0,29],[0,30,0,31],[1,4,2,20],[1,21,2,27],[1,28,2,29],[1,30,2,31],[1,0,2,3]]}
["取組番号",null,null,null,"事業名",null,null,null,null,null,null,null,null,null,null,null,null,null,null,null,null,"作成年月日・担当",null,null,null,null,null,null,"重点",null,"新規"]
["3-1-5\n3-5-3\n3-6-1",null,null,null,"「こどもサポートネット」の実施",null,null,null,null,null,null,null,null,null,null,null,null,null,null,null,null,"令和４年４月１日\n保健福祉課（こども・教育）"]
[]
[]
["項目",null,null,null,null,null,null,"内容"]
["事業・業務概要","目的\n（事業の背景を含む）",null,null,null,null,null,"子どもの生活に関する実態調査から「①困窮度の高い子育て世帯には複合的な課題がある。」「②諸施策はあるが十分に届かず適切な支援に至っていない。」ことが明らかになり、教育分野と福祉分野が連携した総合的な支援が必要となっている。\n関係機関と十分連携を図りこどもサポートネットを適切に実施することにより、支援が必要なこども（世帯）を発見し適切な支援につなげていく。",null,null,null,null,null,null,null,null,null,null,null,null,null,null,null,null,null,null,null,null,null,null,null,null,null,"一覧へ戻る"]
[]
[]
[]
[null,"内容",null,null,null,null,null,"子どもたちが多くの時間を過ごす学校において、支援の必要な子ども（世帯）を発見する仕組みを活用し、必要な支援（教育的支援・福祉的支援・地域による関わり）に繋げていく。\n1．区役所、学校、地域、その他支援機関による情報共有およびPDCAの実行。\n（１）各学校において全児童生徒を対象にスクリーニングシートを作成し、課題抽出後、スクリーニング会議Ⅰにより支援対象者を選定。\n　　対象者について、スクリーニング会議Ⅱにおいて支援方針の策定（P）。\n（２）推進員およびスクールソーシャルワーカー（SSW）による支援の実施（D）。\n（３）スクリーニング会議Ⅱによる支援結果の検証（C）。\n（４）課題の再抽出および支援方針の更新（A）。\n\n2．区教育担当と連携した不登校対策の推進\n令和4年度新規事業の「こどもの居場所づくり支援」について、具体的な取組み案等を検討する際、こどもサポートネット推進員も主体的に参画していく。\n\n3．区採用ＳＳＷは局採用ＳＳＷとこどもサポート推進員を総括し関係機関等との連絡調整、要保護児童対策地域協議会実務者会議等へ出席する。"]
[]
[]
[]
[]
[]
[]
[]
[null,"予算額（予算科目）",null,null,null,null,null,"18,235千円（区ＣＭ：こども青少年局）／R3年度同額"]
[null,"事業実施期間（回数）",null,null,null,null,null,"令和４年４月～令和５年３月"]
[null,"事業対象者（人数）",null,null,null,null,null,"区内児童、生徒"]
["委託関係","契約・入札方法"]
[null,"募集要項のポイント"]
[]
[]
[null,"仕様書のポイント"]
[]
[]
[null,"選考委員等選考方式"]
[]
["スケジュール（実施決裁、入札募集開始、説明会、選考会、事業の実施　等）",null,null,null,null,null,null,null,null,null,null,null,null,null,null,null,null,null,null,null,null,null,null,null,"広報スケジュール",null,null,null,"スケ",null,"作業"]
["（前年度）","1月～3月","・各学校においてスクリーニングシートを作成（随時）\n・各校でスクリーニング会議Ⅱを開催　・区役所おいてアセスメントを実施\n・個別支援の実施\n・次年度就学予定児童の情報共有会議",null,null,null,null,null,null,null,null,null,null,null,null,null,null,null,null,null,null,null,null,null,null,null,null,null,"〇",null,"〇"]
[]
[]
["4月～\n6月",null,"・各学校においてスクリーニングシートを作成（随時）\n・各校でスクリーニング会議Ⅱを開催　・区役所おいてアセスメントを実施\n・個別支援の実施\n",null,null,null,null,null,null,null,null,null,null,null,null,null,null,null,null,null,null,null,null,null,"学校へのチラシ配付",null,null,null,"〇",null,"〇"]
[]
[]
["7月～\n9月",null,"・各学校においてスクリーニングシートを作成（随時）\n・各校でスクリーニング会議Ⅱを開催　・区役所おいてアセスメントを実施\n・個別支援の実施\n",null,null,null,null,null,null,null,null,null,null,null,null,null,null,null,null,null,null,null,null,null,null,null,null,null,"〇",null,"〇"]
[]
[]
["10月～\n12月",null,"・各学校においてスクリーニングシートを作成（随時）\n・各校でスクリーニング会議Ⅱを開催　・区役所おいてアセスメントを実施\n・個別支援の実施\n",null,null,null,null,null,null,null,null,null,null,null,null,null,null,null,null,null,null,null,null,null,null,null,null,null,"〇",null,"〇"]
[]
[]
["1月～\n3月",null,"・各学校においてスクリーニングシートを作成（随時）\n・各校でスクリーニング会議Ⅱを開催　・区役所おいてアセスメントを実施\n・個別支援の実施\n・次年度就学予定児童の情報共有会議\n",null,null,null,null,null,null,null,null,null,null,null,null,null,null,null,null,null,null,null,null,null,null,null,null,null,"〇",null,"〇"]
[]
[]
["備考"]
[]
["項目",null,null,null,null,null,null,"内容"]
["講座・イベント・会議名",null,null,null,null,null,null,"スクリーニング会議Ⅱ"]
["イベント等開催関係","開催日時",null,null,null,null,null,"定期開催"]
[null,"開催場所",null,null,null,null,null,"各校"]
[null,"区役所の主催等",null,null,null,null,null,"主催"]
[null,"その他主催団体・組織等"]
[null,"共催団体・組織等",null,null,null,null,null,"―"]
[null,"後援団体・組織等",null,null,null,null,null,"―"]
[null,"目標事業規模",null,null,null,null,null,"―"]
[null,"その他留意事項",null,null,null,null,null,"―"]
[null,"イベント等\n当日タイムテーブル",null,null,null,null,null,"①スクリーニングシート作成（学校）\n②スクリーニング会議Ⅰ（学校）\n③学校・ＳＳＷ・推進員打ち合わせ\n④スクリーニング会議Ⅱ（前回ケース振り返り・ケース検討）\n（構成：区役所（子育て支援室・区ＳＳＷ・ＳＳＷ・推進員・ＳＣ・家庭児童相談員・生活困窮者自立支援事業者・学習登校支援事業者）、学校（校長・教頭・養護教諭・担任等）、地域（民生委員・児童委員・主任児童委員）\n⑤児童生徒・家庭への支援"]
[]
[]
[]
[]
[null,"挨拶者",null,null,null,null,null,"―"]
[null,"来賓紹介",null,null,null,null,null,"―"]
[null,"祝電紹介の方法",null,null,null,null,null,"―"]
[null,"動員の方法",null,null,null,null,null,"―"]
["その他他課との連携等",null,null,null,null,null,null,"学校、地域、関係機関等"]
["前年度実績",null,null,null,null,null,null,"・小学校全校・中学校全校で全件把握（868件）\n・把握ケース全件支援方針決定\n・解決、好転した件数450件 改善率51.3％"]
["業績目標",null,null,null,"実績",null,null,"各校（小学校10校、中学校4校）単位でアセスメント会議を実施し、スクリーニングシートにより支援が必要とされた児童全てを具体支援先へ繋ぐ。",null,null,null,null,null,null,null,null,null,null,null,null,"対象児童数４２９件\n支援に繋がった率１００％",null,null,null,null,null,null,null,null,"自己評価"]
[null,null,null,null,null,null,null,null,null,null,null,null,null,null,null,null,null,null,null,null,null,null,null,null,null,null,null,null,null,"〇"]
[]
[]
["成果目標",null,null,null,"実績",null,null,"スクリーニング会議Ⅰにより抽出された児童・生徒の状況を把握、スクリーニング会議Ⅱにて支援の方向性を決定し個別支援を行った結果解決、好転したケースの割合を前年度改善率の51.3％より増加させる。",null,null,null,null,null,null,null,null,null,null,null,null,"解決（終結）、好転したケース１８１件\n改善率　４２％",null,null,null,null,null,null,null,null,"×"]
[]
[]
[]
[]
["中期展望",null,null,null,null,null,null,"支援が必要とされるこどもと世帯数を減少させる。"]
[]
[]
["成果目標が\n中期展望に\n寄与する理由",null,null,null,null,null,null,"スクリーニング会議の決定に基づく支援により、状況が好転した支援の必要なこどもが増加していくことで、個々の支援が必要な度合いは下がり、ひいては支援が必要とされるこどもと世帯数の減少につながるため。"]
[]
[]
[]
[]
["SDGｓゴール",null,null,null,1,null,null,null,{"$f":"+IF(ISERROR(VLOOKUP($E86,[2]SDGｓ!$A$2:$B$18,2,0)),\"\",VLOOKUP($E86,[2]SDGｓ!$A$2:$B$18,2,0))","v":"貧困をなくそう"}]
[null,null,null,null,3,null,null,null,{"$f":"+IF(ISERROR(VLOOKUP($E87,[2]SDGｓ!$A$2:$B$18,2,0)),\"\",VLOOKUP($E87,[2]SDGｓ!$A$2:$B$18,2,0))","v":"すべての人に健康と福祉を"}]
[null,null,null,null,16,null,null,null,{"$f":"+IF(ISERROR(VLOOKUP($E88,[2]SDGｓ!$A$2:$B$18,2,0)),\"\",VLOOKUP($E88,[2]SDGｓ!$A$2:$B$18,2,0))","v":"平和と公正をすべての人に"}]
[]
["修正履歴"]

{"sheet":"3-1-6","index":8,"n_rows":90,"n_cols":34,"rows_kept":90,"cut":false,"hidden":false,"merged":[[89,0,89,3],[89,4,89,31],[80,0,83,6],[80,7,83,31],[85,0,87,3],[85,4,85,7],[85,8,85,31],[86,4,86,7],[86,8,86,31],[87,4,87,7],[87,8,87,31],[77,0,79,6],[77,7,79,31],[67,0,67,6],[67,7,67,31],[68,0,71,3],[68,4,71,6],[68,7,71,19],[68,20,71,28],[68,29,68,31],[69,29,71,31],[66,0,66,6],[66,7,66,31],[57,1,61,6],[57,7,61,31],[62,1,62,6],[62,7,62,31],[63,1,63,6],[63,7,63,31],[72,0,76,3],[72,4,76,6],[72,7,76,19],[72,20,76,28],[72,29,76,31],[53,7,53,31],[54,1,54,6],[54,7,54,31],[55,1,55,6],[55,7,55,31],[56,1,56,6],[56,7,56,31],[49,0,65,0],[49,1,49,6],[49,7,49,31],[50,1,50,6],[50,7,50,31],[51,1,51,6],[51,7,51,31],[52,1,52,6],[52,7,52,31],[53,1,53,6],[64,1,64,6],[64,7,64,31],[65,1,65,6],[65,7,65,31],[45,0,46,1],[45,2,46,31],[47,0,47,6],[47,7,47,31],[48,0,48,6],[48,7,48,31],[39,0,41,1],[39,2,41,23],[39,24,41,27],[39,28,41,29],[39,30,41,31],[42,0,44,1],[42,2,44,23],[42,24,44,27],[42,28,44,29],[42,30,44,31],[33,0,35,1],[33,2,35,23],[33,24,35,27],[33,28,35,29],[33,30,35,31],[36,0,38,1],[36,2,38,23],[36,24,38,27],[36,28,38,29],[36,30,38,31],[29,0,29,23],[29,24,29,27],[29,28,29,29],[29,30,29,31],[30,0,32,0],[30,1,32,1],[30,2,32,23],[30,24,32,27],[30,28,32,29],[30,30,32,31],[20,0,27,0],[20,1,20,6],[20,7,20,31],[21,1,23,6],[21,7,23,31],[24,1,26,6],[24,7,26,31],[27,1,27,6],[27,7,27,31],[5,33,7,34],[9,1,16,6],[9,7,16,31],[17,1,17,6],[17,7,17,31],[18,1,18,6],[18,7,18,31],[4,0,4,6],[4,7,4,31],[5,0,19,0],[5,1,8,6],[5,7,8,31],[19,1,19,6],[19,7,19,31],[0,0,0,3],[0,4,0,20],[0,21,0,27],[0,28,0,29],[0,30,0,31],[1,4,2,20],[1,21,2,27],[1,28,2,29],[1,30,2,31],[1,0,2,3]]}
["取組番号",null,null,null,"事業名",null,null,null,null,null,null,null,null,null,null,null,null,null,null,null,null,"作成年月日・担当",null,null,null,null,null,null,"重点",null,"新規"]
["3-1-6\n3-6-7",null,null,null,"就学前（４・５歳児）こどもサポートネット事業（大正区版ネウボラ）",null,null,null,null,null,null,null,null,null,null,null,null,null,null,null,null,"令和４年４月１日\n保健福祉課（こども・教育）",null,null,null,null,null,null,"〇"]
[]
[]
["項目",null,null,null,null,null,null,"内容"]
["事業・業務概要","目的\n（事業の背景を含む）",null,null,null,null,null," 妊娠期から３歳までは、母子手帳の交付にはじまり、各種健診などの母子保健制度により、また、小学生からはこどもサポートネットにより、こどもの健康や生活状況などを把握している。\n 現行制度では４・５歳児の状況把握が他の年齢と比べると不十分となっている。\n この年齢のこどもの状況を把握(全件)することで、抱える課題を早期に発見し、必要な支援につなげる必要がある。\n こうしたことから、妊娠期から中学生までの間、切れ目のない支援をすることで、児童虐待の未然防止を図り、重大虐待ゼロをめざす。",null,null,null,null,null,null,null,null,null,null,null,null,null,null,null,null,null,null,null,null,null,null,null,null,null,"一覧へ戻る"]
[]
[]
[]
[null,"内容",null,null,null,null,null,"１．令和２年度より事業を開始し、４・５歳児の健康状況や生活状況を把握し、スクリーニング会議（ⅰ・ⅱ）を1回開催、情報共有し、支援につなげた。今後の課題としては、会議の開催回数や支援について進捗状況の共有や継続した支援が不十分な点がある。\nそのため、令和４年度はスクリーニング会議ⅱを春～冬にかけて順次調整後開催、保育所・幼稚園への訪問、情報共有等連携を強化図り、支援を継続的に行う体制の構築を行う。【試行期間：R2～R4年度】\n（１）発見の場の設置⇒ 保育所（園）や幼稚園において、スクリーニング会議ⅰを実施。\n（２）発見ツールの導入⇒保育所（園）や幼稚園において全児童生徒を対象にしてスクリーニングシートを作成し、未就園については保健師が家庭訪問し、保健指導と相談並びに記録票を作成し課題発見に活用する。\n（３）情報共有会議の実施⇒次年度就学児童（世帯）についての情報共有を目的に就学予定小学校ごとに実施する。\n\n２．区役所、保育所（園）や幼稚園、地域、支援機関による情報共有および連携を強化しPDCAの実行。\n（１）スクリーニングシートによる課題抽出およびスクリーニング会議ⅱによる支援方針の策定（P）。\n（２）推進員および保健師等具体支援機関による支援の実施（D）。\n（３）スクリーニング会議ⅱによる支援結果の検証（C）。\n（４）課題の再抽出および支援方針の更新（A）。\n\n【情報発信】\n就学前こどもサポートネット事業をはじめ、子育てに関する内容（具体的な相談先など）を\n情報発信するとともに、「大正区版ネウボラ」について広く区民に広報することで、児童虐待に対する意識の醸成をめざす。"]
[]
[]
[]
[]
[]
[]
[]
[null,"予算額（予算科目）",null,null,null,null,null,"7,７33千円(報酬・其他委員報酬（区長）（「重大な児童虐待ゼロ」に向けた区重点）"]
[null,"事業実施期間（回数）",null,null,null,null,null,"　令和4年4月1日～令和5年3月31日"]
[null,"事業対象者（人数）",null,null,null,null,null,"区内4.5歳児"]
["委託関係","契約・入札方法",null,null,null,null,null,"4・5歳児スタートアップ推進員（会計年度任用職員）　公募"]
[null,"募集要項のポイント"]
[]
[]
[null,"仕様書のポイント"]
[]
[]
[null,"選考委員等選考方式"]
[]
["スケジュール（実施決裁、入札募集開始、説明会、選考会、事業の実施　等）",null,null,null,null,null,null,null,null,null,null,null,null,null,null,null,null,null,null,null,null,null,null,null,"広報スケジュール",null,null,null,"スケ",null,"作業"]
["（前年度）","1月～3月","スクリーニング会議の開催\n事前アセスメントの実施　個別支援の実施\n・園へのアンケートを実施し,事業にかかる課題抽出、整理をし来年度実施の準備\n",null,null,null,null,null,null,null,null,null,null,null,null,null,null,null,null,null,null,null,null,null,null,null,null,null,"〇",null,"〇"]
[]
[]
["4月～\n6月",null,"・各園においてスクリーニングシートを作成（随時：スクリーニング会議ⅰ）\n・園を訪問し、情報収集や児童の状況把握（随時）\n・区役所おいてアセスメントを実施・スクリーニング会議ⅱを開催\n・個別支援の実施　",null,null,null,null,null,null,null,null,null,null,null,null,null,null,null,null,null,null,null,null,null,"事業チラシの配付",null,null,null,"〇",null,"〇"]
[]
[]
["7月～\n9月",null,"・各園においてスクリーニングシートを作成（随時：スクリーニング会議ⅰ）\n・園を訪問し、情報収集や児童の状況把握（随時）\n・区役所おいてアセスメントを実施・スクリーニング会議ⅱ開催\n・個別支援の実施　・3年間の事業の総括及び令和５年度以降の本事業の方向性について検討",null,null,null,null,null,null,null,null,null,null,null,null,null,null,null,null,null,null,null,null,null,"ホームページ",null,null,null,"〇",null,"〇"]
[]
[]
["10月～\n12月",null,"・各園においてスクリーニングシートを作成（随時：スクリーニング会議ⅰ）\n・園を訪問し、支援の進捗、情報共有、児童の状況把握（随時）\n・区役所おいてアセスメントを実施・スクリーニング会議ⅱを開催\n・個別支援の実施",null,null,null,null,null,null,null,null,null,null,null,null,null,null,null,null,null,null,null,null,null,"広報紙",null,null,null,"〇",null,"〇"]
[]
[]
["1月～\n3月",null,"・園を訪問し、支援の進捗、情報共有、児童の状況把握（随時）\n・区役所おいてアセスメントを実施・就学小学校ごとの情報共有会議を開催\n・個別支援の実施",null,null,null,null,null,null,null,null,null,null,null,null,null,null,null,null,null,null,null,null,null,null,null,null,null,"〇",null,"〇"]
[]
[]
["備考"]
[]
["項目",null,null,null,null,null,null,"内容"]
["講座・イベント・会議名",null,null,null,null,null,null,"―"]
["イベント等開催関係","開催日時",null,null,null,null,null,"―"]
[null,"開催場所",null,null,null,null,null,"―"]
[null,"区役所の主催等",null,null,null,null,null,"―"]
[null,"その他主催団体・組織等",null,null,null,null,null,"―"]
[null,"共催団体・組織等",null,null,null,null,null,"―"]
[null,"後援団体・組織等",null,null,null,null,null,"―"]
[null,"目標事業規模",null,null,null,null,null,"―"]
[null,"その他留意事項",null,null,null,null,null,"―"]
[null,"イベント等\n当日タイムテーブル",null,null,null,null,null,"―"]
[]
[]
[]
[]
[null,"挨拶者",null,null,null,null,null,"―"]
[null,"来賓紹介",null,null,null,null,null,"―"]
[null,"祝電紹介の方法",null,null,null,null,null,"―"]
[null,"動員の方法",null,null,null,null,null,"―"]
["その他他課との連携等",null,null,null,null,null,null,"保健福祉課（保健活動）及び（生活支援）、窓口サービス課（就学担当）"]
["前年度実績",null,null,null,null,null,null,"\n６月～提出されたスクリーニングシートに基づき区役所での事前アセスメントを実施。\n７月～令和４年３月　1４園、1４４名に対しスクリーニング会議ⅱを1～２回、計１９回開催\n1４４名全員の支援方針を決定し具体支援機関へつなげる。\n支援例として、登園支援、発達相談、検査や療育利用、家庭支援等を行う。\n5歳児、73名を各就学予定小学校に情報共有を行い、継続した支援へつなぐことでしくみの構築を行った"]
["業績目標",null,null,null,"実績",null,null,"スクリーニング会議ⅱを2回、情報共有会議を1回開催する",null,null,null,null,null,null,null,null,null,null,null,null,"区内１６園中、ニーズのあった15園に対し、スクリーニング会議ⅱを28回、情報共有会議を10回開催",null,null,null,null,null,null,null,null,"自己評価"]
[null,null,null,null,null,null,null,null,null,null,null,null,null,null,null,null,null,null,null,null,null,null,null,null,null,null,null,null,null,"◎"]
[]
[]
["成果目標",null,null,null,"実績",null,null,"園ごと、未就園児ごとのスクリーニングにより把握された要支援児童を具体支援機関（園、保健師、小学校等）へつなぐ割合\n100％",null,null,null,null,null,null,null,null,null,null,null,null,"支援児童を具体支援機関（園、保健師、小学校等）へつないだ割合\n100％",null,null,null,null,null,null,null,null,"〇"]
[]
[]
[]
[]
["中期展望",null,null,null,null,null,null,"妊娠期から中学生までのすべてのこどもの健康状態を把握し切れ目のない子育て支援を行う「大正区版ネウボラ」を構築、そのしくみを活用し切れ目のない支援・児童虐待の未然防止を図り、重大虐待ゼロを中期展望とする"]
[]
[]
["成果目標が\n中期展望に\n寄与する理由",null,null,null,null,null,null,"課題を抱える幼児と世帯を必要とする支援につなげ、既存のこどもｻﾎﾟｰﾄﾈｯﾄ事業へ引継ぎ継続した支援が行える体制を構築することで児童虐待のリスクになりうる課題を早期に発見し、早期の支援、継続した支援がおこなえることが中期展望に寄与する。"]
[]
[]
[]
[]
["SDGｓゴール",null,null,null,4,null,null,null,{"$f":"+IF(ISERROR(VLOOKUP($E86,[3]SDGｓ!$A$2:$B$18,2,0)),\"\",VLOOKUP($E86,[3]SDGｓ!$A$2:$B$18,2,0))","v":"質の高い教育をみんなに"}]
[null,null,null,null,5,null,null,null,{"$f":"+IF(ISERROR(VLOOKUP($E87,[3]SDGｓ!$A$2:$B$18,2,0)),\"\",VLOOKUP($E87,[3]SDGｓ!$A$2:$B$18,2,0))","v":"ジェンダー平等を実現しよう"}]
[null,null,null,null,10,null,null,null,{"$f":"+IF(ISERROR(VLOOKUP($E88,[3]SDGｓ!$A$2:$B$18,2,0)),\"\",VLOOKUP($E88,[3]SDGｓ!$A$2:$B$18,2,0))","v":"人や国の不平等をなくそう"}]
[]
["修正履歴"]

{"sheet":"3-1-7","index":9,"n_rows":90,"n_cols":34,"rows_kept":90,"cut":false,"hidden":false,"merged":[[89,0,89,3],[89,4,89,31],[80,0,83,6],[80,7,83,31],[85,0,87,3],[85,4,85,7],[85,8,85,31],[86,4,86,7],[86,8,86,31],[87,4,87,7],[87,8,87,31],[77,0,79,6],[77,7,79,31],[67,0,67,6],[67,7,67,31],[68,0,71,3],[68,4,71,6],[68,7,71,19],[68,20,71,28],[68,29,68,31],[69,29,71,31],[66,0,66,6],[66,7,66,31],[57,1,61,6],[57,7,61,31],[62,1,62,6],[62,7,62,31],[63,1,63,6],[63,7,63,31],[72,0,76,3],[72,4,76,6],[72,7,76,19],[72,20,76,28],[72,29,76,31],[53,7,53,31],[54,1,54,6],[54,7,54,31],[55,1,55,6],[55,7,55,31],[56,1,56,6],[56,7,56,31],[49,0,65,0],[49,1,49,6],[49,7,49,31],[50,1,50,6],[50,7,50,31],[51,1,51,6],[51,7,51,31],[52,1,52,6],[52,7,52,31],[53,1,53,6],[64,1,64,6],[64,7,64,31],[65,1,65,6],[65,7,65,31],[45,0,46,1],[45,2,46,31],[47,0,47,6],[47,7,47,31],[48,0,48,6],[48,7,48,31],[39,0,41,1],[39,2,41,23],[39,24,41,27],[39,28,41,29],[39,30,41,31],[42,0,44,1],[42,2,44,23],[42,24,44,27],[42,28,44,29],[42,30,44,31],[33,0,35,1],[33,2,35,23],[33,24,35,27],[33,28,35,29],[33,30,35,31],[36,0,38,1],[36,2,38,23],[36,24,38,27],[36,28,38,29],[36,30,38,31],[29,0,29,23],[29,24,29,27],[29,28,29,29],[29,30,29,31],[30,0,32,0],[30,1,32,1],[30,2,32,23],[30,24,32,27],[30,28,32,29],[30,30,32,31],[20,0,27,0],[20,1,20,6],[20,7,20,31],[21,1,23,6],[21,7,23,31],[24,1,26,6],[24,7,26,31],[27,1,27,6],[27,7,27,31],[5,33,7,34],[9,1,16,6],[9,7,16,31],[17,1,17,6],[17,7,17,31],[18,1,18,6],[18,7,18,31],[4,0,4,6],[4,7,4,31],[5,0,19,0],[5,1,8,6],[5,7,8,31],[19,1,19,6],[19,7,19,31],[0,0,0,3],[0,4,0,20],[0,21,0,27],[0,28,0,29],[0,30,0,31],[1,4,2,20],[1,21,2,27],[1,28,2,29],[1,30,2,31],[1,0,2,3]]}
["取組番号",null,null,null,"事業名",null,null,null,null,null,null,null,null,null,null,null,null,null,null,null,null,"作成年月日・担当",null,null,null,null,null,null,"重点",null,"新規"]
[{"$f":"RIGHT(CELL(\"filename\",A4),LEN(CELL(\"filename\",A4))-FIND(\"]\",CELL(\"filename\",A4)))","v":"3-1-7"},null,null,null,"保育所入所事務",null,null,null,null,null,null,null,null,null,null,null,null,null,null,null,null,"令和４年４月１日\n保健福祉課（こども・教育）"]
[]
[]
["項目",null,null,null,null,null,null,"内容"]
["事業・業務概要","目的\n（事業の背景を含む）",null,null,null,null,null,"　小学校就学前の子どもが、保護者の就労又は疾病その他の事由により家庭において必要な保育を受けることが困難である場合、子ども・子育て支援法、児童福祉法等に基づき保育施設を利用することができる。近年の保護者ニーズや働き方の多様化に対応するため、利用調整の厳格性は維持しつつも柔軟性も求められている。大正区においては、待機児童数は０名ではあるが、待機児童とはならないとはいえ２６名（令和４年４月集計）の入所保留児童が存在する。保護者の意向もあるが、一人でも多くの児童が希望に近い形で保育施設に入所できることができるよう、公平で円滑な保育施設入所事務を行うことを目的とする。",null,null,null,null,null,null,null,null,null,null,null,null,null,null,null,null,null,null,null,null,null,null,null,null,null,"一覧へ戻る"]
[]
[]
[]
[null,"内容",null,null,null,null,null,"・事務内容は、こども青少年局により定められているが、区民の誰もが納得できる運用が可能となるよう、利用者向け説明資料等の作成・配布、利用者支援専門員による相談を行い、入所受付面談等で入所ニーズや状況を把握し利用調整を行う。また、企業主導型保育事業の活用、保育無償化制度の周知、説明を行う。\n・一斉入所受付同時面接が円滑に実施できるよう、保育所等の意見も取り入れ実施する。"]
[]
[]
[]
[]
[]
[]
[]
[null,"予算額（予算科目）",null,null,null,null,null,"―"]
[null,"事業実施期間（回数）",null,null,null,null,null,"令和４年４月１日～令和５年３月３１日"]
[null,"事業対象者（人数）",null,null,null,null,null,"小学校就学前のこどもを持つ保護者"]
["委託関係","契約・入札方法",null,null,null,null,null,"―"]
[null,"募集要項のポイント",null,null,null,null,null,"―"]
[]
[]
[null,"仕様書のポイント",null,null,null,null,null,"―"]
[]
[]
[null,"選考委員等選考方式",null,null,null,null,null,"―"]
[]
["スケジュール（実施決裁、入札募集開始、説明会、選考会、事業の実施　等）",null,null,null,null,null,null,null,null,null,null,null,null,null,null,null,null,null,null,null,null,null,null,null,"広報スケジュール",null,null,null,"スケ",null,"作業"]
["（前年度）","1月～3月","・二次募集の受付・面接・利用調整(１月４日～２月10日)\n・二次利用調整及び調整結果通知書・支給認定証（２月２８日)\n・現況届配付・回収",null,null,null,null,null,null,null,null,null,null,null,null,null,null,null,null,null,null,null,null,null,"保育所空き情報のHPへの掲載及びLINE等での周知(毎月)",null,null,null,"〇",null,"〇"]
[]
[]
["4月～\n6月",null,"・利用者負担額決定通知書配付（４月）\n",null,null,null,null,null,null,null,null,null,null,null,null,null,null,null,null,null,null,null,null,null,"保育所空き情報のHPへの掲載及びLINE等での周知(毎月)",null,null,null,"〇",null,"〇"]
[]
[]
["7月～\n9月",null,"・一次募集に向けた回覧ビラ・ポスター等作成・配付\n・一斉入所申込方法の広報紙掲載手続（７月）\n・利用者負担額変更決定通知書配付（８月）\n・一次募集申込書の配付・説明（９月）",null,null,null,null,null,null,null,null,null,null,null,null,null,null,null,null,null,null,null,null,null,"保育所空き情報のHPへの掲載及びLINE等での周知(毎月)",null,null,null,"〇",null,"〇"]
[]
[]
["10月～\n12月",null,"・一次募集申込書の配付・受付・面接（９月下旬～１０月中旬）\n・障がい児宅への訪問調査\n・不足書類、希望変更届受付",null,null,null,null,null,null,null,null,null,null,null,null,null,null,null,null,null,null,null,null,null,"保育所空き情報のHPへの掲載及びLINE等での周知(毎月)",null,null,null,"〇",null,"〇"]
[]
[]
["1月～\n3月",null,"・一次利用調整及び調整結果通知書・支給認定証発送（１月上旬）\n・二次募集の受付・面接・利用調整(１月上旬～２月中旬)\n・二次利用調整及び調整結果通知書・支給認定証発送（２月下旬)\n・現況届配付・回収",null,null,null,null,null,null,null,null,null,null,null,null,null,null,null,null,null,null,null,null,null,"保育所空き情報のHPへの掲載及びLINE等での周知(毎月)",null,null,null,"〇",null,"〇"]
[]
[]
["備考"]
[]
["項目",null,null,null,null,null,null,"内容"]
["講座・イベント・会議名",null,null,null,null,null,null,"保育所一斉入所受付面接"]
["イベント等開催関係","開催日時",null,null,null,null,null,"令和４年９月下旬～１０月中旬"]
[null,"開催場所",null,null,null,null,null,"区役所・保育所"]
[null,"区役所の主催等",null,null,null,null,null,"主催"]
[null,"その他主催団体・組織等",null,null,null,null,null,"―"]
[null,"共催団体・組織等",null,null,null,null,null,"―"]
[null,"後援団体・組織等",null,null,null,null,null,"―"]
[null,"目標事業規模",null,null,null,null,null,"―"]
[null,"その他留意事項",null,null,null,null,null,"―"]
[null,"イベント等\n当日タイムテーブル",null,null,null,null,null,"―"]
[]
[]
[]
[]
[null,"挨拶者",null,null,null,null,null,"―"]
[null,"来賓紹介",null,null,null,null,null,"―"]
[null,"祝電紹介の方法",null,null,null,null,null,"―"]
[null,"動員の方法",null,null,null,null,null,"―"]
["その他他課との連携等",null,null,null,null,null,null,"―"]
["前年度実績",null,null,null,null,null,null,"令和３年度区ＨＰ保育施設空き状況掲載回数　１２回\n令和４年４月１日時点待機児童数　０名"]
["業績目標",null,null,null,"実績",null,null,"区ＨＰで保育施設空き状況を毎月掲載　年１２回",null,null,null,null,null,null,null,null,null,null,null,null,"区ＨＰで保育施設空き状況を毎月掲載",null,null,null,null,null,null,null,null,"自己評価"]
[null,null,null,null,null,null,null,null,null,null,null,null,null,null,null,null,null,null,null,null,null,null,null,null,null,null,null,null,null,"○"]
[]
[]
["成果目標",null,null,null,"実績",null,null,"令和５年４月１日時点待機児童数　０名",null,null,null,null,null,null,null,null,null,null,null,null,"令和５年４月１日時点での待機児童数０名",null,null,null,null,null,null,null,null,"○"]
[]
[]
[]
[]
["中期展望",null,null,null,null,null,null,"　保育を希望する保護者のニーズや働き方の多様化に対応しつつ、保育担当者・利用者支援専門員が施設の空き情報を周知し、選択肢が広がるよう適切なアドバイスを行いながら、三次募集まで利用調整を実施することで待機児童の解消に努める。"]
[]
[]
["成果目標が\n中期展望に\n寄与する理由",null,null,null,null,null,null,"　年度開始となる４月１日時点の待機児童数が０人となることは、利用者支援者専門員による個別相談や家庭の状況に応じた的確な情報提供の結果であり、この支援が待機児童の解消につながるため。"]
[]
[]
[]
[]
["SDGｓゴール",null,null,null,4,null,null,null,"質の高い教育をみんなに"]
[null,null,null,null,5,null,null,null,"ジェンダー平等を実現しよう"]
[null,null,null,null,10,null,null,null,"人や国の不平等をなくそう"]
[]
["修正履歴"]

{"sheet":"3-1-8","index":10,"n_rows":87,"n_cols":31,"rows_kept":87,"cut":false,"hidden":false,"merged":[[86,0,86,3],[86,4,86,31],[77,0,80,6],[77,7,80,31],[82,0,84,3],[82,4,82,7],[82,8,82,31],[83,4,83,7],[83,8,83,31],[84,4,84,7],[84,8,84,31],[74,0,76,6],[74,7,76,31],[65,0,65,6],[65,7,65,31],[66,0,68,3],[66,4,68,6],[66,7,68,19],[66,20,68,28],[66,29,66,31],[67,29,68,31],[64,0,64,6],[64,7,64,31],[55,1,59,6],[55,7,59,31],[60,1,60,6],[60,7,60,31],[61,1,61,6],[61,7,61,31],[69,0,73,3],[69,4,73,6],[69,7,73,19],[69,20,73,28],[69,29,73,31],[51,7,51,31],[52,1,52,6],[52,7,52,31],[53,1,53,6],[53,7,53,31],[54,1,54,6],[54,7,54,31],[47,0,63,0],[47,1,47,6],[47,7,47,31],[48,1,48,6],[48,7,48,31],[49,1,49,6],[49,7,49,31],[50,1,50,6],[50,7,50,31],[51,1,51,6],[62,1,62,6],[62,7,62,31],[63,1,63,6],[63,7,63,31],[43,0,44,1],[43,2,44,31],[45,0,45,6],[45,7,45,31],[46,0,46,6],[46,7,46,31],[37,0,39,1],[37,2,39,23],[37,24,39,27],[37,28,39,29],[37,30,39,31],[40,0,42,1],[40,2,42,23],[40,24,42,27],[40,28,42,29],[40,30,42,31],[31,0,33,1],[31,2,33,23],[31,24,33,27],[31,28,33,29],[31,30,33,31],[34,0,36,1],[34,2,36,23],[34,24,36,27],[34,28,36,29],[34,30,36,31],[27,0,27,23],[27,24,27,27],[27,28,27,29],[27,30,27,31],[28,0,30,0],[28,1,30,1],[28,2,30,23],[28,24,30,27],[28,28,30,29],[28,30,30,31],[22,0,25,0],[22,1,22,6],[22,7,22,31],[23,1,23,6],[23,7,23,31],[24,1,24,6],[24,7,24,31],[25,1,25,6],[25,7,25,31],[9,1,18,6],[9,7,18,31],[19,1,19,6],[19,7,19,31],[20,1,20,6],[20,7,20,31],[4,0,4,6],[4,7,4,31],[5,0,21,0],[5,1,8,6],[5,7,8,31],[21,1,21,6],[21,7,21,31],[0,0,0,3],[0,4,0,20],[0,21,0,27],[0,28,0,29],[0,30,0,31],[1,4,2,20],[1,21,2,27],[1,28,2,29],[1,30,2,31],[1,0,2,3]]}
["取組番号",null,null,null,"事業名",null,null,null,null,null,null,null,null,null,null,null,null,null,null,null,null,"作成年月日・担当",null,null,null,null,null,null,"重点",null,"新規"]
[{"$f":"RIGHT(CELL(\"filename\",A4),LEN(CELL(\"filename\",A4))-FIND(\"]\",CELL(\"filename\",A4)))","v":"3-1-8"},null,null,null,"子育て支援機関とのネットワーク強化",null,null,null,null,null,null,null,null,null,null,null,null,null,null,null,null,"令和４年４月１日\n保健福祉課（保健活動）\n保健福祉課（健康づくり）"]
[]
[]
["項目",null,null,null,null,null,null,"内容"]
["事業・業務概要","目的\n（事業の背景を含む）",null,null,null,null,null,"・育児不安をもつ養育者が安心して子育てできるように、養育者にとって身近な地域の子育て支援機関で開催されている講座に出向き、乳児の心身の健康に関する情報交換などを行うことにより養育者の育児力を高め、健康づくりの一層の推進を図る。\n・地域の子育て支援機関と連携し地域の子育てに関する情報交換を行い、養育者が相談しやすい体制をつくる。"]
[]
[]
[]
[null,"内容",null,null,null,null,null,"【養育者に対して】\n・保健師・栄養士による育児相談等\n・子育てに関する情報提供\n・参加していない対象者に対して、HPやSNSを活用し、上記内容をいつでも入手できるよう情報発信する。　\n【支援者に対して】\n・子育て支援機関との情報交換や情報共有\n・地域活動協議会等において、活動状況の情報交換を行い、子育て支援に対する理解と協力を得る。\n\n・区役所において事業のPDCAを回していく観点から、事業内容（予算編成含む）について担当部局に働きかけを行う。"]
[]
[]
[]
[]
[]
[]
[]
[]
[]
[null,"予算額（予算科目）",null,null,null,null,null,"（令和4年度）こども青少年局予算（消耗品費：8千円）"]
[null,"事業実施期間（回数）",null,null,null,null,null,"年10回程度（各地域において年1回以上）"]
[null,"事業対象者（人数）",null,null,null,null,null,"乳幼児と養育者１回あたり15人程度"]
["委託関係","契約・入札方法",null,null,null,null,null,"―"]
[null,"募集要項のポイント",null,null,null,null,null,"―"]
[null,"仕様書のポイント",null,null,null,null,null,"―"]
[null,"選考委員等選考方式",null,null,null,null,null,"―"]
[]
["スケジュール（実施決裁、入札募集開始、説明会、選考会、事業の実施　等）",null,null,null,null,null,null,null,null,null,null,null,null,null,null,null,null,null,null,null,null,null,null,null,"広報スケジュール",null,null,null,"スケ",null,"作業"]
["（前年度）","1月～3月","1月：グループ内において日程並びに内容の調整、実施場所の確保\n2～3月：事業評価\n事業実施決裁",null,null,null,null,null,null,null,null,null,null,null,null,null,null,null,null,null,null,null,null,null,"地域や子育て支援機関におけるチラシ等の活用",null,null,null,"〇",null,"〇"]
[]
[]
["4月～\n6月",null,"子ども・子育てプラザ等地域で親子が集まる場所へ出向く\n地域活動協議会等における情報交換",null,null,null,null,null,null,null,null,null,null,null,null,null,null,null,null,null,null,null,null,null,"地域や子育て支援機関におけるチラシ等の活用",null,null,null,"〇",null,"〇"]
[]
[]
["7月～\n9月",null,"子ども・子育てプラザ等地域で親子が集まる場所へ出向く\n地域活動協議会等における情報交換",null,null,null,null,null,null,null,null,null,null,null,null,null,null,null,null,null,null,null,null,null,"地域や子育て支援機関におけるチラシ等の活用",null,null,null,"〇",null,"〇"]
[]
[]
["10月～\n12月",null,"子ども・子育てプラザ等地域で親子が集まる場所へ出向く\n地域活動協議会等における情報交換",null,null,null,null,null,null,null,null,null,null,null,null,null,null,null,null,null,null,null,null,null,"地域や子育て支援機関におけるチラシ等の活用",null,null,null,"〇",null,"〇"]
[]
[]
["1月～\n3月",null,"子ども・子育てプラザ等地域で親子が集まる場所へ出向く\n1月：グループ内において日程並びに内容の調整、実施場所の確保\n2～3月：事業評価",null,null,null,null,null,null,null,null,null,null,null,null,null,null,null,null,null,null,null,null,null,"地域や子育て支援機関におけるチラシ等の活用",null,null,null,"〇",null,"〇"]
[]
[]
["備考"]
[]
["項目",null,null,null,null,null,null,"内容"]
["講座・イベント・会議名",null,null,null,null,null,null,"子育て支援機関とのネットワーク強化"]
["イベント等開催関係","開催日時",null,null,null,null,null,"随時"]
[null,"開催場所",null,null,null,null,null,"子ども・子育てプラザ等子育て支援機関"]
[null,"区役所の主催等",null,null,null,null,null,"―"]
[null,"その他主催団体・組織等",null,null,null,null,null,"―"]
[null,"共催団体・組織等",null,null,null,null,null,"―"]
[null,"後援団体・組織等",null,null,null,null,null,"―"]
[null,"目標事業規模",null,null,null,null,null,"前年度実績相当"]
[null,"その他留意事項",null,null,null,null,null,"―"]
[null,"イベント等\n当日タイムテーブル",null,null,null,null,null,"未定"]
[]
[]
[]
[]
[null,"挨拶者",null,null,null,null,null,"―"]
[null,"来賓紹介",null,null,null,null,null,"―"]
[null,"祝電紹介の方法",null,null,null,null,null,"―"]
[null,"動員の方法",null,null,null,null,null,"―"]
["その他他課との連携等",null,null,null,null,null,null,"―"]
["前年度実績",null,null,null,null,null,null,"（令和３年度実績）\n・地域ふれあい子育て教室　６回開催、参加延人数　６６人（子３５人・養育者３１人）\n・相談件数1,827件\n・子ども・子育てプラザに出向く回数　６回\n・区民意識調査において、子育てがしやすくなったと感じる区民の割合　46.7％"]
["業績目標",null,null,null,"実績",null,null,"・子ども・子育てプラザ等に出向く回数　6回以上\n・地域活動協議会等における情報交換　2回以上",null,null,null,null,null,null,null,null,null,null,null,null,"・子ども・子育てプラザ等に出向く回数　8回\n・地域活動協議会等における情報交換　2回",null,null,null,null,null,null,null,null,"自己評価"]
[null,null,null,null,null,null,null,null,null,null,null,null,null,null,null,null,null,null,null,null,null,null,null,null,null,null,null,null,null,"〇"]
[]
["成果目標",null,null,null,"実績",null,null,"区民意識調査において、子育てがしやすくなったと感じる区民の割合　50％以上",null,null,null,null,null,null,null,null,null,null,null,null,"区民意識調査において、子育てがしやすくなったと感じる区民の割合　52.2％",null,null,null,null,null,null,null,null,"〇"]
[]
[]
[]
[]
["中期展望",null,null,null,null,null,null,"地域の身近な場所で開催される教室に参加し、ほかの親子と交流することで、育児不安の軽減並びに育児力の向上を図り、安心して子育てすることができ、乳幼児の健全な成長発達を促す"]
[]
[]
["成果目標が\n中期展望に\n寄与する理由",null,null,null,null,null,null,"保健師や栄養士による育児相談等を実施することや子育て支援機関とのネットワークを強化し「子育てがしやすくなったと感じる割合」を高めることで、育児不安の軽減や育児能力の向上等に資することができるため"]
[]
[]
[]
[]
["SDGｓゴール",null,null,null,3,null,null,null,{"$f":"+IF(ISERROR(VLOOKUP($E83,[4]SDGｓ!$A$2:$B$18,2,0)),\"\",VLOOKUP($E83,[4]SDGｓ!$A$2:$B$18,2,0))","v":"すべての人に健康と福祉を"}]
[null,null,null,null,"-",null,null,null,{"$f":"+IF(ISERROR(VLOOKUP($E84,[4]SDGｓ!$A$2:$B$18,2,0)),\"\",VLOOKUP($E84,[4]SDGｓ!$A$2:$B$18,2,0))","v":""}]
[null,null,null,null,"-",null,null,null,{"$f":"+IF(ISERROR(VLOOKUP($E85,[4]SDGｓ!$A$2:$B$18,2,0)),\"\",VLOOKUP($E85,[4]SDGｓ!$A$2:$B$18,2,0))","v":""}]
[]
["修正履歴"]

{"sheet":"3-2","index":11,"n_rows":25,"n_cols":5,"rows_kept":25,"cut":false,"hidden":false,"merged":[[23,2,23,3],[23,4,23,9],[24,2,24,3],[24,4,24,9]]}
["【3】次世代の未来が輝くまちへ"]
[]
[null,"3-2　学校選択制の充実"]
[]
[null,"◆","目指すべき将来像"]
[]
[]
[]
[]
[]
[null,"◆","施策"]
[]
[]
[]
[]
[]
[null,"◆","施策目標"]
[]
[]
[]
[]
[]
[null,"◆","具体的取組（事業・業務計画書）"]
[null,null,"取組番号",null,"事業名"]
[null,null,"3-2-1",null,{"$f":"'目次 (3)'!D22","v":"学校選択制の実施"}]

{"sheet":"3-2-1","index":12,"n_rows":90,"n_cols":34,"rows_kept":90,"cut":false,"hidden":false,"merged":[[89,0,89,3],[89,4,89,31],[80,0,83,6],[80,7,83,31],[85,0,87,3],[85,4,85,7],[85,8,85,31],[86,4,86,7],[86,8,86,31],[87,4,87,7],[87,8,87,31],[77,0,79,6],[77,7,79,31],[67,0,67,6],[67,7,67,31],[68,0,71,3],[68,4,71,6],[68,7,71,19],[68,20,71,28],[68,29,68,31],[69,29,71,31],[66,0,66,6],[66,7,66,31],[57,1,61,6],[57,7,61,31],[62,1,62,6],[62,7,62,31],[63,1,63,6],[63,7,63,31],[72,0,76,3],[72,4,76,6],[72,7,76,19],[72,20,76,28],[72,29,76,31],[53,7,53,31],[54,1,54,6],[54,7,54,31],[55,1,55,6],[55,7,55,31],[56,1,56,6],[56,7,56,31],[49,0,65,0],[49,1,49,6],[49,7,49,31],[50,1,50,6],[50,7,50,31],[51,1,51,6],[51,7,51,31],[52,1,52,6],[52,7,52,31],[53,1,53,6],[64,1,64,6],[64,7,64,31],[65,1,65,6],[65,7,65,31],[45,0,46,1],[45,2,46,31],[47,0,47,6],[47,7,47,31],[48,0,48,6],[48,7,48,31],[39,0,41,1],[39,2,41,23],[39,24,41,27],[39,28,41,29],[39,30,41,31],[42,0,44,1],[42,2,44,23],[42,24,44,27],[42,28,44,29],[42,30,44,31],[33,0,35,1],[33,2,35,23],[33,24,35,27],[33,28,35,29],[33,30,35,31],[36,0,38,1],[36,2,38,23],[36,24,38,27],[36,28,38,29],[36,30,38,31],[29,0,29,23],[29,24,29,27],[29,28,29,29],[29,30,29,31],[30,0,32,0],[30,1,32,1],[30,2,32,23],[30,24,32,27],[30,28,32,29],[30,30,32,31],[20,0,27,0],[20,1,20,6],[20,7,20,31],[21,1,23,6],[21,7,23,31],[24,1,26,6],[24,7,26,31],[27,1,27,6],[27,7,27,31],[5,33,7,34],[9,1,16,6],[9,7,16,31],[17,1,17,6],[17,7,17,31],[18,1,18,6],[18,7,18,31],[4,0,4,6],[4,7,4,31],[5,0,19,0],[5,1,8,6],[5,7,8,31],[19,1,19,6],[19,7,19,31],[0,0,0,3],[0,4,0,20],[0,21,0,27],[0,28,0,29],[0,30,0,31],[1,4,2,20],[1,21,2,27],[1,28,2,29],[1,30,2,31],[1,0,2,3]]}
["取組番号",null,null,null,"事業名",null,null,null,null,null,null,null,null,null,null,null,null,null,null,null,null,"作成年月日・担当",null,null,null,null,null,null,"重点",null,"新規"]
[{"$f":"RIGHT(CELL(\"filename\",A4),LEN(CELL(\"filename\",A4))-FIND(\"]\",CELL(\"filename\",A4)))","v":"3-2-1"},null,null,null,"学校選択制の実施",null,null,null,null,null,null,null,null,null,null,null,null,null,null,null,null,"令和４年４月１日\n保健福祉課（こども・教育）"]
[]
[]
["項目",null,null,null,null,null,null,"内容"]
["事業・業務概要","目的\n（事業の背景を含む）",null,null,null,null,null,"子どもや保護者が自ら学校を選択することで学校教育に深い関心を持つこと、またそれにより各学校が特色ある学校づくりを進め、学校教育の活性化を図ることを目的とする。",null,null,null,null,null,null,null,null,null,null,null,null,null,null,null,null,null,null,null,null,null,null,null,null,null,"一覧へ戻る"]
[]
[]
[]
[null,"内容",null,null,null,null,null,"・通学区域外受入可能人数の調整\n・児童･生徒、保護者への情報提供（学校案内冊子、個別相談会、学校公開・学校説明会等）\n・希望調査（希望調査票の提出について、広報紙やホームページ等を活用する。）\n・入学校の決定"]
[]
[]
[]
[]
[]
[]
[]
[null,"予算額（予算科目）",null,null,null,null,null,"【教育委員会事務局予算（配付）】642千円（消耗品費、通信運搬費、印刷製本費）"]
[null,"事業実施期間（回数）",null,null,null,null,null,"令和４年４月１日～令和５年３月３１日"]
[null,"事業対象者（人数）",null,null,null,null,null,"翌年４月に小中学校の新1年生となる児童・生徒及びその保護者"]
["委託関係","契約・入札方法",null,null,null,null,null,"―"]
[null,"募集要項のポイント",null,null,null,null,null,"―"]
[]
[]
[null,"仕様書のポイント",null,null,null,null,null,"―"]
[]
[]
[null,"選考委員等選考方式"]
[]
["スケジュール（実施決裁、入札募集開始、説明会、選考会、事業の実施　等）",null,null,null,null,null,null,null,null,null,null,null,null,null,null,null,null,null,null,null,null,null,null,null,"広報スケジュール",null,null,null,"スケ",null,"作業"]
["（前年度）","1月～3月","・学校案内の掲載項目確定",null,null,null,null,null,null,null,null,null,null,null,null,null,null,null,null,null,null,null,null,null,null,null,null,null,"〇",null,"〇"]
[]
[]
["4月～\n6月",null,"【4～5月】\n・教育委員会事務局によるアンケート調査\n・学校案内の原稿依頼\n【6月】\n・学校案内冊子の実施決裁・契約\n\n",null,null,null,null,null,null,null,null,null,null,null,null,null,null,null,null,null,null,null,null,null,null,null,null,null,"〇",null,"〇"]
[]
[]
["7月～\n9月",null,"【7月】\n・区、学校、教育委員会事務局との三者協議（受入可能人数ヒアリング）\n【8月】\n・学校選択制希望調査票・学校案内の郵送\n【9月】\n・学校選択制制度説明会・個別相談会開催\n・学校公開・学校説明会開催（各学校）\n・学校選択制希望調査票の提出依頼について、学校・保育所等を通じて保護者へ送付",null,null,null,null,null,null,null,null,null,null,null,null,null,null,null,null,null,null,null,null,null,"広報紙・ホームページにおいて掲載",null,null,null,"〇",null,"〇"]
[]
[]
["10月～\n12月",null,"【10月】\n・学校公開・学校説明会開催（各学校）\n・10月末　提出期限\n・アンケート調査分析\n【11月】\n・11月初旬　調査結果をホームページで公開\n             　　  対象者全員に調査結果通知送付\n・11月中旬　希望変更受付期間\n・11月下旬  最終調査結果をホームページで公開\n　　　　　　 　 通学区域外を希望した方全員を対象に抽選通知を送付\n・アンケート結果検証\n【12月】\n・受入可能人数を超えた学校について抽選を実施\n・就学通知書の送付",null,null,null,null,null,null,null,null,null,null,null,null,null,null,null,null,null,null,null,null,null,"広報紙・ホームページにおいて掲載",null,null,null,"〇",null,"〇"]
[]
[]
["1月～\n3月",null,"\n【1月～2月】　\n・学校案内の掲載項目確定\n",null,null,null,null,null,null,null,null,null,null,null,null,null,null,null,null,null,null,null,null,null,null,null,null,null,"〇",null,"〇"]
[]
[]
["備考"]
[]
["項目",null,null,null,null,null,null,"内容"]
["講座・イベント・会議名",null,null,null,null,null,null,"学校選択制制度説明会・個別相談会"]
["イベント等開催関係","開催日時",null,null,null,null,null,"９月"]
[null,"開催場所",null,null,null,null,null,"区役所　会議室"]
[null,"区役所の主催等",null,null,null,null,null,"主催"]
[null,"その他主催団体・組織等",null,null,null,null,null,"-"]
[null,"共催団体・組織等",null,null,null,null,null,"-"]
[null,"後援団体・組織等",null,null,null,null,null,"-"]
[null,"目標事業規模",null,null,null,null,null,"-"]
[null,"その他留意事項",null,null,null,null,null,"-"]
[null,"イベント等\n当日タイムテーブル",null,null,null,null,null,"①こども・教育担当課長あいさつ\n②学校選択制制度説明\n③質疑応答\n④その他　\n・個別相談\n"]
[]
[]
[]
[]
[null,"挨拶者",null,null,null,null,null,"-"]
[null,"来賓紹介",null,null,null,null,null,"-"]
[null,"祝電紹介の方法",null,null,null,null,null,"-"]
[null,"動員の方法",null,null,null,null,null,"-"]
["その他他課との連携等",null,null,null,null,null,null,"-"]
["前年度実績",null,null,null,null,null,null,"・新年度新１年生に学校案内、希望調査票を送付\n・令和３年度入学者　希望調査票回収率82.7％\n・希望校就学割合：100％"]
["業績目標",null,null,null,"実績",null,null,"・区において学校選択制制度説明会を開催：２回\n・各校において学校公開・学校説明会を開催：１回以上",null,null,null,null,null,null,null,null,null,null,null,null,"・区において学校選択制制度説明会を開催：２回\n・各校において学校公開・学校説明会を開催：１回以上",null,null,null,null,null,null,null,null,"自己評価"]
[null,null,null,null,null,null,null,null,null,null,null,null,null,null,null,null,null,null,null,null,null,null,null,null,null,null,null,null,null,"〇"]
[]
[]
["成果目標",null,null,null,"実績",null,null,"・通学区域外の学校を選択した児童・生徒がその希望した学校に就学出来た割合：100%",null,null,null,null,null,null,null,null,null,null,null,null,"・通学区域外の学校を選択した児童・生徒がその希望した学校に就学出来た割合：100%",null,null,null,null,null,null,null,null,"〇"]
[]
[]
[]
[]
["中期展望",null,null,null,null,null,null,"児童・生徒、保護者全ての希望を尊重し、教育委員会、各学校と連携をとり、入学予定のこどもの選択権が最大限に保障される状態をめざす。"]
[]
[]
["成果目標が\n中期展望に\n寄与する理由",null,null,null,null,null,null,"すべての児童・生徒が希望した学校へ就学することは、入学予定のこどもの選択権が最大限に保障されることにつながる。\n"]
[]
[]
[]
[]
["SDGｓゴール",null,null,null,4,null,null,null,"質の高い教育をみんなに"]
[null,null,null,null,null,null,null,null,{"$f":"+IF(ISERROR(VLOOKUP($E87,#REF!,2,0)),\"\",VLOOKUP($E87,#REF!,2,0))","v":""}]
[null,null,null,null,null,null,null,null,{"$f":"+IF(ISERROR(VLOOKUP($E88,#REF!,2,0)),\"\",VLOOKUP($E88,#REF!,2,0))","v":""}]
[]
["修正履歴"]

{"sheet":"3-3","index":13,"n_rows":25,"n_cols":5,"rows_kept":25,"cut":false,"hidden":false,"merged":[[23,2,23,3],[23,4,23,9],[24,2,24,3],[24,4,24,9]]}
["【3】次世代の未来が輝くまちへ"]
[]
[null,"3-3　学校の適正配置"]
[]
[null,"◆","目指すべき将来像"]
[]
[]
[]
[]
[]
[null,"◆","施策"]
[]
[]
[]
[]
[]
[null,"◆","施策目標"]
[]
[]
[]
[]
[]
[null,"◆","具体的取組（事業・業務計画書）"]
[null,null,"取組番号",null,"事業名"]
[null,null,"3-3-1",null,{"$f":"'目次 (3)'!D24","v":"小学校の適正配置"}]

{"sheet":"3-3-1","index":14,"n_rows":90,"n_cols":34,"rows_kept":90,"cut":false,"hidden":false,"merged":[[89,0,89,3],[89,4,89,31],[80,0,83,6],[80,7,83,31],[85,0,87,3],[85,4,85,7],[85,8,85,31],[86,4,86,7],[86,8,86,31],[87,4,87,7],[87,8,87,31],[77,0,79,6],[77,7,79,31],[67,0,67,6],[67,7,67,31],[68,0,71,3],[68,4,71,6],[68,7,71,19],[68,20,71,28],[68,29,68,31],[69,29,71,31],[66,0,66,6],[66,7,66,31],[57,1,61,6],[57,7,61,31],[62,1,62,6],[62,7,62,31],[63,1,63,6],[63,7,63,31],[72,0,76,3],[72,4,76,6],[72,7,76,19],[72,20,76,28],[72,29,76,31],[53,7,53,31],[54,1,54,6],[54,7,54,31],[55,1,55,6],[55,7,55,31],[56,1,56,6],[56,7,56,31],[49,0,65,0],[49,1,49,6],[49,7,49,31],[50,1,50,6],[50,7,50,31],[51,1,51,6],[51,7,51,31],[52,1,52,6],[52,7,52,31],[53,1,53,6],[64,1,64,6],[64,7,64,31],[65,1,65,6],[65,7,65,31],[45,0,46,1],[45,2,46,31],[47,0,47,6],[47,7,47,31],[48,0,48,6],[48,7,48,31],[39,0,41,1],[39,2,41,23],[39,24,41,27],[39,28,41,29],[39,30,41,31],[42,0,44,1],[42,2,44,23],[42,24,44,27],[42,28,44,29],[42,30,44,31],[33,0,35,1],[33,2,35,23],[33,24,35,27],[33,28,35,29],[33,30,35,31],[36,0,38,1],[36,2,38,23],[36,24,38,27],[36,28,38,29],[36,30,38,31],[29,0,29,23],[29,24,29,27],[29,28,29,29],[29,30,29,31],[30,0,32,0],[30,1,32,1],[30,2,32,23],[30,24,32,27],[30,28,32,29],[30,30,32,31],[20,0,27,0],[20,1,20,6],[20,7,20,31],[21,1,23,6],[21,7,23,31],[24,1,26,6],[24,7,26,31],[27,1,27,6],[27,7,27,31],[5,33,7,34],[9,1,16,6],[9,7,16,31],[17,1,17,6],[17,7,17,31],[18,1,18,6],[18,7,18,31],[4,0,4,6],[4,7,4,31],[5,0,19,0],[5,1,8,6],[5,7,8,31],[19,1,19,6],[19,7,19,31],[0,0,0,3],[0,4,0,20],[0,21,0,27],[0,28,0,29],[0,30,0,31],[1,4,2,20],[1,21,2,27],[1,28,2,29],[1,30,2,31],[1,0,2,3]]}
["取組番号",null,null,null,"事業名",null,null,null,null,null,null,null,null,null,null,null,null,null,null,null,null,"作成年月日・担当",null,null,null,null,null,null,"重点",null,"新規"]
[{"$f":"RIGHT(CELL(\"filename\",A4),LEN(CELL(\"filename\",A4))-FIND(\"]\",CELL(\"filename\",A4)))","v":"3-3-1"},null,null,null,"小学校の適正配置",null,null,null,null,null,null,null,null,null,null,null,null,null,null,null,null,"令和４年４月１日\n保健福祉課（こども・教育）"]
[]
[]
["項目",null,null,null,null,null,null,"内容"]
["事業・業務概要","目的\n（事業の背景を含む）",null,null,null,null,null,"学校の適正規模は１学年２～４クラスとされており、１学年１クラスでは、人間関係が固定化する傾向が高く、また音楽の合唱や体育の集団競技などは困難な場合もあり、教育活動の幅が狭くなることから、今後の区内の開発状況や人口動向を踏まえながら、児童にとってよりよい教育環境を確保し、教育活動の充実を図ることを目的とする。",null,null,null,null,null,null,null,null,null,null,null,null,null,null,null,null,null,null,null,null,null,null,null,null,null,"一覧へ戻る"]
[]
[]
[]
[null,"内容",null,null,null,null,null,"大阪市においては、令和２年５月１日現在、小学校が288校、中学校が130校存在しており、学校の維持管理等にかかる財政負担が大きくなっている。また、規模の小さい学校においては、一人の教員が多くの校務分掌を兼ねて担わざるを得ない状況となっている。\n大阪市学校適正配置審議会の答申により、適正配置の対象校とされた学校について、地域、保護者、学校、区役所が一体となって、学校配置の適正化推進ワーキンググループ（出席者：教育委員会事務局（総務部・教務部・指導部担当職員）、区役所（区担当教育部長）、小学校長会（副会長）など）での議論も踏まえ、今後の方向性を決定していく。\n"]
[]
[]
[]
[]
[]
[]
[]
[null,"予算額（予算科目）",null,null,null,null,null,"―"]
[null,"事業実施期間（回数）",null,null,null,null,null,"―"]
[null,"事業対象者（人数）",null,null,null,null,null,"―"]
["委託関係","契約・入札方法",null,null,null,null,null,"―"]
[null,"募集要項のポイント",null,null,null,null,null,"―"]
[]
[]
[null,"仕様書のポイント",null,null,null,null,null,"―"]
[]
[]
[null,"選考委員等選考方式"]
[]
["スケジュール（実施決裁、入札募集開始、説明会、選考会、事業の実施　等）",null,null,null,null,null,null,null,null,null,null,null,null,null,null,null,null,null,null,null,null,null,null,null,"広報スケジュール",null,null,null,"スケ",null,"作業"]
["（前年度）","1月～3月",null,null,null,null,null,null,null,null,null,null,null,null,null,null,null,null,null,null,null,null,null,null,null,null,null,null,"-",null,"-"]
[]
[]
["4月～\n6月",null,null,null,null,null,null,null,null,null,null,null,null,null,null,null,null,null,null,null,null,null,null,null,null,null,null,null,"-",null,"-"]
[]
[]
["7月～\n9月",null,"学校配置の適正化推進ワーキンググループの進捗に応じて適宜着手",null,null,null,null,null,null,null,null,null,null,null,null,null,null,null,null,null,null,null,null,null,null,null,null,null,"〇",null,"〇"]
[]
[]
["10月～\n12月",null,"学校配置の適正化推進ワーキンググループの進捗に応じて適宜着手",null,null,null,null,null,null,null,null,null,null,null,null,null,null,null,null,null,null,null,null,null,null,null,null,null,"〇",null,"〇"]
[]
[]
["1月～\n3月",null,"学校配置の適正化推進ワーキンググループの進捗に応じて適宜着手",null,null,null,null,null,null,null,null,null,null,null,null,null,null,null,null,null,null,null,null,null,null,null,null,null,"〇",null,"〇"]
[]
[]
["備考"]
[]
["項目",null,null,null,null,null,null,"内容"]
["講座・イベント・会議名",null,null,null,null,null,null,"―"]
["イベント等開催関係","開催日時",null,null,null,null,null,"―"]
[null,"開催場所",null,null,null,null,null,"―"]
[null,"区役所の主催等",null,null,null,null,null,"―"]
[null,"その他主催団体・組織等",null,null,null,null,null,"―"]
[null,"共催団体・組織等",null,null,null,null,null,"―"]
[null,"後援団体・組織等",null,null,null,null,null,"―"]
[null,"目標事業規模",null,null,null,null,null,"―"]
[null,"その他留意事項",null,null,null,null,null,"―"]
[null,"イベント等\n当日タイムテーブル",null,null,null,null,null,"―"]
[]
[]
[]
[]
[null,"挨拶者",null,null,null,null,null,"―"]
[null,"来賓紹介",null,null,null,null,null,"―"]
[null,"祝電紹介の方法",null,null,null,null,null,"―"]
[null,"動員の方法",null,null,null,null,null,"―"]
["その他他課との連携等",null,null,null,null,null,null,"―"]
["前年度実績",null,null,null,null,null,null,"・適正配置対象校について学校適正配置再編基本計画未策定\n・学校適正配置検討委員会で、学校の適正配置について十分な議論が図られたと感じる委員の割合：学校適正配置検討委員会未実施\n・学校配置の適正化推進ワーキングへの出席（副区長）：２回（令和３年７月、令和３年11月）"]
["業績目標",null,null,null,"実績",null,null,"学校配置の適正化推進ワーキングへの出席",null,null,null,null,null,null,null,null,null,null,null,null,"未実施",null,null,null,null,null,null,null,null,"自己評価"]
[null,null,null,null,null,null,null,null,null,null,null,null,null,null,null,null,null,null,null,null,null,null,null,null,null,null,null,null,null,"-"]
[]
[]
["成果目標",null,null,null,"実績",null,null,"区民意識調査において「市立小学校の再編整備(統合など学校配置の適正化)を進めることに賛成」と回答する区民の割合：50％以上",null,null,null,null,null,null,null,null,null,null,null,null,"区民意識調査において「市立小学校の再編整備(統合など学校配置の適正化)を進めることに賛成」と回答する区民の割合：７９．７％",null,null,null,null,null,null,null,null,"◎"]
[]
[]
[]
[]
["中期展望",null,null,null,null,null,null,"子どもたちにとって、よりよい教育環境を確保する。"]
[]
[]
["成果目標が\n中期展望に\n寄与する理由",null,null,null,null,null,null,"市立小学校の再編整備について多くの区民の理解が得られることにより、子どもにとってよりよい教育環境の確保につながる。"]
[]
[]
[]
[]
["SDGｓゴール",null,null,null,4,null,null,null,{"$f":"+IF(ISERROR(VLOOKUP($E86,[5]SDGｓ!$A$2:$B$18,2,0)),\"\",VLOOKUP($E86,[5]SDGｓ!$A$2:$B$18,2,0))","v":"質の高い教育をみんなに"}]
[null,null,null,null,null,null,null,null,{"$f":"+IF(ISERROR(VLOOKUP($E87,[5]SDGｓ!$A$2:$B$18,2,0)),\"\",VLOOKUP($E87,[5]SDGｓ!$A$2:$B$18,2,0))","v":""}]
[null,null,null,null,null,null,null,null,{"$f":"+IF(ISERROR(VLOOKUP($E88,[5]SDGｓ!$A$2:$B$18,2,0)),\"\",VLOOKUP($E88,[5]SDGｓ!$A$2:$B$18,2,0))","v":""}]
[]
["修正履歴"]

{"sheet":"3-4","index":15,"n_rows":28,"n_cols":5,"rows_kept":28,"cut":false,"hidden":false,"merged":[[26,2,26,3],[26,4,26,9],[27,2,27,3],[27,4,27,9],[23,2,23,3],[23,4,23,9],[24,2,24,3],[24,4,24,9],[25,2,25,3],[25,4,25,9]]}
["【3】次世代の未来が輝くまちへ"]
[]
[null,"3-4　生活習慣の改善"]
[]
[null,"◆","目指すべき将来像"]
[]
[]
[]
[]
[]
[null,"◆","施策"]
[]
[]
[]
[]
[]
[null,"◆","施策目標"]
[]
[]
[]
[]
[]
[null,"◆","具体的取組（事業・業務計画書）"]
[null,null,"取組番号",null,"事業名"]
[null,null,"3-4-1",null,{"$f":"'目次 (3)'!D26","v":"分権型教育行政にかかる意見聴取（大正区総合教育会議）"}]
[null,null,"3-4-2",null,{"$f":"'目次 (3)'!D27","v":"分権型教育行政にかかる連絡調整・意見交換（大正区教育行政連絡会）"}]
[null,null,"3-4-3",null,{"$f":"'目次 (3)'!D28","v":"学校協議会の運営補佐"}]
[null,null,"3-4-4",null,{"$f":"'目次 (3)'!D29","v":"食育の推進"}]

{"sheet":"3-4-1","index":16,"n_rows":90,"n_cols":34,"rows_kept":90,"cut":false,"hidden":false,"merged":[[89,0,89,3],[89,4,89,31],[80,0,83,6],[80,7,83,31],[85,0,87,3],[85,4,85,7],[85,8,85,31],[86,4,86,7],[86,8,86,31],[87,4,87,7],[87,8,87,31],[77,0,79,6],[77,7,79,31],[67,0,67,6],[67,7,67,31],[68,0,71,3],[68,4,71,6],[68,7,71,19],[68,20,71,28],[68,29,68,31],[69,29,71,31],[66,0,66,6],[66,7,66,31],[57,1,61,6],[57,7,61,31],[62,1,62,6],[62,7,62,31],[63,1,63,6],[63,7,63,31],[72,0,76,3],[72,4,76,6],[72,7,76,19],[72,20,76,28],[72,29,76,31],[53,7,53,31],[54,1,54,6],[54,7,54,31],[55,1,55,6],[55,7,55,31],[56,1,56,6],[56,7,56,31],[49,0,65,0],[49,1,49,6],[49,7,49,31],[50,1,50,6],[50,7,50,31],[51,1,51,6],[51,7,51,31],[52,1,52,6],[52,7,52,31],[53,1,53,6],[64,1,64,6],[64,7,64,31],[65,1,65,6],[65,7,65,31],[45,0,46,1],[45,2,46,31],[47,0,47,6],[47,7,47,31],[48,0,48,6],[48,7,48,31],[39,0,41,1],[39,2,41,23],[39,24,41,27],[39,28,41,29],[39,30,41,31],[42,0,44,1],[42,2,44,23],[42,24,44,27],[42,28,44,29],[42,30,44,31],[33,0,35,1],[33,2,35,23],[33,24,35,27],[33,28,35,29],[33,30,35,31],[36,0,38,1],[36,2,38,23],[36,24,38,27],[36,28,38,29],[36,30,38,31],[29,0,29,23],[29,24,29,27],[29,28,29,29],[29,30,29,31],[30,0,32,0],[30,1,32,1],[30,2,32,23],[30,24,32,27],[30,28,32,29],[30,30,32,31],[20,0,27,0],[20,1,20,6],[20,7,20,31],[21,1,23,6],[21,7,23,31],[24,1,26,6],[24,7,26,31],[27,1,27,6],[27,7,27,31],[5,33,7,34],[9,1,16,6],[9,7,16,31],[17,1,17,6],[17,7,17,31],[18,1,18,6],[18,7,18,31],[4,0,4,6],[4,7,4,31],[5,0,19,0],[5,1,8,6],[5,7,8,31],[19,1,19,6],[19,7,19,31],[0,0,0,3],[0,4,0,20],[0,21,0,27],[0,28,0,29],[0,30,0,31],[1,4,2,20],[1,21,2,27],[1,28,2,29],[1,30,2,31],[1,0,2,3]]}
["取組番号",null,null,null,"事業名",null,null,null,null,null,null,null,null,null,null,null,null,null,null,null,null,"作成年月日・担当",null,null,null,null,null,null,"重点",null,"新規"]
[{"$f":"RIGHT(CELL(\"filename\",A4),LEN(CELL(\"filename\",A4))-FIND(\"]\",CELL(\"filename\",A4)))","v":"3-4-1"},null,null,null,"分権型教育行政にかかる意見聴取（大正区総合教育会議）",null,null,null,null,null,null,null,null,null,null,null,null,null,null,null,null,"令和４年４月１日\n保健福祉課（こども・教育）"]
[]
[]
["項目",null,null,null,null,null,null,"内容"]
["事業・業務概要","目的\n（事業の背景を含む）",null,null,null,null,null,"大正区将来ビジョン2022において、子育て・教育、地域福祉、地域防災そして、地域コミュニティ（小学校区単位）充実を重点に据えた区政運営を進めることとしていることから、こどもにかかる福祉、教育の施策及び事業について、区役所、家庭、学校、地域が連携して活性化を図る。",null,null,null,null,null,null,null,null,null,null,null,null,null,null,null,null,null,null,null,null,null,null,null,null,null,"一覧へ戻る"]
[]
[]
[]
[null,"内容",null,null,null,null,null,"立案の段階から保護者及び地域住民その他関係者等の意見を把握し、適宜これを反映させるため、年３回総合教育会議を開催する。\n区長が会議において、子育て・教育・青少年健全育成等にかかる次の事項について委員からの意見を求める。\nまた、区政会議との連携を図る。（会議終了後、区政会議で意見聴取が必要と思われる事項については、政策推進課に報告する。）\n(1) 所管施策等に関する計画及び方針に関する事項\n(2) 所管施策等のうち主要なものの実績及び成果の評価に関する事項\n(3) 上記のほか、所管施策等に関し必要と認める事項"]
[]
[]
[]
[]
[]
[]
[]
[null,"予算額（予算科目）",null,null,null,null,null,"131千円（通信運搬費、筆耕翻訳料）/221千円（R３）"]
[null,"事業実施期間（回数）",null,null,null,null,null,"令和４年４月１日～令和５年３月31日（年３回開催）"]
[null,"事業対象者（人数）",null,null,null,null,null,"総合教育会議委員　他"]
["委託関係","契約・入札方法",null,null,null,null,null,"―"]
[null,"募集要項のポイント",null,null,null,null,null,"―"]
[]
[]
[null,"仕様書のポイント",null,null,null,null,null,"―"]
[]
[]
[null,"選考委員等選考方式",null,null,null,null,null,"―"]
[]
["スケジュール（実施決裁、入札募集開始、説明会、選考会、事業の実施　等）",null,null,null,null,null,null,null,null,null,null,null,null,null,null,null,null,null,null,null,null,null,null,null,"広報スケジュール",null,null,null,"スケ",null,"作業"]
["（前年度）","1月～3月","【３月】令和３年度第３回開催",null,null,null,null,null,null,null,null,null,null,null,null,null,null,null,null,null,null,null,null,null,null,null,null,null,"〇",null,"〇"]
[]
[]
["4月～\n6月",null,"・開催通知\n・議題設定\n・資料送付",null,null,null,null,null,null,null,null,null,null,null,null,null,null,null,null,null,null,null,null,null,"広報紙・ホームページによる開催報告（令和３年度第３回）",null,null,null,"〇",null,"〇"]
[]
[]
["7月～\n9月",null,"【７月中旬】第１回開催\n",null,null,null,null,null,null,null,null,null,null,null,null,null,null,null,null,null,null,null,null,null,"開催案内（第１回）\n広報紙・ホームページによる開催報告（第１回）",null,null,null,"〇",null,"〇"]
[]
[]
["10月～\n12月",null,"【12月】第２回開催\n・開催通知\n・議題設定\n・資料送付\n・中間振り返り",null,null,null,null,null,null,null,null,null,null,null,null,null,null,null,null,null,null,null,null,null,"開催案内（第２回）",null,null,null,"〇",null,"〇"]
[]
[]
["1月～\n3月",null,"【３月】第３回開催\n・開催通知\n・議題設定\n・資料送付\n・次年度に向けた会議内容・運営についての振り返り\n・総合教育会議委員へアンケート調査の実施",null,null,null,null,null,null,null,null,null,null,null,null,null,null,null,null,null,null,null,null,null,"広報紙・ホームページによる開催報告（第２回）開催案内（第３回）",null,null,null,"〇",null,"〇"]
[]
[]
["備考"]
[]
["項目",null,null,null,null,null,null,"内容"]
["講座・イベント・会議名",null,null,null,null,null,null,"大正区総合教育会議"]
["イベント等開催関係","開催日時",null,null,null,null,null,"年３回(７月中旬、12月、３月)　午後７時００分～午後８時３０分"]
[null,"開催場所",null,null,null,null,null,"大正区役所　会議室"]
[null,"区役所の主催等",null,null,null,null,null,"主催"]
[null,"その他主催団体・組織等",null,null,null,null,null,"―"]
[null,"共催団体・組織等",null,null,null,null,null,"―"]
[null,"後援団体・組織等",null,null,null,null,null,"―"]
[null,"目標事業規模",null,null,null,null,null,"総合教育会議委員、区役所関係者、学校長、議員等"]
[null,"その他留意事項",null,null,null,null,null,"―"]
[null,"イベント等\n当日タイムテーブル",null,null,null,null,null,"【標準的な例】\n・区長あいさつ\n・趣旨説明(事務局)\n・前回会議の振り返り（前回会議での質問への回答等）\n・議論\n・議論まとめ\n・事務連絡等"]
[]
[]
[]
[]
[null,"挨拶者",null,null,null,null,null,"区長"]
[null,"来賓紹介",null,null,null,null,null,"市会議員・府議会議員（各議員に開催案内を送付）"]
[null,"祝電紹介の方法",null,null,null,null,null,"―"]
[null,"動員の方法",null,null,null,null,null,"―"]
["その他他課との連携等",null,null,null,null,null,null,"―"]
["前年度実績",null,null,null,null,null,null,"・保護者及び地域住民その他関係者等の意見を把握するため、開催した会議の回数：３回(令和３年度)\n・区内において、学校、地域の実情に応じた教育が行われたと感じる 「保護者・区民等の参画のための会議」の委員の割合：30％（令和３年度）\n・各委員からの意見や要望、評価について、適切なフィードバックが行われたと感じる総合教育会議委員の割合：60%（令和３年度）"]
["業績目標",null,null,null,"実績",null,null,"・保護者及び地域住民その他関係者等の意見を把握するため、年３回会議を開催する。",null,null,null,null,null,null,null,null,null,null,null,null,"保護者及び地域住民その他関係者等の意見を把握するため、年３回会議を開催した。",null,null,null,null,null,null,null,null,"自己評価"]
[null,null,null,null,null,null,null,null,null,null,null,null,null,null,null,null,null,null,null,null,null,null,null,null,null,null,null,null,null,"〇"]
[]
[]
["成果目標",null,null,null,"実績",null,null,"・区内において、学校、地域の実情に応じた教育が行われたと感じる総合教育会議委員の割合：60％以上\n・各委員からの意見や要望、評価について、適切なフィードバックが行われたと感じる総合教育会議委員の割合：60%以上",null,null,null,null,null,null,null,null,null,null,null,null,"・区内において、学校、地域の実情に応じた教育が行われたと感じる総合教育会議委員の割合：66％\n・各委員からの意見や要望、評価について、適切なフィードバックが行われたと感じる総合教育会議委員の割合：88%",null,null,null,null,null,null,null,null,"◎"]
[]
[]
[]
[]
["中期展望",null,null,null,null,null,null,"関係機関（家庭、学校、地域など）からの意見・ニーズを的確に把握し、当該関係機関と連携した子育て・教育・青少年健全育成にかかる事業を確立し、関係機関を横断して総合的に支援等を行う。"]
[]
[]
["成果目標が\n中期展望に\n寄与する理由",null,null,null,null,null,null,"ニア・イズ・ベターの観点から地域に身近な区と保護者等が意見交換を行うことにより、こどもにかかる福祉、教育の施策及び事業が、学校・地域の実情に応じたものとなり、区内の教育の活性化に寄与できる。"]
[]
[]
[]
[]
["SDGｓゴール",null,null,null,4,null,null,null,{"$f":"+IF(ISERROR(VLOOKUP($E86,[5]SDGｓ!$A$2:$B$18,2,0)),\"\",VLOOKUP($E86,[5]SDGｓ!$A$2:$B$18,2,0))","v":"質の高い教育をみんなに"}]
[null,null,null,null,null,null,null,null,{"$f":"+IF(ISERROR(VLOOKUP($E87,[5]SDGｓ!$A$2:$B$18,2,0)),\"\",VLOOKUP($E87,[5]SDGｓ!$A$2:$B$18,2,0))","v":""}]
[null,null,null,null,null,null,null,null,{"$f":"+IF(ISERROR(VLOOKUP($E88,[5]SDGｓ!$A$2:$B$18,2,0)),\"\",VLOOKUP($E88,[5]SDGｓ!$A$2:$B$18,2,0))","v":""}]
[]
["修正履歴"]

{"sheet":"3-4-2","index":17,"n_rows":90,"n_cols":34,"rows_kept":90,"cut":false,"hidden":false,"merged":[[89,0,89,3],[89,4,89,31],[80,0,83,6],[80,7,83,31],[85,0,87,3],[85,4,85,7],[85,8,85,31],[86,4,86,7],[86,8,86,31],[87,4,87,7],[87,8,87,31],[77,0,79,6],[77,7,79,31],[67,0,67,6],[67,7,67,31],[68,0,71,3],[68,4,71,6],[68,7,71,19],[68,20,71,28],[68,29,68,31],[69,29,71,31],[66,0,66,6],[66,7,66,31],[57,1,61,6],[57,7,61,31],[62,1,62,6],[62,7,62,31],[63,1,63,6],[63,7,63,31],[72,0,76,3],[72,4,76,6],[72,7,76,19],[72,20,76,28],[72,29,76,31],[53,7,53,31],[54,1,54,6],[54,7,54,31],[55,1,55,6],[55,7,55,31],[56,1,56,6],[56,7,56,31],[49,0,65,0],[49,1,49,6],[49,7,49,31],[50,1,50,6],[50,7,50,31],[51,1,51,6],[51,7,51,31],[52,1,52,6],[52,7,52,31],[53,1,53,6],[64,1,64,6],[64,7,64,31],[65,1,65,6],[65,7,65,31],[45,0,46,1],[45,2,46,31],[47,0,47,6],[47,7,47,31],[48,0,48,6],[48,7,48,31],[39,0,41,1],[39,2,41,23],[39,24,41,27],[39,28,41,29],[39,30,41,31],[42,0,44,1],[42,2,44,23],[42,24,44,27],[42,28,44,29],[42,30,44,31],[33,0,35,1],[33,2,35,23],[33,24,35,27],[33,28,35,29],[33,30,35,31],[36,0,38,1],[36,2,38,23],[36,24,38,27],[36,28,38,29],[36,30,38,31],[29,0,29,23],[29,24,29,27],[29,28,29,29],[29,30,29,31],[30,0,32,0],[30,1,32,1],[30,2,32,23],[30,24,32,27],[30,28,32,29],[30,30,32,31],[20,0,27,0],[20,1,20,6],[20,7,20,31],[21,1,23,6],[21,7,23,31],[24,1,26,6],[24,7,26,31],[27,1,27,6],[27,7,27,31],[5,33,7,34],[9,1,16,6],[9,7,16,31],[17,1,17,6],[17,7,17,31],[18,1,18,6],[18,7,18,31],[4,0,4,6],[4,7,4,31],[5,0,19,0],[5,1,8,6],[5,7,8,31],[19,1,19,6],[19,7,19,31],[0,0,0,3],[0,4,0,20],[0,21,0,27],[0,28,0,29],[0,30,0,31],[1,4,2,20],[1,21,2,27],[1,28,2,29],[1,30,2,31],[1,0,2,3]]}
["取組番号",null,null,null,"事業名",null,null,null,null,null,null,null,null,null,null,null,null,null,null,null,null,"作成年月日・担当",null,null,null,null,null,null,"重点",null,"新規"]
[{"$f":"RIGHT(CELL(\"filename\",A4),LEN(CELL(\"filename\",A4))-FIND(\"]\",CELL(\"filename\",A4)))","v":"3-4-2"},null,null,null,"分権型教育行政にかかる連絡調整・意見交換（大正区教育行政連絡会）",null,null,null,null,null,null,null,null,null,null,null,null,null,null,null,null,"令和４年４月１日\n保健福祉課（こども・教育）"]
[]
[]
["項目",null,null,null,null,null,null,"内容"]
["事業・業務概要","目的\n（事業の背景を含む）",null,null,null,null,null,"区における本市教育施策の推進に関して、「ニア・イズ・ベター」の観点から地域に身近な区と学校が連携して、教育現場の充実を図ることを目的とする。",null,null,null,null,null,null,null,null,null,null,null,null,null,null,null,null,null,null,null,null,null,null,null,null,null,"一覧へ戻る"]
[]
[]
[]
[null,"内容",null,null,null,null,null,"・区長と区内各小・中学校長との、本市教育施策に関する意見交換及び情報交換や連絡調整。\n小学校においては、教育行政連絡会後、校長会（教育行政連絡会と同日）・教頭会（別日）を開催。\n・事務連絡については校長会及び教頭会にて行う。\n"]
[]
[]
[]
[]
[]
[]
[]
[null,"予算額（予算科目）",null,null,null,null,null,"-"]
[null,"事業実施期間（回数）",null,null,null,null,null,"小学校：11回、中学校：11回"]
[null,"事業対象者（人数）",null,null,null,null,null,"小・中学校長：14名"]
["委託関係","契約・入札方法",null,null,null,null,null,"-"]
[null,"募集要項のポイント",null,null,null,null,null,"-"]
[]
[]
[null,"仕様書のポイント",null,null,null,null,null,"-"]
[]
[]
[null,"選考委員等選考方式"]
[]
["スケジュール（実施決裁、入札募集開始、説明会、選考会、事業の実施　等）",null,null,null,null,null,null,null,null,null,null,null,null,null,null,null,null,null,null,null,null,null,null,null,"広報スケジュール",null,null,null,"スケ",null,"作業"]
["（前年度）","1月～3月","【1～3月】\n・小学校　月１回\n・中学校　月１回",null,null,null,null,null,null,null,null,null,null,null,null,null,null,null,null,null,null,null,null,null,null,null,null,null,"〇",null,"〇"]
[]
[]
["4月～\n6月",null,"【4～6月】\n・小学校　月１回 ４月、奇数月ごとに１回\n・中学校　月１回\n",null,null,null,null,null,null,null,null,null,null,null,null,null,null,null,null,null,null,null,null,null,"ホームページにおいて、開催報告",null,null,null,"〇",null,"〇"]
[]
[]
["7月～\n9月",null,"【7月】\n・小学校　月１回奇数月ごとに１回\n・中学校　月１回\n【9月】\n・小学校　月１回奇数月ごとに１回\n・中学校　月１回",null,null,null,null,null,null,null,null,null,null,null,null,null,null,null,null,null,null,null,null,null,"ホームページにおいて、開催報告",null,null,null,"〇",null,"〇"]
[]
[]
["10月～\n12月",null,"【10～12月】\n・小学校　月１回奇数月ごとに１回\n・中学校　月１回",null,null,null,null,null,null,null,null,null,null,null,null,null,null,null,null,null,null,null,null,null,"ホームページにおいて、開催報告",null,null,null,"〇",null,"〇"]
[]
[]
["1月～\n3月",null,"【1～3月】\n・小学校　月１回奇数月ごとに１回\n・中学校　月１回",null,null,null,null,null,null,null,null,null,null,null,null,null,null,null,null,null,null,null,null,null,"ホームページにおいて、開催報告",null,null,null,"〇",null,"〇"]
[]
[]
["備考",null,"８月については、休会\n小学校の学校長の日程調整が難しい中、幹事校長より奇数月に開催したいとの提案があり、承認したことで月１回より奇数月ごとに１回に変更"]
[]
["項目",null,null,null,null,null,null,"内容"]
["講座・イベント・会議名",null,null,null,null,null,null,"教育行政連絡会（小学校・中学校）"]
["イベント等開催関係","開催日時",null,null,null,null,null,"毎月１回開催（※８月を除く）"]
[null,"開催場所",null,null,null,null,null,"区役所　会議室"]
[null,"区役所の主催等",null,null,null,null,null,"-"]
[null,"その他主催団体・組織等",null,null,null,null,null,"-"]
[null,"共催団体・組織等",null,null,null,null,null,"-"]
[null,"後援団体・組織等",null,null,null,null,null,"-"]
[null,"目標事業規模",null,null,null,null,null,"小・中学校長、区長、副区長、区役所関係者（各課長は議題により出席）、区担当指導主事"]
[null,"その他留意事項",null,null,null,null,null,"-"]
[null,"イベント等\n当日タイムテーブル",null,null,null,null,null,"【標準的な例】　\n・区長あいさつ\n・前回会議の振り返り（前回会議での質問への回答等）\n・教育施策及び区長会議関連報告など\n・意見交換及び情報交換や連絡調整\n"]
[]
[]
[]
[]
[null,"挨拶者",null,null,null,null,null,"区長"]
[null,"来賓紹介",null,null,null,null,null,"-"]
[null,"祝電紹介の方法",null,null,null,null,null,"-"]
[null,"動員の方法",null,null,null,null,null,"-"]
["その他他課との連携等",null,null,null,null,null,null,"-"]
["前年度実績",null,null,null,null,null,null,"・11回開催（８月を除く）(令和３年度)\n・自校において、学校の実情に応じた教育が行われ教育内容がより充実したと感じる区内小・中学校長の割合：85％（令和３年度）"]
["業績目標",null,null,null,"実績",null,null,"・小学校、中学校ともに原則毎月１回会議を開催し、意見等については適時適切にフィードバックを行う。",null,null,null,null,null,null,null,null,null,null,null,null,"小学校は４月及び奇数月の開催、\n中学校は毎月１回の開催を行い、意見等については適時適切にフィードバックを行った。",null,null,null,null,null,null,null,null,"自己評価"]
[null,null,null,null,null,null,null,null,null,null,null,null,null,null,null,null,null,null,null,null,null,null,null,null,null,null,null,null,null,"〇"]
[]
[]
["成果目標",null,null,null,"実績",null,null,"・教育行政連絡会を通じて、学校長の意見が区教育行政に反映され、内容がより充実したと感じる区内小・中学校長の割合90％以上",null,null,null,null,null,null,null,null,null,null,null,null,"教育行政連絡会を通じて、学校長の意見が区教育行政に反映され、内容がより充実したと感じる区内小・中学校長の割合88.8％",null,null,null,null,null,null,null,null,"△"]
[]
[]
[]
[]
["中期展望",null,null,null,null,null,null,"区内小中学校長と必要な意見交換等を継続して行い、ニア・イズ・ベターの観点から、学校と区役所が連携しながら、学校や地域における教育のさらなる活性化をめざす。"]
[]
[]
["成果目標が\n中期展望に\n寄与する理由",null,null,null,null,null,null,"学校長の意見が区教育行政に反映することで、より一層、分権型教育行政が推進され、教育の活性化が期待できる。"]
[]
[]
[]
[]
["SDGｓゴール",null,null,null,4,null,null,null,{"$f":"+IF(ISERROR(VLOOKUP($E86,[5]SDGｓ!$A$2:$B$18,2,0)),\"\",VLOOKUP($E86,[5]SDGｓ!$A$2:$B$18,2,0))","v":"質の高い教育をみんなに"}]
[null,null,null,null,null,null,null,null,{"$f":"+IF(ISERROR(VLOOKUP($E87,[5]SDGｓ!$A$2:$B$18,2,0)),\"\",VLOOKUP($E87,[5]SDGｓ!$A$2:$B$18,2,0))","v":""}]
[null,null,null,null,null,null,null,null,{"$f":"+IF(ISERROR(VLOOKUP($E88,[5]SDGｓ!$A$2:$B$18,2,0)),\"\",VLOOKUP($E88,[5]SDGｓ!$A$2:$B$18,2,0))","v":""}]
[]
["修正履歴",null,null,null,"スケジュール欄の修正"]

{"sheet":"3-4-3","index":18,"n_rows":90,"n_cols":34,"rows_kept":90,"cut":false,"hidden":false,"merged":[[89,0,89,3],[89,4,89,31],[80,0,83,6],[80,7,83,31],[85,0,87,3],[85,4,85,7],[85,8,85,31],[86,4,86,7],[86,8,86,31],[87,4,87,7],[87,8,87,31],[77,0,79,6],[77,7,79,31],[67,0,67,6],[67,7,67,31],[68,0,71,3],[68,4,71,6],[68,7,71,19],[68,20,71,28],[68,29,68,31],[69,29,71,31],[66,0,66,6],[66,7,66,31],[57,1,61,6],[57,7,61,31],[62,1,62,6],[62,7,62,31],[63,1,63,6],[63,7,63,31],[72,0,76,3],[72,4,76,6],[72,7,76,19],[72,20,76,28],[72,29,76,31],[53,7,53,31],[54,1,54,6],[54,7,54,31],[55,1,55,6],[55,7,55,31],[56,1,56,6],[56,7,56,31],[49,0,65,0],[49,1,49,6],[49,7,49,31],[50,1,50,6],[50,7,50,31],[51,1,51,6],[51,7,51,31],[52,1,52,6],[52,7,52,31],[53,1,53,6],[64,1,64,6],[64,7,64,31],[65,1,65,6],[65,7,65,31],[45,0,46,1],[45,2,46,31],[47,0,47,6],[47,7,47,31],[48,0,48,6],[48,7,48,31],[39,2,41,23],[39,28,41,29],[39,30,41,31],[42,0,44,1],[42,2,44,23],[42,28,44,29],[42,30,44,31],[33,0,35,1],[33,2,35,23],[33,24,44,27],[33,28,35,29],[33,30,35,31],[36,0,38,1],[36,2,38,23],[36,28,38,29],[36,30,38,31],[39,0,41,1],[29,0,29,23],[29,24,29,27],[29,28,29,29],[29,30,29,31],[30,0,32,0],[30,1,32,1],[30,2,32,23],[30,24,32,27],[30,28,32,29],[30,30,32,31],[20,0,27,0],[20,1,20,6],[20,7,20,31],[21,1,23,6],[21,7,23,31],[24,1,26,6],[24,7,26,31],[27,1,27,6],[27,7,27,31],[5,33,7,34],[9,1,16,6],[9,7,16,31],[17,1,17,6],[17,7,17,31],[18,1,18,6],[18,7,18,31],[4,0,4,6],[4,7,4,31],[5,0,19,0],[5,1,8,6],[5,7,8,31],[19,1,19,6],[19,7,19,31],[0,0,0,3],[0,4,0,20],[0,21,0,27],[0,28,0,29],[0,30,0,31],[1,4,2,20],[1,21,2,27],[1,28,2,29],[1,30,2,31],[1,0,2,3]]}
["取組番号",null,null,null,"事業名",null,null,null,null,null,null,null,null,null,null,null,null,null,null,null,null,"作成年月日・担当",null,null,null,null,null,null,"重点",null,"新規"]
[{"$f":"RIGHT(CELL(\"filename\",A4),LEN(CELL(\"filename\",A4))-FIND(\"]\",CELL(\"filename\",A4)))","v":"3-4-3"},null,null,null,"学校協議会の運営補佐",null,null,null,null,null,null,null,null,null,null,null,null,null,null,null,null,"令和４年４月１日\n保健福祉課（こども・教育）"]
[]
[]
["項目",null,null,null,null,null,null,"内容"]
["事業・業務概要","目的\n（事業の背景を含む）",null,null,null,null,null,"保護者や地域住民などの学校運営への参加を促進し、開かれた学校運営を実現し、より良い学校教育を推進することを目的とする。",null,null,null,null,null,null,null,null,null,null,null,null,null,null,null,null,null,null,null,null,null,null,null,null,null,"一覧へ戻る"]
[]
[]
[]
[null,"内容",null,null,null,null,null,"保護者や地域住民などそれぞれの意向を学校運営に反映させるとともに、学校協議会委員は学校協議会の目的や役割を理解し、各学校協議会において活発に意見交換を行う。\n地域担当課長及び区教育担当職員が各回の学校協議会に出席する。\n学校協議会の趣旨を共有し、各学校協議会が適切に運営されるよう、区役所において日中と夜間の２回、委員研修会を開催し、学校協議会や委員の役割について説明を行う。\n学校協議会で活発な意見交換が行えるよう、事前に委員へ資料を送付することについて、教育行政連絡会を通じ、各校へ周知徹底を行う。また、学校施策評価について報告を行い、学校運営に反映されるよう協議を行う。\n学校協議会の役割等の周知や会議において議論が活性化されるよう学校・地域と協力して進めていくともに、各校の会議手法等の共有を図る。\n地域学校協働活動推進体制のもと、地域・学校・保護者が協働・連携を強化できるよう支援する。"]
[]
[]
[]
[]
[]
[]
[]
[null,"予算額（予算科目）",null,null,null,null,null,"-"]
[null,"事業実施期間（回数）",null,null,null,null,null,"各学校協議会への出席(基本年３回)\n委員研修２回"]
[null,"事業対象者（人数）",null,null,null,null,null,"各学校協議会委員　他"]
["委託関係","契約・入札方法",null,null,null,null,null,"-"]
[null,"募集要項のポイント",null,null,null,null,null,"-"]
[]
[]
[null,"仕様書のポイント",null,null,null,null,null,"-"]
[]
[]
[null,"選考委員等選考方式",null,null,null,null,null,"-"]
[]
["スケジュール（実施決裁、入札募集開始、説明会、選考会、事業の実施　等）",null,null,null,null,null,null,null,null,null,null,null,null,null,null,null,null,null,null,null,null,null,null,null,"広報スケジュール",null,null,null,"スケ",null,"作業"]
["（前年度）","1月～3月","【２月～３月】\n・各学校協議会へ各地域担当または教育担当が参加",null,null,null,null,null,null,null,null,null,null,null,null,null,null,null,null,null,null,null,null,null,null,null,null,null,"〇",null,"〇"]
[]
[]
["4月～\n6月",null,"【４月】\n・各学校協議会へ各地域担当または教育担当が参加",null,null,null,null,null,null,null,null,null,null,null,null,null,null,null,null,null,null,null,null,null,"学校協議会委員研修会・各学校協議会の開催状況について、情報発信（区広報紙・ホームページ・フェイスブック・ツイッター）",null,null,null,"〇",null,"〇"]
[]
[]
["7月～\n9月",null,"【７月】\n・各学校協議会タイムスケジュールの共有\n【７月～９月】\n・委員研修会の実施",null,null,null,null,null,null,null,null,null,null,null,null,null,null,null,null,null,null,null,null,null,null,null,null,null,"〇",null,"〇"]
[]
[]
["10月～\n12月",null,"【10月～12月】\n・各学校協議会へ各地域担当または教育担当が参加\n",null,null,null,null,null,null,null,null,null,null,null,null,null,null,null,null,null,null,null,null,null,null,null,null,null,"〇",null,"〇"]
[]
[]
["1月～\n3月",null,"【２月～３月】\n・各学校協議会へ各地域担当または教育担当が参加",null,null,null,null,null,null,null,null,null,null,null,null,null,null,null,null,null,null,null,null,null,null,null,null,null,"〇",null,"〇"]
[]
[]
["備考"]
[]
["項目",null,null,null,null,null,null,"内容"]
["講座・イベント・会議名",null,null,null,null,null,null,"学校協議会委員研修会"]
["イベント等開催関係","開催日時",null,null,null,null,null,"７月～９月"]
[null,"開催場所",null,null,null,null,null,"区役所　会議室"]
[null,"区役所の主催等",null,null,null,null,null,"主催"]
[null,"その他主催団体・組織等",null,null,null,null,null,"―"]
[null,"共催団体・組織等",null,null,null,null,null,"―"]
[null,"後援団体・組織等",null,null,null,null,null,"―"]
[null,"目標事業規模",null,null,null,null,null,"―"]
[null,"その他留意事項",null,null,null,null,null,"―"]
[null,"イベント等\n当日タイムテーブル",null,null,null,null,null,"タイムテーブル(委員研修・約１時間)\n①区長、課長あいさつ\n②教育振興基本計画について\n③学校協議会について\n④質疑応答、事務連絡\n"]
[]
[]
[]
[]
[null,"挨拶者",null,null,null,null,null,"区長、こども・教育担当課長"]
[null,"来賓紹介",null,null,null,null,null,"―"]
[null,"祝電紹介の方法",null,null,null,null,null,"―"]
[null,"動員の方法",null,null,null,null,null,"―"]
["その他他課との連携等",null,null,null,null,null,null,"―"]
["前年度実績",null,null,null,null,null,null,"・各校において、３回実施新型コロナウイルス感染症拡大防止のため一部書面での開催）（令和３年度）\n・委員を務める学校において、学校の実情に応じた教育が行われ教育内容がより充実したと感じる区内小・中学校の学校協議会委員の割合：90％（令和３年度）\n・区民意識調査において区民全体の制度の認知度の割合：21.3％（令和３年度）"]
["業績目標",null,null,null,"実績",null,null,"・開催されるすべて（各校年3回以上の開催）の学校協議会に区役所地域担当が出席する。\n・各学校園における学校協議会の開催について、区広報紙への掲載：年３回以上",null,null,null,null,null,null,null,null,null,null,null,null,"・開催されるすべて（各校年3回以上の開催）の学校協議会に区役所地域担当が出席した。\n・各学校園における学校協議会の開催について、区広報紙への掲載：年３回",null,null,null,null,null,null,null,null,"自己評価"]
[null,null,null,null,null,null,null,null,null,null,null,null,null,null,null,null,null,null,null,null,null,null,null,null,null,null,null,null,null,"〇"]
[]
[]
["成果目標",null,null,null,"実績",null,null,"委員を務める学校において、積極的に学校運営に参画し、その意向が的確に学校運営に反映されたと感じる区内小・中学校の学校協議会委員の割合：90％以上\n区民意識調査において区民全体の制度の認知度の割合：25%以上",null,null,null,null,null,null,null,null,null,null,null,null,"・委員を務める学校において、積極的に学校運営に参画し、その意向が的確に学校運営に反映されたと感じる区内小・中学校の学校協議会委員の割合：84％以上\n・区民意識調査において区民全体の制度の認知度の割合：24.8%以上",null,null,null,null,null,null,null,null,"△"]
[]
[]
[]
[]
["中期展望",null,null,null,null,null,null,"開かれた学校運営を実現し、学校・地域の実情に応じたよりよい学校教育運営が築かれている状態をめざす。"]
[]
[]
["成果目標が\n中期展望に\n寄与する理由",null,null,null,null,null,null,"保護者や地域住民の意向が学校運営に反映されることにより、地域に開かれた学校運営が図られるとともに、学校が活性化され、学校・地域の実情に応じたよりよい教育環境が構築される。"]
[]
[]
[]
[]
["SDGｓゴール",null,null,null,4,null,null,null,{"$f":"+IF(ISERROR(VLOOKUP($E86,[5]SDGｓ!$A$2:$B$18,2,0)),\"\",VLOOKUP($E86,[5]SDGｓ!$A$2:$B$18,2,0))","v":"質の高い教育をみんなに"}]
[null,null,null,null,null,null,null,null,{"$f":"+IF(ISERROR(VLOOKUP($E87,[5]SDGｓ!$A$2:$B$18,2,0)),\"\",VLOOKUP($E87,[5]SDGｓ!$A$2:$B$18,2,0))","v":""}]
[null,null,null,null,null,null,null,null,{"$f":"+IF(ISERROR(VLOOKUP($E88,[5]SDGｓ!$A$2:$B$18,2,0)),\"\",VLOOKUP($E88,[5]SDGｓ!$A$2:$B$18,2,0))","v":""}]
[]
["修正履歴"]

{"sheet":"3-4-4","index":19,"n_rows":88,"n_cols":34,"rows_kept":88,"cut":false,"hidden":false,"merged":[[87,0,87,3],[87,4,87,31],[78,0,81,6],[78,7,81,31],[83,0,85,3],[83,4,83,7],[83,8,83,31],[84,4,84,7],[84,8,84,31],[85,4,85,7],[85,8,85,31],[75,0,77,6],[75,7,77,31],[65,0,65,6],[65,7,65,31],[66,0,69,3],[66,4,69,6],[66,7,69,19],[66,20,69,28],[66,29,66,31],[67,29,69,31],[64,0,64,6],[64,7,64,31],[55,1,59,6],[55,7,59,31],[60,1,60,6],[60,7,60,31],[61,1,61,6],[61,7,61,31],[70,0,74,3],[70,4,74,6],[70,7,74,19],[70,20,74,28],[70,29,74,31],[51,7,51,31],[52,1,52,6],[52,7,52,31],[53,1,53,6],[53,7,53,31],[54,1,54,6],[54,7,54,31],[47,0,63,0],[47,1,47,6],[47,7,47,31],[48,1,48,6],[48,7,48,31],[49,1,49,6],[49,7,49,31],[50,1,50,6],[50,7,50,31],[51,1,51,6],[62,1,62,6],[62,7,62,31],[63,1,63,6],[63,7,63,31],[43,0,44,1],[43,2,44,31],[45,0,45,6],[45,7,45,31],[46,0,46,6],[46,7,46,31],[37,0,39,1],[37,2,39,23],[37,24,39,27],[37,28,39,29],[37,30,39,31],[40,0,42,1],[40,2,42,23],[40,24,42,27],[40,28,42,29],[40,30,42,31],[31,0,33,1],[31,2,33,23],[31,24,33,27],[31,28,33,29],[31,30,33,31],[34,0,36,1],[34,2,36,23],[34,24,36,27],[34,28,36,29],[34,30,36,31],[27,0,27,23],[27,24,27,27],[27,28,27,29],[27,30,27,31],[28,0,30,0],[28,1,30,1],[28,2,30,23],[28,24,30,27],[28,28,30,29],[28,30,30,31],[22,0,25,0],[22,1,22,6],[22,7,22,31],[23,1,23,6],[23,7,23,31],[24,1,24,6],[24,7,24,31],[25,1,25,6],[25,7,25,31],[5,33,7,34],[9,1,16,6],[9,7,16,31],[17,1,19,6],[17,7,19,31],[20,1,20,6],[20,7,20,31],[4,0,4,6],[4,7,4,31],[5,0,21,0],[5,1,8,6],[5,7,8,31],[21,1,21,6],[21,7,21,31],[0,0,0,3],[0,4,0,20],[0,21,0,27],[0,28,0,29],[0,30,0,31],[1,4,2,20],[1,21,2,27],[1,28,2,29],[1,30,2,31],[1,0,2,3]]}
["取組番号",null,null,null,"事業名",null,null,null,null,null,null,null,null,null,null,null,null,null,null,null,null,"作成年月日・担当",null,null,null,null,null,null,"重点",null,"新規"]
["1-6-10\n3-4-4",null,null,null,"食育の推進",null,null,null,null,null,null,null,null,null,null,null,null,null,null,null,null,"令和４年４月１日\n保健福祉課（健康づくり）",null,null,null,null,null,null,null,null,"〇"]
[]
[]
["項目",null,null,null,null,null,null,"内容"]
["事業・業務概要","目的\n（事業の背景を含む）",null,null,null,null,null,"死因の大半を占める悪性新生物(がん)、心疾患、脳血管疾患、肺炎等の背景には生活習慣病やフレイル等が関係しており、生活習慣病やフレイルを予防するための食生活習慣の正しい知識の普及と行動変容に向けた取り組みを促すため、「栄養バランスへの配慮」や「欠食しない」、「野菜摂取量の増加」、「共食」、「食べ方への関心」等を指標として、大阪市では第３次大阪市食育推進計画に取り組んでいる。\n特に大正区では、大阪市24区内でも生活習慣病の有病者割合が高い傾向であり、他の健康増進事業と組み合わせて、とりわけ若い世代を対象として食育推進の働きかけをする必要がある。加えて、全世代を対象として地域に密着した食育を推進するために、関係団体等との連携・協力をすすめる必要がある。",null,null,null,null,null,null,null,null,null,null,null,null,null,null,null,null,null,null,null,null,null,null,null,null,null,"一覧へ戻る"]
[]
[]
[]
[null,"内容",null,null,null,null,null,"　とりわけ若い世代の課題：【食育の推進事業で取り組む】将来の生活習慣病予防や介護予防に寄与する望ましい食生活習慣の定着のため、朝食の摂食習慣の重要性や、野菜摂取量の増加、栄養バランスに配慮した食生活の重要性等について講習や実習等により望ましい食生活習慣の定着をはかる。講座の開催にあたっては、地域の関係団体・施設等と連携してすすめる。\n　壮年期の課題：【がん・生活習慣病予防対策の推進事業で取り組む】健康寿命延伸のため、生活習慣病予防や介護予防に寄与する食生活習慣の改善に寄与する野菜摂取量の増加や、栄養バランスに配慮した食生活を送る人の増加、朝食欠食者に対しては朝食欠食等を中心としたテーマで講習や実習等で望ましい食生活習慣の定着をはかる。講座の開催にあたっては、地域の関係団体・施設等と連携してすすめる。\n　高齢期の課題：【高齢者の健康増進事業で取り組む】高齢期でも自立した生活を営めるよう、低栄養の予防のために必要な食事の欠食対策や、栄養バランスに配慮した食生活等についての講習等により介護予防への寄与を図る。講座の開催にあたっては、地域の関係団体・施設等と連携してすすめる。\n　区の課題としては、高齢化率が高く生活習慣病の有病者割合が高い傾向であること等があげられるが、青壮年期への生活習慣病予防(「栄養バランスへの配慮」や「欠食しない」、「野菜摂取量の増加」等をテーマとした講習等)については【がん・生活習慣病予防対策の推進事業】で取り組み、高齢期への低栄養予防課題については【高齢者の健康増進事業】で取り組むこととしている。\n　食育の推進事業については、とりわけ若い世代に対しての講座において、将来の生活習慣病予防や介護予防に寄与する望ましい食生活習慣の定着のため、朝食の摂食習慣の重要性や、野菜摂取量の増加、栄養バランスに配慮した食生活を送る人の増加等をテーマとして講座を開催する。中でも、保育所・幼稚園・認定こども園・学校等についてはそれぞれ食育推進計画等を作成し、施設職員等でも食育推進に取り組んでいるため、区栄養士としては集団生活に属さない乳幼児や、子育て世代の者等を対象に食育講座を開催することで、間断のない食育をすすめ、将来の生活習慣病予防や介護予防に寄与する望ましい食生活習慣の定着のための講習等を行う。\n　また、食育の推進においては、区役所保健福祉課単独での食育推進だけでなく、区民及び大正区勤務者等幅広く食育の推進を図れることを期待し、地域の食育関係団体や施設等との連携をはかるため、食育推進ネットワーク会議を開催している。\n食育推進ネットワーク会議については、子ども関係部会には保育所・幼稚園・認定こども園・学校・子育て関係施設・図書館・食生活改善推進員協議会、成人関係部会には高齢者関係施設・福祉関係施設・事業所等のメンバーと連携し、幅広い年代を対象として地域ぐるみで食育を推進をすすめるための体制づくりに取り組んでいる。\n・食育推進ネットワーク会議の開催\n　区内の食育関係者が連携・協働し、食育に関する情報の収集・発信・共有を図り、地域の食生活上の課題について効果的な取り組みの検討を行い、食育を推進していく。\n・各種広報媒体による啓発\n・食育講座の開催\n　とりわけ若い世代(胎児期～子育て世代)に対して食生活における行動変容を促すことができる実習を含む講座等を開催する。\n　(青壮年期～高齢期については、がん・生活習慣病予防対策の推進事業、高齢者の健康増進事業、区民の健康増進及び健康づくりの人材育成事業等で食育を推進する。)\n・食育展の開催\n　食育推進ネットワーク会議や関係団体等と連携し、食育をテーマとした展示会、キャンペーン等を開催し、区民への食育への関心を高める契機とする。\n\n【参考】大阪市では各年度重点的に取り組むテーマは以下のとおりとされている。\n平成30年度「朝ごはんを食べよう」平成31年度「バランスよく食べよう」令和２年度「野菜を食べよう」令和３年度「よく嚙んで食べよう」令和４年度「朝ごはんを食べよう」令和５年度「バランスよく食べよう」計画期間共通「一緒に食べよう」「よく見て食べよう」「大切に食べよう」"]
[]
[]
[]
[]
[]
[]
[]
[null,"予算額（予算科目）",null,null,null,null,null,"健康局CM予算【食育推進連絡調整会議】(消耗品費:15千円)\n健康局予算【食育啓発事業】(消耗品費:10千円)"]
[]
[]
[null,"事業実施期間（回数）",null,null,null,null,null,"食育推進ネットワーク会議(２回以上)、食育講座(５回以上)、食育に関するイベント(１回以上)"]
[null,"事業対象者（人数）",null,null,null,null,null,"区民"]
["委託関係","契約・入札方法",null,null,null,null,null,"―"]
[null,"募集要項のポイント",null,null,null,null,null,"―"]
[null,"仕様書のポイント",null,null,null,null,null,"―"]
[null,"選考委員等選考方式",null,null,null,null,null,"―"]
[]
["スケジュール（実施決裁、入札募集開始、説明会、選考会、事業の実施　等）",null,null,null,null,null,null,null,null,null,null,null,null,null,null,null,null,null,null,null,null,null,null,null,"広報スケジュール",null,null,null,"スケ",null,"作業"]
["（前年度）","1月～3月",null,null,null,null,null,null,null,null,null,null,null,null,null,null,null,null,null,null,null,null,null,null,null,null,null,null,"-",null,"-"]
[]
[]
["4月～\n6月",null,"関係機関等との講座等の日程調整\n食育講座の開催",null,null,null,null,null,null,null,null,null,null,null,null,null,null,null,null,null,null,null,null,null,"広報紙、HP、ポスター、Facebook、Twitter",null,null,null,"〇",null,"〇"]
[]
[]
["7月～\n9月",null,"食育講座の開催\n食育推進ネットワーク会議の開催",null,null,null,null,null,null,null,null,null,null,null,null,null,null,null,null,null,null,null,null,null,"広報紙、HP、ポスター、Facebook、Twitter",null,null,null,"〇",null,"〇"]
[]
[]
["10月～\n12月",null,"食育講座の開催\n食育展の開催",null,null,null,null,null,null,null,null,null,null,null,null,null,null,null,null,null,null,null,null,null,"広報紙、HP、ポスター、Facebook、Twitter",null,null,null,"〇",null,"〇"]
[]
[]
["1月～\n3月",null,"食育講座の開催\n食育推進ネットワーク会議の開催",null,null,null,null,null,null,null,null,null,null,null,null,null,null,null,null,null,null,null,null,null,"広報紙、HP、ポスター、Facebook、Twitter",null,null,null,"〇",null,"〇"]
[]
[]
["備考",null,"毎月19日の食育の日を契機として適宜情報発信する。"]
[]
["項目",null,null,null,null,null,null,"内容"]
["講座・イベント・会議名",null,null,null,null,null,null,"食育推進ネットワーク会議、食育講座、食育展"]
["イベント等開催関係","開催日時",null,null,null,null,null,"未定"]
[null,"開催場所",null,null,null,null,null,"地域等"]
[null,"区役所の主催等",null,null,null,null,null,"主催、共催"]
[null,"その他主催団体・組織等",null,null,null,null,null,"未定"]
[null,"共催団体・組織等",null,null,null,null,null,"未定"]
[null,"後援団体・組織等",null,null,null,null,null,"―"]
[null,"目標事業規模",null,null,null,null,null,"―"]
[null,"その他留意事項",null,null,null,null,null,"―"]
[null,"イベント等\n当日タイムテーブル",null,null,null,null,null,"未定"]
[]
[]
[]
[]
[null,"挨拶者",null,null,null,null,null,"―"]
[null,"来賓紹介",null,null,null,null,null,"―"]
[null,"祝電紹介の方法",null,null,null,null,null,"―"]
[null,"動員の方法",null,null,null,null,null,"―"]
["その他他課との連携等",null,null,null,null,null,null,"―"]
["前年度実績",null,null,null,null,null,null,"(令和３年度実績)\n食育推進ネットワーク会議１回・食育講座６回・食育ポスター展１回・区民意識調査で、食生活の改善に取り組んでいる人の割合２９．８％"]
["業績目標",null,null,null,"実績",null,null,"食育推進ネットワーク会議(２回以上)、食育講座(６回以上)、食育に関するイベント(１回以上)",null,null,null,null,null,null,null,null,null,null,null,null,"食育推進ネットワーク会議１回、食育講座10回、食育に関するイベント１回",null,null,null,null,null,null,null,null,"自己評価"]
[null,null,null,null,null,null,null,null,null,null,null,null,null,null,null,null,null,null,null,null,null,null,null,null,null,null,null,null,null,"△"]
[]
[]
["成果目標",null,null,null,"実績",null,null,"区民意識調査で、食生活の改善に取り組んでいる人の割合が30％以上",null,null,null,null,null,null,null,null,null,null,null,null,"食生活の改善に取り組んでいると回答した区民の割合44.4％",null,null,null,null,null,null,null,null,"◎"]
[]
[]
[]
[]
["中期展望",null,null,null,null,null,null,"食に関する知識を得、食を選択する能力を養い、健全な食生活と心豊かな生活を送ることができる"]
[]
[]
["成果目標が\n中期展望に\n寄与する理由",null,null,null,null,null,null,"食生活の改善に取り組む区民が増加することは、区民の健全な食生活と心豊かな生活につながるため"]
[]
[]
[]
[]
["SDGｓゴール",null,null,null,3,null,null,null,{"$f":"+IF(ISERROR(VLOOKUP($E84,[6]SDGｓ!$A$2:$B$18,2,0)),\"\",VLOOKUP($E84,[6]SDGｓ!$A$2:$B$18,2,0))","v":"すべての人に健康と福祉を"}]
[null,null,null,null,null,null,null,null,{"$f":"+IF(ISERROR(VLOOKUP($E85,[6]SDGｓ!$A$2:$B$18,2,0)),\"\",VLOOKUP($E85,[6]SDGｓ!$A$2:$B$18,2,0))","v":""}]
[null,null,null,null,null,null,null,null,{"$f":"+IF(ISERROR(VLOOKUP($E86,[6]SDGｓ!$A$2:$B$18,2,0)),\"\",VLOOKUP($E86,[6]SDGｓ!$A$2:$B$18,2,0))","v":""}]
[]
["修正履歴"]

{"sheet":"3-5","index":20,"n_rows":33,"n_cols":5,"rows_kept":33,"cut":false,"hidden":false,"merged":[[32,2,32,3],[32,4,32,9],[30,2,30,3],[30,4,30,9],[28,2,28,3],[28,4,28,9],[29,2,29,3],[29,4,29,9],[31,2,31,3],[31,4,31,9]]}
["【3】次世代の未来が輝くまちへ"]
[]
[null,"3-5　問題行動への対応"]
[]
[null,"◆","目指すべき将来像"]
[]
[]
[]
[]
[]
[null,"◆","施策"]
[]
[]
[]
[]
[]
[]
[]
[]
[]
[]
[]
[]
[null,"◆","施策目標"]
[]
[]
[]
[null,"◆","具体的取組（事業・業務計画書）"]
[null,null,"取組番号",null,"事業名"]
[null,null,"3-5-1",null,{"$f":"'目次 (3)'!D31","v":"区独自スクールソーシャルワーカーの活用事業"}]
[null,null,"3-5-2",null,{"$f":"'目次 (3)'!D32","v":"学習・登校サポート事業"}]
[null,null,"3-5-3",null,{"$f":"'目次 (3)'!D33","v":"「こどもサポートネット」の実施"}]
[null,null,"3-5-4",null,{"$f":"'目次 (3)'!D34","v":"児童への虐待対応・防止"}]

{"sheet":"3-5-1","index":21,"n_rows":90,"n_cols":34,"rows_kept":90,"cut":false,"hidden":false,"merged":[[89,0,89,3],[89,4,89,31],[80,0,83,6],[80,7,83,31],[85,0,87,3],[85,4,85,7],[85,8,85,31],[86,4,86,7],[86,8,86,31],[87,4,87,7],[87,8,87,31],[77,0,79,6],[77,7,79,31],[67,0,67,6],[67,7,67,31],[68,0,71,3],[68,4,71,6],[68,7,71,19],[68,20,71,28],[68,29,68,31],[69,29,71,31],[66,0,66,6],[66,7,66,31],[57,1,61,6],[57,7,61,31],[62,1,62,6],[62,7,62,31],[63,1,63,6],[63,7,63,31],[72,0,76,3],[72,4,76,6],[72,7,76,19],[72,20,76,28],[72,29,76,31],[53,7,53,31],[54,1,54,6],[54,7,54,31],[55,1,55,6],[55,7,55,31],[56,1,56,6],[56,7,56,31],[49,0,65,0],[49,1,49,6],[49,7,49,31],[50,1,50,6],[50,7,50,31],[51,1,51,6],[51,7,51,31],[52,1,52,6],[52,7,52,31],[53,1,53,6],[64,1,64,6],[64,7,64,31],[65,1,65,6],[65,7,65,31],[45,0,46,1],[45,2,46,31],[47,0,47,6],[47,7,47,31],[48,0,48,6],[48,7,48,31],[39,0,41,1],[39,2,41,23],[39,24,41,27],[39,28,41,29],[39,30,41,31],[42,0,44,1],[42,2,44,23],[42,24,44,27],[42,28,44,29],[42,30,44,31],[33,0,35,1],[33,2,35,23],[33,24,35,27],[33,28,35,29],[33,30,35,31],[36,0,38,1],[36,2,38,23],[36,24,38,27],[36,28,38,29],[36,30,38,31],[29,0,29,23],[29,24,29,27],[29,28,29,29],[29,30,29,31],[30,0,32,0],[30,1,32,1],[30,2,32,23],[30,24,32,27],[30,28,32,29],[30,30,32,31],[20,0,27,0],[20,1,20,6],[20,7,20,31],[21,1,23,6],[21,7,23,31],[24,1,26,6],[24,7,26,31],[27,1,27,6],[27,7,27,31],[5,33,7,34],[9,1,16,6],[9,7,16,31],[17,1,17,6],[17,7,17,31],[18,1,18,6],[18,7,18,31],[4,0,4,6],[4,7,4,31],[5,0,19,0],[5,1,8,6],[5,7,8,31],[19,1,19,6],[19,7,19,31],[0,0,0,3],[0,4,0,20],[0,21,0,27],[0,28,0,29],[0,30,0,31],[1,4,2,20],[1,21,2,27],[1,28,2,29],[1,30,2,31],[1,0,2,3]]}
["取組番号",null,null,null,"事業名",null,null,null,null,null,null,null,null,null,null,null,null,null,null,null,null,"作成年月日・担当",null,null,null,null,null,null,"重点",null,"新規"]
["3-5-1\n3-6-3",null,null,null,"区独自スクールソーシャルワーカーの活用事業",null,null,null,null,null,null,null,null,null,null,null,null,null,null,null,null,"令和４年４月１日\n保健福祉課（こども・教育）"]
[]
[]
["項目",null,null,null,null,null,null,"内容"]
["事業・業務概要","目的\n（事業の背景を含む）",null,null,null,null,null,"今日の子どもの問題行動の背景には、児童・生徒の心の問題や家庭、友人関係、地域、学校等の環境の問題が複雑に絡み合っている。子どもの生活に関する実態調査からは「①困窮度の高い子育て世帯には複合的な課題がある。」「②諸施策はあるが十分に届かず適切な支援ができていない」ことが明らかになっており、こどもサポートネット事業と連携した総合的な働きかけが必要となっていることから、区独自スクールソーシャルワーカーをこどもサポートネット事業の一員として配置することにより、これら子どもの問題行動の課題解決に努めるとともに、すべての家庭が安心して子育てができる環境を作ることを目的とする。",null,null,null,null,null,null,null,null,null,null,null,null,null,null,null,null,null,null,null,null,null,null,null,null,null,"一覧へ戻る"]
[]
[]
[]
[null,"内容",null,null,null,null,null,"\n社会福祉等の専門的な知識や教育分野に関する知識を有するスクールソーシャルワーカーを区独自に雇用し、課題を抱える児童・生徒及び家庭への支援のアセスメントを行い（児童・生徒及び家庭の状況や変化に応じて、アセスメント内容を適宜再検討）、具体支援への継続的な働きかけや、関係機関等とのネットワークの構築・調整、学校に対しての課題解決のノウハウの伝授等を行うとともに、こどもサポートネットスクールソーシャルワーカー、こどもサポート推進員を総括し、区の児童、生徒への支援を円滑に進める。\n"]
[]
[]
[]
[]
[]
[]
[]
[null,"予算額（予算科目）",null,null,null,null,null,"【校長経営戦略支援予算】3,809千円（国庫補助1/3）\n（其他委員等報酬、期末勤勉手当、費用弁償、其他委員等旅費、消耗品費、通信運搬費）"]
[null,"事業実施期間（回数）",null,null,null,null,null,"令和４年４月１日～令和５年３月31日（週18時間・52週）"]
[null,"事業対象者（人数）",null,null,null,null,null,"区域内全児童・生徒"]
["委託関係","契約・入札方法",null,null,null,null,null,"公募※ただし更新あり（２回まで最長３年）"]
[null,"募集要項のポイント",null,null,null,null,null,"次の（１）から（３）をすべて満たす者を資格要件としている。\n（１）社会福祉士または精神保健福祉士の資格を有する者\n（２）社会福祉士または精神保健福祉士の資格の保有を条件として採用され、学校教育及び社会福祉に関して専門的な知識や技術を有し、過去に教育や福祉の分野で活動経験の実績等がある者\n（３）地方公務員法第16条各号（欠格条項）に該当しない者　"]
[]
[]
[null,"仕様書のポイント",null,null,null,null,null,"こどもサポートネットスクールソーシャルワーカー、こどもサポート推進員、家庭児童相談員、臨床心理士、スクールカウンセラー等を総括し、教育分野及び社会福祉に関する専門的な知識・技術を用いて、児童生徒やその家庭への支援等を行うよう規定"]
[]
[]
[null,"選考委員等選考方式",null,null,null,null,null,"―"]
[]
["スケジュール（実施決裁、入札募集開始、説明会、選考会、事業の実施　等）",null,null,null,null,null,null,null,null,null,null,null,null,null,null,null,null,null,null,null,null,null,null,null,"広報スケジュール",null,null,null,"スケ",null,"作業"]
["（前年度）","1月～3月","契約更新手続き等\n更新しない場合は、募集・雇用契約手続き",null,null,null,null,null,null,null,null,null,null,null,null,null,null,null,null,null,null,null,null,null,"【１月】ホームページにて募集開始",null,null,null,"〇",null,"〇"]
[]
[]
["4月～\n6月",null,"・こどもサポートネットスクリーニング会議Ⅱへの出席、学校・家庭訪問\n・アセスメントを行った児童・生徒等へ支援\n・区役所との打合せ、活動報告",null,null,null,null,null,null,null,null,null,null,null,null,null,null,null,null,null,null,null,null,null,null,null,null,null,"〇",null,"〇"]
[]
[]
["7月～\n9月",null,"・こどもサポートネットスクリーニング会議Ⅱへの出席、学校・家庭訪問\n・アセスメントを行った児童・生徒等へ支援\n・区役所との打合せ、中間活動報告、活動の検証",null,null,null,null,null,null,null,null,null,null,null,null,null,null,null,null,null,null,null,null,null,null,null,null,null,"〇",null,"〇"]
[]
[]
["10月～\n12月",null,"・こどもサポートネットスクリーニング会議Ⅱへの出席、学校・家庭訪問\n・アセスメントを行った児童・生徒等へ支援\n・区役所との打合せ、活動報告",null,null,null,null,null,null,null,null,null,null,null,null,null,null,null,null,null,null,null,null,null,null,null,null,null,"〇",null,"〇"]
[]
[]
["1月～\n3月",null,"・こどもサポートネットスクリーニング会議Ⅱへの出席、学校・家庭訪問\n・アセスメントを行った児童・生徒等へ支援\n・区役所との打合せ、年度末活動報告、活動の検証",null,null,null,null,null,null,null,null,null,null,null,null,null,null,null,null,null,null,null,null,null,null,null,null,null,"〇",null,"〇"]
[]
[]
["備考"]
[]
["項目",null,null,null,null,null,null,"内容"]
["講座・イベント・会議名",null,null,null,null,null,null,"―"]
["イベント等開催関係","開催日時",null,null,null,null,null,"―"]
[null,"開催場所",null,null,null,null,null,"―"]
[null,"区役所の主催等",null,null,null,null,null,"―"]
[null,"その他主催団体・組織等",null,null,null,null,null,"―"]
[null,"共催団体・組織等",null,null,null,null,null,"―"]
[null,"後援団体・組織等",null,null,null,null,null,"―"]
[null,"目標事業規模",null,null,null,null,null,"―"]
[null,"その他留意事項",null,null,null,null,null,"―"]
[null,"イベント等\n当日タイムテーブル",null,null,null,null,null,"―"]
[]
[]
[]
[]
[null,"挨拶者",null,null,null,null,null,"―"]
[null,"来賓紹介",null,null,null,null,null,"―"]
[null,"祝電紹介の方法",null,null,null,null,null,"―"]
[null,"動員の方法",null,null,null,null,null,"―"]
["その他他課との連携等",null,null,null,null,null,null,"児童・生徒が抱える課題解決に向け、各校や子育て支援室、家庭児童相談員と連携を行っている。"]
["前年度実績",null,null,null,null,null,null,"・スクリーニング会議Ⅱにより支援が必要とされた児童・生徒へのアウトリーチ数：42ケース、100回（令和３年度）\n・取り扱った件数のうち、具体支援策により課題や状況が解決、改善された件数：10ケース（令和３年度）\n・区独自SSWがこサポSSW、推進員等の活動内容について十分に確認を行い、それを踏まえ、学校に対して課題解決のノウハウを伝授する等、積極的に学校を支援した件数：７件（令和３年度）"]
["業績目標",null,null,null,"実績",null,null,"スクリーニング会議Ⅱにより支援が必要とされた児童・生徒へのアウトリーチ数：40ケース、100回以上",null,null,null,null,null,null,null,null,null,null,null,null,"スクリーニング会議Ⅱにより支援が必要とされた児童・生徒へのアウトリーチ数：46ケース、126回",null,null,null,null,null,null,null,null,"自己評価"]
[null,null,null,null,null,null,null,null,null,null,null,null,null,null,null,null,null,null,null,null,null,null,null,null,null,null,null,null,null,"◎"]
[]
[]
["成果目標",null,null,null,"実績",null,null,"・全件把握したケースに対して、具体支援策により課題や状況が解決、改善された件数：10ケース以上\n・区独自SSWがこサポSSW、推進員等の活動内容について十分に確認を行い、それを踏まえ、学校に対して課題解決のノウハウを伝授する等、積極的に学校を支援した件数：５件以上",null,null,null,null,null,null,null,null,null,null,null,null,"・全件把握したケースに対して、具体支援策により課題や状況が解決、改善された件数：17ケース\n・区独自SSWがこサポSSW、推進員等の活動内容について十分に確認を行い、それを踏まえ、学校に対して課題解決のノウハウを伝授する等、積極的に学校を支援した件数：10件",null,null,null,null,null,null,null,null,"◎"]
[]
[]
[]
[]
["中期展望",null,null,null,null,null,null,"区全体で問題解決に取組み、家庭や地域で問題解決が図れるようコーディネイトし、関係機関等とのネットワークが構築され、地域生活課題を地域において包括的に支援できている状態をめざす。"]
[]
[]
["成果目標が\n中期展望に\n寄与する理由",null,null,null,null,null,null,"区独自SSWがこどもサポートネットSSW、こどもサポート推進員を総括するなど、マネジメントを強化するとともに、児童・生徒が抱える問題を解決・改善することにより、課題解決のノウハウや関係機関との連携実績が蓄積でき、地域における包括的な支援体制の構築が図られる。"]
[]
[]
[]
[]
["SDGｓゴール",null,null,null,1,null,null,null,{"$f":"+IF(ISERROR(VLOOKUP($E86,[5]SDGｓ!$A$2:$B$18,2,0)),\"\",VLOOKUP($E86,[5]SDGｓ!$A$2:$B$18,2,0))","v":"貧困をなくそう"}]
[null,null,null,null,4,null,null,null,{"$f":"+IF(ISERROR(VLOOKUP($E87,[5]SDGｓ!$A$2:$B$18,2,0)),\"\",VLOOKUP($E87,[5]SDGｓ!$A$2:$B$18,2,0))","v":"質の高い教育をみんなに"}]
[null,null,null,null,null,null,null,null,{"$f":"+IF(ISERROR(VLOOKUP($E88,[5]SDGｓ!$A$2:$B$18,2,0)),\"\",VLOOKUP($E88,[5]SDGｓ!$A$2:$B$18,2,0))","v":""}]
[]
["修正履歴"]

{"sheet":"3-5-2","index":22,"n_rows":90,"n_cols":34,"rows_kept":90,"cut":false,"hidden":false,"merged":[[89,0,89,3],[89,4,89,31],[80,0,83,6],[80,7,83,31],[85,0,87,3],[85,4,85,7],[85,8,85,31],[86,4,86,7],[86,8,86,31],[87,4,87,7],[87,8,87,31],[77,0,79,6],[77,7,79,31],[67,0,67,6],[67,7,67,31],[68,0,71,3],[68,4,71,6],[68,7,71,19],[68,20,71,28],[68,29,68,31],[69,29,71,31],[66,0,66,6],[66,7,66,31],[57,1,61,6],[57,7,61,31],[62,1,62,6],[62,7,62,31],[63,1,63,6],[63,7,63,31],[72,0,76,3],[72,4,76,6],[72,7,76,19],[72,20,76,28],[72,29,76,31],[53,7,53,31],[54,1,54,6],[54,7,54,31],[55,1,55,6],[55,7,55,31],[56,1,56,6],[56,7,56,31],[49,0,65,0],[49,1,49,6],[49,7,49,31],[50,1,50,6],[50,7,50,31],[51,1,51,6],[51,7,51,31],[52,1,52,6],[52,7,52,31],[53,1,53,6],[64,1,64,6],[64,7,64,31],[65,1,65,6],[65,7,65,31],[45,0,46,1],[45,2,46,31],[47,0,47,6],[47,7,47,31],[48,0,48,6],[48,7,48,31],[39,0,41,1],[39,2,41,23],[39,24,41,27],[39,28,41,29],[39,30,41,31],[42,0,44,1],[42,2,44,23],[42,24,44,27],[42,28,44,29],[42,30,44,31],[33,0,35,1],[33,2,35,23],[33,24,35,27],[33,28,35,29],[33,30,35,31],[36,0,38,1],[36,2,38,23],[36,24,38,27],[36,28,38,29],[36,30,38,31],[29,0,29,23],[29,24,29,27],[29,28,29,29],[29,30,29,31],[30,0,32,0],[30,1,32,1],[30,2,32,23],[30,24,32,27],[30,28,32,29],[30,30,32,31],[20,0,27,0],[20,1,20,6],[20,7,20,31],[21,1,23,6],[21,7,23,31],[24,1,26,6],[24,7,26,31],[27,1,27,6],[27,7,27,31],[5,33,7,34],[9,1,16,6],[9,7,16,31],[17,1,17,6],[17,7,17,31],[18,1,18,6],[18,7,18,31],[4,0,4,6],[4,7,4,31],[5,0,19,0],[5,1,8,6],[5,7,8,31],[19,1,19,6],[19,7,19,31],[0,0,0,3],[0,4,0,20],[0,21,0,27],[0,28,0,29],[0,30,0,31],[1,4,2,20],[1,21,2,27],[1,28,2,29],[1,30,2,31],[1,0,2,3]]}
["取組番号",null,null,null,"事業名",null,null,null,null,null,null,null,null,null,null,null,null,null,null,null,null,"作成年月日・担当",null,null,null,null,null,null,"重点",null,"新規"]
["3-5-2\n3-6-5",null,null,null,"学習・登校サポート事業",null,null,null,null,null,null,null,null,null,null,null,null,null,null,null,null,"令和４年４月１日\n保健福祉課（こども・教育）",null,null,null,null,null,null,"〇"]
[]
[]
["項目",null,null,null,null,null,null,"内容"]
["事業・業務概要","目的\n（事業の背景を含む）",null,null,null,null,null,"学校の授業以外で学習機会の少ない生活困窮家庭の児童やひとり親家庭で家庭学習機会が失われている児童、また不登校や病気による長期欠席等により学習機会を逃した児童・生徒に、家庭や学校、関係機関を含めた場所で、事業者による一人ひとりの状況に応じたきめ細かい学習サポートや登校に向けた支援を行い、基礎学力の向上を図り、貧困の連鎖を断ち切る一助とするとともに児童・生徒の健やかな育成を図ることを目的とする。",null,null,null,null,null,null,null,null,null,null,null,null,null,null,null,null,null,null,null,null,null,null,null,null,null,"一覧へ戻る"]
[]
[]
[]
[null,"内容",null,null,null,null,null,"家庭や学校等で、事業者による貧困等により学習支援等が必要な児童・生徒一人ひとりの状況に応じたきめ細かい学習サポートや登校に向けた支援を行う。\n（１）学校、保護者等との面談\n　こどもサポートネットスクリーニング会議で対象家庭を抽出し、支援内容（家庭への支援、児童・生徒への支援）について、学校、保護者と面談等を行う。\n（２）学習支援\n　個別を基本とし、状況に応じて家庭、学校施設等で児童・生徒へ学習支援を行い貧困対策（貧困の連鎖を生まないため）に取り組む。\n（3）登校支援等\n　不登校や不登校傾向にある児童・生徒に対して、登校の再開や定着にむけ登校支援を行う。\nまた、支援の進捗について、スクリーニング会議で報告を行う。"]
[]
[]
[]
[]
[]
[]
[]
[null,"予算額（予算科目）",null,null,null,null,null,"【区重点】13,182千円（報償金、通信運搬費、委託料）"]
[null,"事業実施期間（回数）",null,null,null,null,null,"令和４年４月１日～令和５年３月31日"]
[null,"事業対象者（人数）",null,null,null,null,null,"区内小学生・中学生（約51名）"]
["委託関係","契約・入札方法",null,null,null,null,null,"公募型プロポーザル方式による特名随意契約"]
[null,"募集要項のポイント",null,null,null,null,null,"民間事業者の幅広い知識、経験、専門性等のノウハウを駆使した総合的なプログラム等の提案を求める。"]
[]
[]
[null,"仕様書のポイント",null,null,null,null,null,"学校、保護者等と面談を行い、対象者一人ひとりに適した支援を実施することにより、基礎学力の定着および学力向上に資する実施内容とする。\n※提案内容は、新型コロナウイルス感染症対策を踏まえたものを必須とする。"]
[]
[]
[null,"選考委員等選考方式",null,null,null,null,null,"教育、福祉等の専門知識を持つ外部委員3名による選定会議にて選定。"]
[]
["スケジュール（実施決裁、入札募集開始、説明会、選考会、事業の実施　等）",null,null,null,null,null,null,null,null,null,null,null,null,null,null,null,null,null,null,null,null,null,null,null,"広報スケジュール",null,null,null,"スケ",null,"作業"]
["（前年度）","1月～3月","・アンケート調査（３月）\n・効果検証\n・公募開始、選定会議の開催\n・契約書締結に向けた協議\n\n",null,null,null,null,null,null,null,null,null,null,null,null,null,null,null,null,null,null,null,null,null,"【１月】ホームページにて公募開始\n【３月】選定結果の公表\n",null,null,null,"〇",null,"〇"]
[]
[]
["4月～\n6月",null,"【４月】\n・契約書締結\n・こどもサポートネットと連携し、学習・登校支援を実施",null,null,null,null,null,null,null,null,null,null,null,null,null,null,null,null,null,null,null,null,null,null,null,null,null,"〇",null,"〇"]
[]
[]
["7月～\n9月",null,"・こどもサポートネットと連携し、学習・登校支援を実施\n・中間検証\n・アンケート調査（１学期終了時）\n・４年間の事業の総括及び令和５年度以降の本事業の方向性について検討",null,null,null,null,null,null,null,null,null,null,null,null,null,null,null,null,null,null,null,null,null,null,null,null,null,"〇",null,"〇"]
[]
[]
["10月～\n12月",null,"・こどもサポートネットと連携し、学習・登校支援を実施\n・アンケート調査（２学期終了時）\n【12月】\n・選定会議メンバーの選定、仕様書、募集要項の作成",null,null,null,null,null,null,null,null,null,null,null,null,null,null,null,null,null,null,null,null,null,null,null,null,null,"〇",null,"〇"]
[]
[]
["1月～\n3月",null,"・こどもサポートネットと連携し、学習・登校支援を実施\n・アンケート調査（３月）\n・効果検証\n・公募開始、選定会議の開催\n・契約書締結に向けた協議",null,null,null,null,null,null,null,null,null,null,null,null,null,null,null,null,null,null,null,null,null,"【１月】ホームページにて公募開始\n【３月】選定結果の公表\n",null,null,null,"〇",null,"〇"]
[]
[]
["備考"]
[]
["項目",null,null,null,null,null,null,"内容"]
["講座・イベント・会議名",null,null,null,null,null,null,"―"]
["イベント等開催関係","開催日時",null,null,null,null,null,"―"]
[null,"開催場所",null,null,null,null,null,"―"]
[null,"区役所の主催等",null,null,null,null,null,"―"]
[null,"その他主催団体・組織等",null,null,null,null,null,"―"]
[null,"共催団体・組織等",null,null,null,null,null,"―"]
[null,"後援団体・組織等",null,null,null,null,null,"―"]
[null,"目標事業規模",null,null,null,null,null,"―"]
[null,"その他留意事項",null,null,null,null,null,"―"]
[null,"イベント等\n当日タイムテーブル",null,null,null,null,null,"―"]
[]
[]
[]
[]
[null,"挨拶者",null,null,null,null,null,"―"]
[null,"来賓紹介",null,null,null,null,null,"―"]
[null,"祝電紹介の方法",null,null,null,null,null,"―"]
[null,"動員の方法",null,null,null,null,null,"―"]
["その他他課との連携等",null,null,null,null,null,null,"事業者、区役所（子ども・教育担当・福祉・生活支援）、学校、地域が連携して実施する。"]
["前年度実績",null,null,null,null,null,null,"・スクリーニング会議Ⅱで本事業の支援が必要判断した対象児童・生徒60人のうち50人に学習・登校支援を実施：83.3％（令和４年３月末時点）\n・事業に参加した児童・生徒が以前より学校の授業が分かりやすくなったと感じる割合：79％（１回目アンケート）、79％（２回目アンケート）、78％（３回目アンケート）\n・学力面において、学習理解度の向上が見られた児童・生徒の割合：算数・数学73％、国語・英語84％（令和３年度）"]
["業績目標",null,null,null,"実績",null,null,"スクリーニング会議Ⅱで本事業の支援が必要と判断した対象児童・生徒へ具体支援（学習支援・登校支援）を行った児童・生徒の割合を前年度（83.3％）より向上させる。",null,null,null,null,null,null,null,null,null,null,null,null,"スクリーニング会議Ⅱで本事業の支援が必要と判断した対象児童・生徒へ具体支援（学習支援・登校支援）を行った児童・生徒の割合：85.7％（R３：83.3％）",null,null,null,null,null,null,null,null,"自己評価"]
[null,null,null,null,null,null,null,null,null,null,null,null,null,null,null,null,null,null,null,null,null,null,null,null,null,null,null,null,null,"○"]
[]
[]
["成果目標",null,null,null,"実績",null,null,"事業に参加した児童・生徒が以前より学校の授業が分かりやすくなったと感じる割合：80％以上",null,null,null,null,null,null,null,null,null,null,null,null,"事業に参加した児童・生徒が以前より学校の授業が分かりやすくなったと感じる割合\n１学期：65％\n２学期：59％\n３学期：59％",null,null,null,null,null,null,null,null,"×"]
[]
[]
[]
[]
["中期展望",null,null,null,null,null,null,"事業に参加した児童・生徒が進学後も引き続き、学習習慣の定着が維持されている状態をめざす。"]
[]
[]
["成果目標が\n中期展望に\n寄与する理由",null,null,null,null,null,null,"授業が分かりやすくなったと感じることで、学習面での不安が解消されるとともに学習意欲が高まることにより、学習習慣の定着に寄与することが期待できる。"]
[]
[]
[]
[]
["SDGｓゴール",null,null,null,1,null,null,null,{"$f":"+IF(ISERROR(VLOOKUP($E86,[7]SDGｓ!$A$2:$B$18,2,0)),\"\",VLOOKUP($E86,[7]SDGｓ!$A$2:$B$18,2,0))","v":"貧困をなくそう"}]
[null,null,null,null,4,null,null,null,{"$f":"+IF(ISERROR(VLOOKUP($E87,[7]SDGｓ!$A$2:$B$18,2,0)),\"\",VLOOKUP($E87,[7]SDGｓ!$A$2:$B$18,2,0))","v":"質の高い教育をみんなに"}]
[null,null,null,null,null,null,null,null,{"$f":"+IF(ISERROR(VLOOKUP($E88,[7]SDGｓ!$A$2:$B$18,2,0)),\"\",VLOOKUP($E88,[7]SDGｓ!$A$2:$B$18,2,0))","v":""}]
[]
["修正履歴"]

{"sheet":"3-5-3","index":23,"n_rows":90,"n_cols":34,"rows_kept":90,"cut":false,"hidden":false,"merged":[[0,0,0,3],[0,4,0,20],[0,21,0,27],[0,28,0,29],[0,30,0,31],[1,0,2,3],[1,4,2,20],[1,21,2,27],[1,28,2,29],[1,30,2,31],[4,0,4,6],[4,7,4,31],[5,0,19,0],[5,1,8,6],[5,7,8,31],[5,33,7,34],[9,1,16,6],[9,7,16,31],[17,1,17,6],[17,7,17,31],[18,1,18,6],[18,7,18,31],[19,1,19,6],[19,7,19,31],[20,0,27,0],[20,1,20,6],[20,7,20,31],[21,1,23,6],[21,7,23,31],[24,1,26,6],[30,0,32,0],[30,1,32,1],[30,2,32,23],[30,24,32,27],[30,28,32,29],[30,30,32,31],[24,7,26,31],[27,1,27,6],[27,7,27,31],[29,0,29,23],[29,24,29,27],[29,28,29,29],[29,30,29,31],[33,0,35,1],[33,2,35,23],[33,24,35,27],[33,28,35,29],[33,30,35,31],[36,0,38,1],[36,2,38,23],[36,24,38,27],[36,28,38,29],[36,30,38,31],[45,0,46,1],[45,2,46,31],[47,0,47,6],[47,7,47,31],[48,0,48,6],[48,7,48,31],[39,0,41,1],[39,2,41,23],[39,24,41,27],[39,28,41,29],[39,30,41,31],[42,0,44,1],[42,2,44,23],[42,24,44,27],[42,28,44,29],[42,30,44,31],[53,7,53,31],[54,1,54,6],[54,7,54,31],[55,1,55,6],[55,7,55,31],[56,1,56,6],[56,7,56,31],[49,0,65,0],[49,1,49,6],[49,7,49,31],[50,1,50,6],[50,7,50,31],[51,1,51,6],[51,7,51,31],[52,1,52,6],[52,7,52,31],[53,1,53,6],[64,1,64,6],[64,7,64,31],[65,1,65,6],[65,7,65,31],[66,0,66,6],[66,7,66,31],[57,1,61,6],[57,7,61,31],[62,1,62,6],[62,7,62,31],[63,1,63,6],[63,7,63,31],[72,0,76,3],[72,4,76,6],[72,7,76,19],[72,20,76,28],[72,29,76,31],[77,0,79,6],[77,7,79,31],[67,0,67,6],[67,7,67,31],[68,0,71,3],[68,4,71,6],[68,7,71,19],[68,20,71,28],[68,29,68,31],[69,29,71,31],[89,0,89,3],[89,4,89,31],[80,0,83,6],[80,7,83,31],[85,0,87,3],[85,4,85,7],[85,8,85,31],[86,4,86,7],[86,8,86,31],[87,4,87,7],[87,8,87,31]]}
["取組番号",null,null,null,"事業名",null,null,null,null,null,null,null,null,null,null,null,null,null,null,null,null,"作成年月日・担当",null,null,null,null,null,null,"重点",null,"新規"]
["3-1-5\n3-5-3\n3-6-1",null,null,null,"「こどもサポートネット」の実施",null,null,null,null,null,null,null,null,null,null,null,null,null,null,null,null,"令和４年４月１日\n保健福祉課（こども・教育）"]
[]
[]
["項目",null,null,null,null,null,null,"内容"]
["事業・業務概要","目的\n（事業の背景を含む）",null,null,null,null,null,"子どもの生活に関する実態調査から「①困窮度の高い子育て世帯には複合的な課題がある。」「②諸施策はあるが十分に届かず適切な支援に至っていない。」ことが明らかになり、教育分野と福祉分野が連携した総合的な支援が必要となっている。\n関係機関と十分連携を図りこどもサポートネットを適切に実施することにより、支援が必要なこども（世帯）を発見し適切な支援につなげていく。",null,null,null,null,null,null,null,null,null,null,null,null,null,null,null,null,null,null,null,null,null,null,null,null,null,"一覧へ戻る"]
[]
[]
[]
[null,"内容",null,null,null,null,null,"子どもたちが多くの時間を過ごす学校において、支援の必要な子ども（世帯）を発見する仕組みを活用し、必要な支援（教育的支援・福祉的支援・地域による関わり）に繋げていく。\n1．区役所、学校、地域、その他支援機関による情報共有およびPDCAの実行。\n（１）各学校において全児童生徒を対象にスクリーニングシートを作成し、課題抽出後、スクリーニング会議Ⅰにより支援対象者を選定。\n　　対象者について、スクリーニング会議Ⅱにおいて支援方針の策定（P）。\n（２）推進員およびスクールソーシャルワーカー（SSW）による支援の実施（D）。\n（３）スクリーニング会議Ⅱによる支援結果の検証（C）。\n（４）課題の再抽出および支援方針の更新（A）。\n\n2．区教育担当と連携した不登校対策の推進\n令和4年度新規事業の「こどもの居場所づくり支援」について、具体的な取組み案等を検討する際、こどもサポートネット推進員も主体的に参画していく。\n\n3．区採用ＳＳＷは局採用ＳＳＷとこどもサポート推進員を総括し関係機関等との連絡調整、要保護児童対策地域協議会実務者会議等へ出席する。"]
[]
[]
[]
[]
[]
[]
[]
[null,"予算額（予算科目）",null,null,null,null,null,"18,235千円（区ＣＭ：こども青少年局）／R3年度同額"]
[null,"事業実施期間（回数）",null,null,null,null,null,"令和４年４月～令和５年３月"]
[null,"事業対象者（人数）",null,null,null,null,null,"区内児童、生徒"]
["委託関係","契約・入札方法"]
[null,"募集要項のポイント"]
[]
[]
[null,"仕様書のポイント"]
[]
[]
[null,"選考委員等選考方式"]
[]
["スケジュール（実施決裁、入札募集開始、説明会、選考会、事業の実施　等）",null,null,null,null,null,null,null,null,null,null,null,null,null,null,null,null,null,null,null,null,null,null,null,"広報スケジュール",null,null,null,"スケ",null,"作業"]
["（前年度）","1月～3月","・各学校においてスクリーニングシートを作成（随時）\n・各校でスクリーニング会議Ⅱを開催　・区役所おいてアセスメントを実施\n・個別支援の実施\n・次年度就学予定児童の情報共有会議",null,null,null,null,null,null,null,null,null,null,null,null,null,null,null,null,null,null,null,null,null,null,null,null,null,"〇",null,"〇"]
[]
[]
["4月～\n6月",null,"・各学校においてスクリーニングシートを作成（随時）\n・各校でスクリーニング会議Ⅱを開催　・区役所おいてアセスメントを実施\n・個別支援の実施\n",null,null,null,null,null,null,null,null,null,null,null,null,null,null,null,null,null,null,null,null,null,"学校へのチラシ配付",null,null,null,"〇",null,"〇"]
[]
[]
["7月～\n9月",null,"・各学校においてスクリーニングシートを作成（随時）\n・各校でスクリーニング会議Ⅱを開催　・区役所おいてアセスメントを実施\n・個別支援の実施\n",null,null,null,null,null,null,null,null,null,null,null,null,null,null,null,null,null,null,null,null,null,null,null,null,null,"〇",null,"〇"]
[]
[]
["10月～\n12月",null,"・各学校においてスクリーニングシートを作成（随時）\n・各校でスクリーニング会議Ⅱを開催　・区役所おいてアセスメントを実施\n・個別支援の実施\n",null,null,null,null,null,null,null,null,null,null,null,null,null,null,null,null,null,null,null,null,null,null,null,null,null,"〇",null,"〇"]
[]
[]
["1月～\n3月",null,"・各学校においてスクリーニングシートを作成（随時）\n・各校でスクリーニング会議Ⅱを開催　・区役所おいてアセスメントを実施\n・個別支援の実施\n・次年度就学予定児童の情報共有会議\n",null,null,null,null,null,null,null,null,null,null,null,null,null,null,null,null,null,null,null,null,null,null,null,null,null,"〇",null,"〇"]
[]
[]
["備考"]
[]
["項目",null,null,null,null,null,null,"内容"]
["講座・イベント・会議名",null,null,null,null,null,null,"スクリーニング会議Ⅱ"]
["イベント等開催関係","開催日時",null,null,null,null,null,"定期開催"]
[null,"開催場所",null,null,null,null,null,"各校"]
[null,"区役所の主催等",null,null,null,null,null,"主催"]
[null,"その他主催団体・組織等"]
[null,"共催団体・組織等",null,null,null,null,null,"―"]
[null,"後援団体・組織等",null,null,null,null,null,"―"]
[null,"目標事業規模",null,null,null,null,null,"―"]
[null,"その他留意事項",null,null,null,null,null,"―"]
[null,"イベント等\n当日タイムテーブル",null,null,null,null,null,"①スクリーニングシート作成（学校）\n②スクリーニング会議Ⅰ（学校）\n③学校・ＳＳＷ・推進員打ち合わせ\n④スクリーニング会議Ⅱ（前回ケース振り返り・ケース検討）\n（構成：区役所（子育て支援室・区ＳＳＷ・ＳＳＷ・推進員・ＳＣ・家庭児童相談員・生活困窮者自立支援事業者・学習登校支援事業者）、学校（校長・教頭・養護教諭・担任等）、地域（民生委員・児童委員・主任児童委員）\n⑤児童生徒・家庭への支援"]
[]
[]
[]
[]
[null,"挨拶者",null,null,null,null,null,"―"]
[null,"来賓紹介",null,null,null,null,null,"―"]
[null,"祝電紹介の方法",null,null,null,null,null,"―"]
[null,"動員の方法",null,null,null,null,null,"―"]
["その他他課との連携等",null,null,null,null,null,null,"学校、地域、関係機関等"]
["前年度実績",null,null,null,null,null,null,"・小学校全校・中学校全校で全件把握（868件）\n・把握ケース全件支援方針決定\n・解決、好転した件数450件 改善率51.3％"]
["業績目標",null,null,null,"実績",null,null,"各校（小学校10校、中学校4校）単位でアセスメント会議を実施し、スクリーニングシートにより支援が必要とされた児童全てを具体支援先へ繋ぐ。",null,null,null,null,null,null,null,null,null,null,null,null,"対象児童数４２９件\n支援に繋がった率１００％",null,null,null,null,null,null,null,null,"自己評価"]
[null,null,null,null,null,null,null,null,null,null,null,null,null,null,null,null,null,null,null,null,null,null,null,null,null,null,null,null,null,"〇"]
[]
[]
["成果目標",null,null,null,"実績",null,null,"スクリーニング会議Ⅰにより抽出された児童・生徒の状況を把握、スクリーニング会議Ⅱにて支援の方向性を決定し個別支援を行った結果解決、好転したケースの割合を前年度改善率の51.3％より増加させる。",null,null,null,null,null,null,null,null,null,null,null,null,"解決（終結）、好転したケース１８１件\n改善率　４２％",null,null,null,null,null,null,null,null,"×"]
[]
[]
[]
[]
["中期展望",null,null,null,null,null,null,"支援が必要とされるこどもと世帯数を減少させる。"]
[]
[]
["成果目標が\n中期展望に\n寄与する理由",null,null,null,null,null,null,"スクリーニング会議の決定に基づく支援により、状況が好転した支援の必要なこどもが増加していくことで、個々の支援が必要な度合いは下がり、ひいては支援が必要とされるこどもと世帯数の減少につながるため。"]
[]
[]
[]
[]
["SDGｓゴール",null,null,null,1,null,null,null,{"$f":"+IF(ISERROR(VLOOKUP($E86,[2]SDGｓ!$A$2:$B$18,2,0)),\"\",VLOOKUP($E86,[2]SDGｓ!$A$2:$B$18,2,0))","v":"貧困をなくそう"}]
[null,null,null,null,3,null,null,null,{"$f":"+IF(ISERROR(VLOOKUP($E87,[2]SDGｓ!$A$2:$B$18,2,0)),\"\",VLOOKUP($E87,[2]SDGｓ!$A$2:$B$18,2,0))","v":"すべての人に健康と福祉を"}]
[null,null,null,null,16,null,null,null,{"$f":"+IF(ISERROR(VLOOKUP($E88,[2]SDGｓ!$A$2:$B$18,2,0)),\"\",VLOOKUP($E88,[2]SDGｓ!$A$2:$B$18,2,0))","v":"平和と公正をすべての人に"}]
[]
["修正履歴"]

{"sheet":"3-5-4","index":24,"n_rows":90,"n_cols":33,"rows_kept":90,"cut":false,"hidden":false,"merged":[[0,0,0,3],[0,4,0,20],[0,21,0,27],[0,28,0,29],[0,30,0,31],[1,0,2,3],[1,4,2,20],[1,21,2,27],[1,28,2,29],[1,30,2,31],[4,0,4,6],[4,7,4,31],[5,0,19,0],[5,1,8,6],[5,7,8,31],[5,32,7,33],[9,1,16,6],[9,7,16,31],[17,1,17,6],[17,7,17,31],[18,1,18,6],[18,7,18,31],[19,1,19,6],[19,7,19,31],[20,0,27,0],[20,1,20,6],[20,7,20,31],[21,1,23,6],[21,7,23,31],[24,1,26,6],[30,0,32,0],[30,1,32,1],[30,2,32,23],[30,24,32,27],[30,28,32,29],[30,30,32,31],[24,7,26,31],[27,1,27,6],[27,7,27,31],[29,0,29,23],[29,24,29,27],[29,28,29,29],[29,30,29,31],[33,0,35,1],[33,2,35,23],[33,24,35,27],[33,28,35,29],[33,30,35,31],[36,0,38,1],[36,2,38,23],[36,24,38,27],[36,28,38,29],[36,30,38,31],[45,0,46,1],[45,2,46,31],[47,0,47,6],[47,7,47,31],[48,0,48,6],[48,7,48,31],[39,0,41,1],[39,2,41,23],[39,24,41,27],[39,28,41,29],[39,30,41,31],[42,0,44,1],[42,2,44,23],[42,24,44,27],[42,28,44,29],[42,30,44,31],[53,7,53,31],[54,1,54,6],[54,7,54,31],[55,1,55,6],[55,7,55,31],[56,1,56,6],[56,7,56,31],[49,0,65,0],[49,1,49,6],[49,7,49,31],[50,1,50,6],[50,7,50,31],[51,1,51,6],[51,7,51,31],[52,1,52,6],[52,7,52,31],[53,1,53,6],[64,1,64,6],[64,7,64,31],[65,1,65,6],[65,7,65,31],[66,0,66,6],[66,7,66,31],[57,1,61,6],[57,7,61,31],[62,1,62,6],[62,7,62,31],[63,1,63,6],[63,7,63,31],[72,0,76,3],[72,4,76,6],[72,7,76,19],[72,20,76,28],[72,29,76,31],[77,0,79,6],[77,7,79,31],[67,0,67,6],[67,7,67,31],[68,0,71,3],[68,4,71,6],[68,7,71,19],[68,20,71,28],[68,29,68,31],[69,29,71,31],[89,0,89,3],[89,4,89,31],[80,0,83,6],[80,7,83,31],[85,0,87,3],[85,4,85,7],[85,8,85,31],[86,4,86,7],[86,8,86,31],[87,4,87,7],[87,8,87,31]]}
["取組番号",null,null,null,"事業名",null,null,null,null,null,null,null,null,null,null,null,null,null,null,null,null,"作成年月日・担当",null,null,null,null,null,null,"重点",null,"新規"]
["1-4-5\n3-1-3\n3-5-4\n3-6-2",null,null,null,"児童への虐待対応・防止",null,null,null,null,null,null,null,null,null,null,null,null,null,null,null,null,"令和４年４月１日\n保健福祉課（こども・教育）"]
[]
[]
["項目",null,null,null,null,null,null,"内容"]
["事業・業務概要","目的\n（事業の背景を含む）",null,null,null,null,null,"核家族化の影響により家庭における養育能力の低下が懸念される昨今、コロナウィルス蔓延も相まって行政未把握のリスクが増加していると考えられる。子育て支援室として「養育能力に欠ける保護者へのサポート」「児童の性格、生活習慣、発達やいじめ等の相談および支援」「子育て、教育、福祉、行政など関係機関どうしの緊密な連携」を課題とし取り組みを行う。",null,null,null,null,null,null,null,null,null,null,null,null,null,null,null,null,null,null,null,null,null,null,null,null,"一覧へ戻る"]
[]
[]
[]
[null,"内容",null,null,null,null,null,"〇要保護児童対策地域協議会の運営\n・子育て支援室が事務局として調整機関の役割を担い、ケースの現状について関係各機関（学校、保育所、保健師、生活支援担当、こども相談センター、警察、消防、民生委員、主任児童委員等）がそれぞれの情報を共有。\n虐待レベルに応じた頻度にて実務者会議に諮り、リスク把握、主担当機関の確認、危険度、援助方針の見直しをおこなう。\n・児童虐待通告に占める割合が最も多いものは面前DVによる心理的虐待となっているため、\n面前DV事案（心理的虐待ケース）について、要対協登録ケースは、虐待レベルの再検討し、要対協未登録ケースは、こどもサポートネット事業等での関りを確認し、該当すればDV事案情報を共有し、支援方針策定の際に判断材料としていく。また、こども相談センターと面前DV事案の対応について、連携を密にする。\n・要保護児童対策地域協議会において協議・報告がなされた事項は「地域福祉推進会議」への報告を行う。\n児童虐待事例に関しては、大阪市児童福祉審議会児童虐待事例検証部会に大正区事例をあげて、その部会で検証する。また、部会で検証とならなかったケースについても、個別ケース検討会議でのスーパーバイザーの活用を図る。\n・DV相談\nDV相談へのケースワーク段階において要保護・要支援児童を把握し保護者への効果的支援を図っていく。\n\n〇家庭児童相談\n児童の性格、生活習慣、言語等の発達、いじめ、不登校、非行などに関する相談対応。発達障がいの早期発見。必要に応じ関係機関との情報共有および社会資源へのつなぎを行う。"]
[]
[]
[]
[]
[]
[]
[]
[null,"予算額（予算科目）",null,null,null,null,null,"・要対協…180千円（通信運搬費・消耗品費・旅費・報酬金）／R3年度同額\n・家庭児童相談…7,280千円（区CM：こども青少年局）／R3年度同額\n・乳幼児心理相談・・・2,393千円（区まち：報酬・旅費・消耗品費）"]
[null,"事業実施期間（回数）",null,null,null,null,null,"令和４年４月～令和５年３月"]
[null,"事業対象者（人数）",null,null,null,null,null,"児童（18歳未満）、児童に関係する機関・団体（保育・教育施設、小・中・高等学校、支援学校）"]
["委託関係","契約・入札方法"]
[null,"募集要項のポイント"]
[]
[]
[null,"仕様書のポイント"]
[]
[]
[null,"選考委員等選考方式"]
[]
["スケジュール（実施決裁、入札募集開始、説明会、選考会、事業の実施　等）",null,null,null,null,null,null,null,null,null,null,null,null,null,null,null,null,null,null,null,null,null,null,null,"広報スケジュール",null,null,null,"スケ",null,"作業"]
["（前年度）","1月～3月","実務者会議　１，２月１回開催（第４金曜日）３月２回開催（第２、第４金曜日）\n支援室会議　毎月２回開催（第2、第４金曜日）個別ケース会議（通年で随時開催 ）\n次年度就学予定児童の情報共有会議　家庭児童相談（通年で随時）",null,null,null,null,null,null,null,null,null,null,null,null,null,null,null,null,null,null,null,null,null,null,null,null,null,"〇",null,"〇"]
[]
[]
["4月～\n6月",null,"実務者会議　毎月１回開催（第４金曜日）\n支援室会議　毎月２回程度開催、個別ケース会議（通年で随時開催） \n家庭児童相談（通年で随時）\n",null,null,null,null,null,null,null,null,null,null,null,null,null,null,null,null,null,null,null,null,null,null,null,null,null,"〇",null,"〇"]
[]
[]
["7月～\n9月",null,"実務者会議　毎月１回開催（第４金曜日）\n支援室会議　毎月２回程度開催、個別ケース会議（通年で随時開催）\n代表者会議の開催\n家庭児童相談（通年で随時）",null,null,null,null,null,null,null,null,null,null,null,null,null,null,null,null,null,null,null,null,null,null,null,null,null,"〇",null,"〇"]
[]
[]
["10月～\n12月",null,"実務者会議　毎月１回開催（第４金曜日）\n支援室会議　毎月２回程度開催、個別ケース会議（通年で随時開催） \n家庭児童相談（通年で随時）里親月間\nオレンジリボンキャンペーン",null,null,null,null,null,null,null,null,null,null,null,null,null,null,null,null,null,null,null,null,null,"SNS、HPによる各キャンペーンの周知",null,null,null,"〇",null,"〇"]
[]
[]
["1月～\n3月",null,"実務者会議　毎月１回開催（第４金曜日）\n支援室会議　毎月２回程度開催、個別ケース会議（通年で随時開催 ）\n次年度就学予定児童の情報共有会議　家庭児童相談（通年で随時）",null,null,null,null,null,null,null,null,null,null,null,null,null,null,null,null,null,null,null,null,null,null,null,null,null,"〇",null,"〇"]
[]
[]
["備考",null,"家庭児童相談（通年で随時）個別ケース会議（通年で随時開催）"]
[]
["項目",null,null,null,null,null,null,"内容"]
["講座・イベント・会議名",null,null,null,null,null,null,"①代表者会議　②実務者会議　③支援室会議　④個別ケース検討会議"]
["イベント等開催関係","開催日時",null,null,null,null,null,"①８月　②毎月第４金曜日　③毎月２回程度　④随時　"]
[null,"開催場所",null,null,null,null,null,"区役所"]
[null,"区役所の主催等",null,null,null,null,null,"主催"]
[null,"その他主催団体・組織等",null,null,null,null,null,"保健福祉課（地域福祉・保健活動・生活支援）・こども相談センター\n・教育委員会・保育所・児童虐待防止協会・警察・民生委員・児童委員・配偶者暴力相談支援センター"]
[null,"共催団体・組織等",null,null,null,null,null,"―"]
[null,"後援団体・組織等",null,null,null,null,null,"―"]
[null,"目標事業規模",null,null,null,null,null,"―"]
[null,"その他留意事項",null,null,null,null,null,"―"]
[null,"イベント等\n当日タイムテーブル",null,null,null,null,null,"①虐待問題の認識向上と実務者会議等が円滑に行われる環境づくり\n　１４：００～要保護児童の状況について報告　１４：３０～令和４年度の取り組みについて　１５：００～意見交換\n②要対協に登録された全ケースのリスク管理及び新規ケースについての要対協登録にかかる検討\n　１４：００～新規ケース検討　１５：００継続ケース検討\n③要対協に登録されたケースのうち、軽微なケースの検討\n④子どもと家庭の情報把握、課題の整理とその解決に向けた具体的な支援内容の検討\n　児童の一時保護開始時、一時保護解除前、関係機関からの要請があった場合、その他子育て支援室が必要と判断した場合に開催する。\n　"]
[]
[]
[]
[]
[null,"挨拶者",null,null,null,null,null,"―"]
[null,"来賓紹介",null,null,null,null,null,"―"]
[null,"祝電紹介の方法",null,null,null,null,null,"―"]
[null,"動員の方法",null,null,null,null,null,"―"]
["その他他課との連携等",null,null,null,null,null,null,"―"]
["前年度実績",null,null,null,null,null,null,"・代表者会議　3月30日付け資料送付\n・実務者会議　年間１６回開催\n・個別ケース検討会議　５８件\n・虐待レベルの改善率  ４４％　・要対協登録件数　延べ２３５件・養護相談受理件数　１４１３件（うち虐待相談　１７０件） \n・家庭児童相談員対応数　要対協ケース５５件、家庭児童相談ケース６５件（うち継続支援 19件）（令和３年度）  \n・乳幼児心理相談数　144件"]
["業績目標",null,null,null,"実績",null,null,"代表者会議の開催（１回）\n実務者会議の開催（年間１２回）\n支援室会議の開催（毎月２回程度）\n個別ケース検討会議（一時保護開始後、一時保護解除前、その他要対協の進捗管理上情報共有や関係機関の役割分担を検討する必要が生じた際などに開催）\n家庭児童相談（新規相談・継続相談）",null,null,null,null,null,null,null,null,null,null,null,null,"代表者会議の開催（１回）\n実務者会議の開催（１２回）\n支援室会議の開催（３７回）\n個別ケース検討会議（４０件）\n家庭児童相談受理件数（６１２件うち虐待相談９４件、虐待以外の養護相談４３４件）\n",null,null,null,null,null,null,null,null,"自己評価"]
[null,null,null,null,null,null,null,null,null,null,null,null,null,null,null,null,null,null,null,null,null,null,null,null,null,null,null,null,null,"◎"]
[]
[]
["成果目標",null,null,null,"実績",null,null,"要保護児童対策地域協議会登録ケースについて\n・児童虐待にかかる危険度判断や支援内容の見直しを行い、１００％の進捗管理を実施する。\n・登録中のケースについて、改善率が前年度（４４％）を上回る状況。\n（基準日を年度初めと年度末に定め進行管理台帳の登録レベルを比較する）",null,null,null,null,null,null,null,null,null,null,null,null,"要対協登録件数　延べ２４８件\n・進捗管理実施　１００％\n・改善率　４０％（98/２４８）",null,null,null,null,null,null,null,null,"△"]
[]
[]
[]
[]
["中期展望",null,null,null,null,null,null,"児童に関わる関係機関（学校、保育所、幼稚園、保健師、生活支援、こども相談センター、警察等）の共通理解を促進し、代表者会議におけるそれぞれの役割の確認を通じて、具体的な事例における円滑な連携を確立する。"]
[]
[]
["成果目標が\n中期展望に\n寄与する理由",null,null,null,null,null,null,"要保護児童対策地域協議会登録ケースについて、確実な進捗管理がなされ、ケースが改善されることは、関係機関の連携がなされ支援が実行されたことの結果であるとともに、さらなる連携の確立につながることとなるため。"]
[]
[]
[]
[]
["SDGｓゴール",null,null,null,1,null,null,null,{"$f":"+IF(ISERROR(VLOOKUP($E86,[1]SDGｓ!$A$2:$B$18,2,0)),\"\",VLOOKUP($E86,[1]SDGｓ!$A$2:$B$18,2,0))","v":"貧困をなくそう"}]
[null,null,null,null,3,null,null,null,{"$f":"+IF(ISERROR(VLOOKUP($E87,[1]SDGｓ!$A$2:$B$18,2,0)),\"\",VLOOKUP($E87,[1]SDGｓ!$A$2:$B$18,2,0))","v":"すべての人に健康と福祉を"}]
[null,null,null,null,16,null,null,null,{"$f":"+IF(ISERROR(VLOOKUP($E88,[1]SDGｓ!$A$2:$B$18,2,0)),\"\",VLOOKUP($E88,[1]SDGｓ!$A$2:$B$18,2,0))","v":"平和と公正をすべての人に"}]
[]
["修正履歴"]

{"sheet":"3-6","index":25,"n_rows":35,"n_cols":5,"rows_kept":35,"cut":false,"hidden":false,"merged":[[29,2,29,3],[29,4,29,9],[28,2,28,3],[28,4,28,9],[26,2,26,3],[26,4,26,9],[27,2,27,3],[27,4,27,9],[33,2,33,3],[33,4,33,9],[34,2,34,3],[34,4,34,9],[30,2,30,3],[30,4,30,9],[31,2,31,3],[31,4,31,9],[32,2,32,3],[32,4,32,9]]}
["【3】次世代の未来が輝くまちへ"]
[]
[null,"3-6　こどもの貧困対策（こどもサポートネット事業）"]
[]
[null,"◆","目指すべき将来像"]
[]
[]
[]
[]
[null,"◆","施策"]
[]
[]
[]
[]
[]
[]
[]
[]
[]
[null,"◆","施策目標"]
[]
[]
[]
[]
[]
[null,"◆","具体的取組（事業・業務計画書）"]
[null,null,"取組番号",null,"事業名"]
[null,null,"3-6-1",null,{"$f":"'目次 (3)'!D36","v":"「こどもサポートネット」の実施"}]
[null,null,"3-6-2",null,{"$f":"'目次 (3)'!D37","v":"児童への虐待対応・防止"}]
[null,null,"3-6-3",null,{"$f":"'目次 (3)'!D38","v":"区独自スクールソーシャルワーカーの活用事業"}]
[null,null,"3-6-4",null,{"$f":"'目次 (3)'!D39","v":"民間事業者を活用した課外学習支援事業"}]
[null,null,"3-6-5",null,{"$f":"'目次 (3)'!D40","v":"学習・登校サポート事業"}]
[null,null,"3-6-6",null,{"$f":"'目次 (3)'!D41","v":"つつじサポーター（大正教育活動協力隊）の活用"}]
[null,null,"3-6-7",null,{"$f":"'目次 (3)'!D42","v":"就学前（４・５歳児）こどもサポートネット事業（大正区版ネウボラ）"}]
[null,null,"3-6-8",null,{"$f":"'目次 (3)'!D43","v":"基礎学力向上支援事業"}]

{"sheet":"3-6-1","index":26,"n_rows":90,"n_cols":34,"rows_kept":90,"cut":false,"hidden":false,"merged":[[0,0,0,3],[0,4,0,20],[0,21,0,27],[0,28,0,29],[0,30,0,31],[1,0,2,3],[1,4,2,20],[1,21,2,27],[1,28,2,29],[1,30,2,31],[4,0,4,6],[4,7,4,31],[5,0,19,0],[5,1,8,6],[5,7,8,31],[5,33,7,34],[9,1,16,6],[9,7,16,31],[17,1,17,6],[17,7,17,31],[18,1,18,6],[18,7,18,31],[19,1,19,6],[19,7,19,31],[20,0,27,0],[20,1,20,6],[20,7,20,31],[21,1,23,6],[21,7,23,31],[24,1,26,6],[30,0,32,0],[30,1,32,1],[30,2,32,23],[30,24,32,27],[30,28,32,29],[30,30,32,31],[24,7,26,31],[27,1,27,6],[27,7,27,31],[29,0,29,23],[29,24,29,27],[29,28,29,29],[29,30,29,31],[33,0,35,1],[33,2,35,23],[33,24,35,27],[33,28,35,29],[33,30,35,31],[36,0,38,1],[36,2,38,23],[36,24,38,27],[36,28,38,29],[36,30,38,31],[45,0,46,1],[45,2,46,31],[47,0,47,6],[47,7,47,31],[48,0,48,6],[48,7,48,31],[39,0,41,1],[39,2,41,23],[39,24,41,27],[39,28,41,29],[39,30,41,31],[42,0,44,1],[42,2,44,23],[42,24,44,27],[42,28,44,29],[42,30,44,31],[53,7,53,31],[54,1,54,6],[54,7,54,31],[55,1,55,6],[55,7,55,31],[56,1,56,6],[56,7,56,31],[49,0,65,0],[49,1,49,6],[49,7,49,31],[50,1,50,6],[50,7,50,31],[51,1,51,6],[51,7,51,31],[52,1,52,6],[52,7,52,31],[53,1,53,6],[64,1,64,6],[64,7,64,31],[65,1,65,6],[65,7,65,31],[66,0,66,6],[66,7,66,31],[57,1,61,6],[57,7,61,31],[62,1,62,6],[62,7,62,31],[63,1,63,6],[63,7,63,31],[72,0,76,3],[72,4,76,6],[72,7,76,19],[72,20,76,28],[72,29,76,31],[77,0,79,6],[77,7,79,31],[67,0,67,6],[67,7,67,31],[68,0,71,3],[68,4,71,6],[68,7,71,19],[68,20,71,28],[68,29,68,31],[69,29,71,31],[89,0,89,3],[89,4,89,31],[80,0,83,6],[80,7,83,31],[85,0,87,3],[85,4,85,7],[85,8,85,31],[86,4,86,7],[86,8,86,31],[87,4,87,7],[87,8,87,31]]}
["取組番号",null,null,null,"事業名",null,null,null,null,null,null,null,null,null,null,null,null,null,null,null,null,"作成年月日・担当",null,null,null,null,null,null,"重点",null,"新規"]
["3-1-5\n3-5-3\n3-6-1",null,null,null,"「こどもサポートネット」の実施",null,null,null,null,null,null,null,null,null,null,null,null,null,null,null,null,"令和４年４月１日\n保健福祉課（こども・教育）"]
[]
[]
["項目",null,null,null,null,null,null,"内容"]
["事業・業務概要","目的\n（事業の背景を含む）",null,null,null,null,null,"子どもの生活に関する実態調査から「①困窮度の高い子育て世帯には複合的な課題がある。」「②諸施策はあるが十分に届かず適切な支援に至っていない。」ことが明らかになり、教育分野と福祉分野が連携した総合的な支援が必要となっている。\n関係機関と十分連携を図りこどもサポートネットを適切に実施することにより、支援が必要なこども（世帯）を発見し適切な支援につなげていく。",null,null,null,null,null,null,null,null,null,null,null,null,null,null,null,null,null,null,null,null,null,null,null,null,null,"一覧へ戻る"]
[]
[]
[]
[null,"内容",null,null,null,null,null,"子どもたちが多くの時間を過ごす学校において、支援の必要な子ども（世帯）を発見する仕組みを活用し、必要な支援（教育的支援・福祉的支援・地域による関わり）に繋げていく。\n1．区役所、学校、地域、その他支援機関による情報共有およびPDCAの実行。\n（１）各学校において全児童生徒を対象にスクリーニングシートを作成し、課題抽出後、スクリーニング会議Ⅰにより支援対象者を選定。\n　　対象者について、スクリーニング会議Ⅱにおいて支援方針の策定（P）。\n（２）推進員およびスクールソーシャルワーカー（SSW）による支援の実施（D）。\n（３）スクリーニング会議Ⅱによる支援結果の検証（C）。\n（４）課題の再抽出および支援方針の更新（A）。\n\n2．区教育担当と連携した不登校対策の推進\n令和4年度新規事業の「こどもの居場所づくり支援」について、具体的な取組み案等を検討する際、こどもサポートネット推進員も主体的に参画していく。\n\n3．区採用ＳＳＷは局採用ＳＳＷとこどもサポート推進員を総括し関係機関等との連絡調整、要保護児童対策地域協議会実務者会議等へ出席する。"]
[]
[]
[]
[]
[]
[]
[]
[null,"予算額（予算科目）",null,null,null,null,null,"18,235千円（区ＣＭ：こども青少年局）／R3年度同額"]
[null,"事業実施期間（回数）",null,null,null,null,null,"令和４年４月～令和５年３月"]
[null,"事業対象者（人数）",null,null,null,null,null,"区内児童、生徒"]
["委託関係","契約・入札方法"]
[null,"募集要項のポイント"]
[]
[]
[null,"仕様書のポイント"]
[]
[]
[null,"選考委員等選考方式"]
[]
["スケジュール（実施決裁、入札募集開始、説明会、選考会、事業の実施　等）",null,null,null,null,null,null,null,null,null,null,null,null,null,null,null,null,null,null,null,null,null,null,null,"広報スケジュール",null,null,null,"スケ",null,"作業"]
["（前年度）","1月～3月","・各学校においてスクリーニングシートを作成（随時）\n・各校でスクリーニング会議Ⅱを開催　・区役所おいてアセスメントを実施\n・個別支援の実施\n・次年度就学予定児童の情報共有会議",null,null,null,null,null,null,null,null,null,null,null,null,null,null,null,null,null,null,null,null,null,null,null,null,null,"〇",null,"〇"]
[]
[]
["4月～\n6月",null,"・各学校においてスクリーニングシートを作成（随時）\n・各校でスクリーニング会議Ⅱを開催　・区役所おいてアセスメントを実施\n・個別支援の実施\n",null,null,null,null,null,null,null,null,null,null,null,null,null,null,null,null,null,null,null,null,null,"学校へのチラシ配付",null,null,null,"〇",null,"〇"]
[]
[]
["7月～\n9月",null,"・各学校においてスクリーニングシートを作成（随時）\n・各校でスクリーニング会議Ⅱを開催　・区役所おいてアセスメントを実施\n・個別支援の実施\n",null,null,null,null,null,null,null,null,null,null,null,null,null,null,null,null,null,null,null,null,null,null,null,null,null,"〇",null,"〇"]
[]
[]
["10月～\n12月",null,"・各学校においてスクリーニングシートを作成（随時）\n・各校でスクリーニング会議Ⅱを開催　・区役所おいてアセスメントを実施\n・個別支援の実施\n",null,null,null,null,null,null,null,null,null,null,null,null,null,null,null,null,null,null,null,null,null,null,null,null,null,"〇",null,"〇"]
[]
[]
["1月～\n3月",null,"・各学校においてスクリーニングシートを作成（随時）\n・各校でスクリーニング会議Ⅱを開催　・区役所おいてアセスメントを実施\n・個別支援の実施\n・次年度就学予定児童の情報共有会議\n",null,null,null,null,null,null,null,null,null,null,null,null,null,null,null,null,null,null,null,null,null,null,null,null,null,"〇",null,"〇"]
[]
[]
["備考"]
[]
["項目",null,null,null,null,null,null,"内容"]
["講座・イベント・会議名",null,null,null,null,null,null,"スクリーニング会議Ⅱ"]
["イベント等開催関係","開催日時",null,null,null,null,null,"定期開催"]
[null,"開催場所",null,null,null,null,null,"各校"]
[null,"区役所の主催等",null,null,null,null,null,"主催"]
[null,"その他主催団体・組織等"]
[null,"共催団体・組織等",null,null,null,null,null,"―"]
[null,"後援団体・組織等",null,null,null,null,null,"―"]
[null,"目標事業規模",null,null,null,null,null,"―"]
[null,"その他留意事項",null,null,null,null,null,"―"]
[null,"イベント等\n当日タイムテーブル",null,null,null,null,null,"①スクリーニングシート作成（学校）\n②スクリーニング会議Ⅰ（学校）\n③学校・ＳＳＷ・推進員打ち合わせ\n④スクリーニング会議Ⅱ（前回ケース振り返り・ケース検討）\n（構成：区役所（子育て支援室・区ＳＳＷ・ＳＳＷ・推進員・ＳＣ・家庭児童相談員・生活困窮者自立支援事業者・学習登校支援事業者）、学校（校長・教頭・養護教諭・担任等）、地域（民生委員・児童委員・主任児童委員）\n⑤児童生徒・家庭への支援"]
[]
[]
[]
[]
[null,"挨拶者",null,null,null,null,null,"―"]
[null,"来賓紹介",null,null,null,null,null,"―"]
[null,"祝電紹介の方法",null,null,null,null,null,"―"]
[null,"動員の方法",null,null,null,null,null,"―"]
["その他他課との連携等",null,null,null,null,null,null,"学校、地域、関係機関等"]
["前年度実績",null,null,null,null,null,null,"・小学校全校・中学校全校で全件把握（868件）\n・把握ケース全件支援方針決定\n・解決、好転した件数450件 改善率51.3％"]
["業績目標",null,null,null,"実績",null,null,"各校（小学校10校、中学校4校）単位でアセスメント会議を実施し、スクリーニングシートにより支援が必要とされた児童全てを具体支援先へ繋ぐ。",null,null,null,null,null,null,null,null,null,null,null,null,"対象児童数４２９件\n支援に繋がった率１００％",null,null,null,null,null,null,null,null,"自己評価"]
[null,null,null,null,null,null,null,null,null,null,null,null,null,null,null,null,null,null,null,null,null,null,null,null,null,null,null,null,null,"〇"]
[]
[]
["成果目標",null,null,null,"実績",null,null,"スクリーニング会議Ⅰにより抽出された児童・生徒の状況を把握、スクリーニング会議Ⅱにて支援の方向性を決定し個別支援を行った結果解決、好転したケースの割合を前年度改善率の51.3％より増加させる。",null,null,null,null,null,null,null,null,null,null,null,null,"解決（終結）、好転したケース１８１件\n改善率　４２％",null,null,null,null,null,null,null,null,"×"]
[]
[]
[]
[]
["中期展望",null,null,null,null,null,null,"支援が必要とされるこどもと世帯数を減少させる。"]
[]
[]
["成果目標が\n中期展望に\n寄与する理由",null,null,null,null,null,null,"スクリーニング会議の決定に基づく支援により、状況が好転した支援の必要なこどもが増加していくことで、個々の支援が必要な度合いは下がり、ひいては支援が必要とされるこどもと世帯数の減少につながるため。"]
[]
[]
[]
[]
["SDGｓゴール",null,null,null,1,null,null,null,{"$f":"+IF(ISERROR(VLOOKUP($E86,[2]SDGｓ!$A$2:$B$18,2,0)),\"\",VLOOKUP($E86,[2]SDGｓ!$A$2:$B$18,2,0))","v":"貧困をなくそう"}]
[null,null,null,null,3,null,null,null,{"$f":"+IF(ISERROR(VLOOKUP($E87,[2]SDGｓ!$A$2:$B$18,2,0)),\"\",VLOOKUP($E87,[2]SDGｓ!$A$2:$B$18,2,0))","v":"すべての人に健康と福祉を"}]
[null,null,null,null,16,null,null,null,{"$f":"+IF(ISERROR(VLOOKUP($E88,[2]SDGｓ!$A$2:$B$18,2,0)),\"\",VLOOKUP($E88,[2]SDGｓ!$A$2:$B$18,2,0))","v":"平和と公正をすべての人に"}]
[]
["修正履歴"]

{"sheet":"3-6-2","index":27,"n_rows":90,"n_cols":33,"rows_kept":90,"cut":false,"hidden":false,"merged":[[0,0,0,3],[0,4,0,20],[0,21,0,27],[0,28,0,29],[0,30,0,31],[1,0,2,3],[1,4,2,20],[1,21,2,27],[1,28,2,29],[1,30,2,31],[4,0,4,6],[4,7,4,31],[5,0,19,0],[5,1,8,6],[5,7,8,31],[5,32,7,33],[9,1,16,6],[9,7,16,31],[17,1,17,6],[17,7,17,31],[18,1,18,6],[18,7,18,31],[19,1,19,6],[19,7,19,31],[20,0,27,0],[20,1,20,6],[20,7,20,31],[21,1,23,6],[21,7,23,31],[24,1,26,6],[30,0,32,0],[30,1,32,1],[30,2,32,23],[30,24,32,27],[30,28,32,29],[30,30,32,31],[24,7,26,31],[27,1,27,6],[27,7,27,31],[29,0,29,23],[29,24,29,27],[29,28,29,29],[29,30,29,31],[33,0,35,1],[33,2,35,23],[33,24,35,27],[33,28,35,29],[33,30,35,31],[36,0,38,1],[36,2,38,23],[36,24,38,27],[36,28,38,29],[36,30,38,31],[45,0,46,1],[45,2,46,31],[47,0,47,6],[47,7,47,31],[48,0,48,6],[48,7,48,31],[39,0,41,1],[39,2,41,23],[39,24,41,27],[39,28,41,29],[39,30,41,31],[42,0,44,1],[42,2,44,23],[42,24,44,27],[42,28,44,29],[42,30,44,31],[53,7,53,31],[54,1,54,6],[54,7,54,31],[55,1,55,6],[55,7,55,31],[56,1,56,6],[56,7,56,31],[49,0,65,0],[49,1,49,6],[49,7,49,31],[50,1,50,6],[50,7,50,31],[51,1,51,6],[51,7,51,31],[52,1,52,6],[52,7,52,31],[53,1,53,6],[64,1,64,6],[64,7,64,31],[65,1,65,6],[65,7,65,31],[66,0,66,6],[66,7,66,31],[57,1,61,6],[57,7,61,31],[62,1,62,6],[62,7,62,31],[63,1,63,6],[63,7,63,31],[72,0,76,3],[72,4,76,6],[72,7,76,19],[72,20,76,28],[72,29,76,31],[77,0,79,6],[77,7,79,31],[67,0,67,6],[67,7,67,31],[68,0,71,3],[68,4,71,6],[68,7,71,19],[68,20,71,28],[68,29,68,31],[69,29,71,31],[89,0,89,3],[89,4,89,31],[80,0,83,6],[80,7,83,31],[85,0,87,3],[85,4,85,7],[85,8,85,31],[86,4,86,7],[86,8,86,31],[87,4,87,7],[87,8,87,31]]}
["取組番号",null,null,null,"事業名",null,null,null,null,null,null,null,null,null,null,null,null,null,null,null,null,"作成年月日・担当",null,null,null,null,null,null,"重点",null,"新規"]
["1-4-5\n3-1-3\n3-5-4\n3-6-2",null,null,null,"児童への虐待対応・防止",null,null,null,null,null,null,null,null,null,null,null,null,null,null,null,null,"令和４年４月１日\n保健福祉課（こども・教育）"]
[]
[]
["項目",null,null,null,null,null,null,"内容"]
["事業・業務概要","目的\n（事業の背景を含む）",null,null,null,null,null,"核家族化の影響により家庭における養育能力の低下が懸念される昨今、コロナウィルス蔓延も相まって行政未把握のリスクが増加していると考えられる。子育て支援室として「養育能力に欠ける保護者へのサポート」「児童の性格、生活習慣、発達やいじめ等の相談および支援」「子育て、教育、福祉、行政など関係機関どうしの緊密な連携」を課題とし取り組みを行う。",null,null,null,null,null,null,null,null,null,null,null,null,null,null,null,null,null,null,null,null,null,null,null,null,"一覧へ戻る"]
[]
[]
[]
[null,"内容",null,null,null,null,null,"〇要保護児童対策地域協議会の運営\n・子育て支援室が事務局として調整機関の役割を担い、ケースの現状について関係各機関（学校、保育所、保健師、生活支援担当、こども相談センター、警察、消防、民生委員、主任児童委員等）がそれぞれの情報を共有。\n虐待レベルに応じた頻度にて実務者会議に諮り、リスク把握、主担当機関の確認、危険度、援助方針の見直しをおこなう。\n・児童虐待通告に占める割合が最も多いものは面前DVによる心理的虐待となっているため、\n面前DV事案（心理的虐待ケース）について、要対協登録ケースは、虐待レベルの再検討し、要対協未登録ケースは、こどもサポートネット事業等での関りを確認し、該当すればDV事案情報を共有し、支援方針策定の際に判断材料としていく。また、こども相談センターと面前DV事案の対応について、連携を密にする。\n・要保護児童対策地域協議会において協議・報告がなされた事項は「地域福祉推進会議」への報告を行う。\n児童虐待事例に関しては、大阪市児童福祉審議会児童虐待事例検証部会に大正区事例をあげて、その部会で検証する。また、部会で検証とならなかったケースについても、個別ケース検討会議でのスーパーバイザーの活用を図る。\n・DV相談\nDV相談へのケースワーク段階において要保護・要支援児童を把握し保護者への効果的支援を図っていく。\n\n〇家庭児童相談\n児童の性格、生活習慣、言語等の発達、いじめ、不登校、非行などに関する相談対応。発達障がいの早期発見。必要に応じ関係機関との情報共有および社会資源へのつなぎを行う。"]
[]
[]
[]
[]
[]
[]
[]
[null,"予算額（予算科目）",null,null,null,null,null,"・要対協…180千円（通信運搬費・消耗品費・旅費・報酬金）／R3年度同額\n・家庭児童相談…7,280千円（区CM：こども青少年局）／R3年度同額\n・乳幼児心理相談・・・2,393千円（区まち：報酬・旅費・消耗品費）"]
[null,"事業実施期間（回数）",null,null,null,null,null,"令和４年４月～令和５年３月"]
[null,"事業対象者（人数）",null,null,null,null,null,"児童（18歳未満）、児童に関係する機関・団体（保育・教育施設、小・中・高等学校、支援学校）"]
["委託関係","契約・入札方法"]
[null,"募集要項のポイント"]
[]
[]
[null,"仕様書のポイント"]
[]
[]
[null,"選考委員等選考方式"]
[]
["スケジュール（実施決裁、入札募集開始、説明会、選考会、事業の実施　等）",null,null,null,null,null,null,null,null,null,null,null,null,null,null,null,null,null,null,null,null,null,null,null,"広報スケジュール",null,null,null,"スケ",null,"作業"]
["（前年度）","1月～3月","実務者会議　１，２月１回開催（第４金曜日）３月２回開催（第２、第４金曜日）\n支援室会議　毎月２回開催（第2、第４金曜日）個別ケース会議（通年で随時開催 ）\n次年度就学予定児童の情報共有会議　家庭児童相談（通年で随時）",null,null,null,null,null,null,null,null,null,null,null,null,null,null,null,null,null,null,null,null,null,null,null,null,null,"〇",null,"〇"]
[]
[]
["4月～\n6月",null,"実務者会議　毎月１回開催（第４金曜日）\n支援室会議　毎月２回程度開催、個別ケース会議（通年で随時開催） \n家庭児童相談（通年で随時）\n",null,null,null,null,null,null,null,null,null,null,null,null,null,null,null,null,null,null,null,null,null,null,null,null,null,"〇",null,"〇"]
[]
[]
["7月～\n9月",null,"実務者会議　毎月１回開催（第４金曜日）\n支援室会議　毎月２回程度開催、個別ケース会議（通年で随時開催）\n代表者会議の開催\n家庭児童相談（通年で随時）",null,null,null,null,null,null,null,null,null,null,null,null,null,null,null,null,null,null,null,null,null,null,null,null,null,"〇",null,"〇"]
[]
[]
["10月～\n12月",null,"実務者会議　毎月１回開催（第４金曜日）\n支援室会議　毎月２回程度開催、個別ケース会議（通年で随時開催） \n家庭児童相談（通年で随時）里親月間\nオレンジリボンキャンペーン",null,null,null,null,null,null,null,null,null,null,null,null,null,null,null,null,null,null,null,null,null,"SNS、HPによる各キャンペーンの周知",null,null,null,"〇",null,"〇"]
[]
[]
["1月～\n3月",null,"実務者会議　毎月１回開催（第４金曜日）\n支援室会議　毎月２回程度開催、個別ケース会議（通年で随時開催 ）\n次年度就学予定児童の情報共有会議　家庭児童相談（通年で随時）",null,null,null,null,null,null,null,null,null,null,null,null,null,null,null,null,null,null,null,null,null,null,null,null,null,"〇",null,"〇"]
[]
[]
["備考",null,"家庭児童相談（通年で随時）個別ケース会議（通年で随時開催）"]
[]
["項目",null,null,null,null,null,null,"内容"]
["講座・イベント・会議名",null,null,null,null,null,null,"①代表者会議　②実務者会議　③支援室会議　④個別ケース検討会議"]
["イベント等開催関係","開催日時",null,null,null,null,null,"①８月　②毎月第４金曜日　③毎月２回程度　④随時　"]
[null,"開催場所",null,null,null,null,null,"区役所"]
[null,"区役所の主催等",null,null,null,null,null,"主催"]
[null,"その他主催団体・組織等",null,null,null,null,null,"保健福祉課（地域福祉・保健活動・生活支援）・こども相談センター\n・教育委員会・保育所・児童虐待防止協会・警察・民生委員・児童委員・配偶者暴力相談支援センター"]
[null,"共催団体・組織等",null,null,null,null,null,"―"]
[null,"後援団体・組織等",null,null,null,null,null,"―"]
[null,"目標事業規模",null,null,null,null,null,"―"]
[null,"その他留意事項",null,null,null,null,null,"―"]
[null,"イベント等\n当日タイムテーブル",null,null,null,null,null,"①虐待問題の認識向上と実務者会議等が円滑に行われる環境づくり\n　１４：００～要保護児童の状況について報告　１４：３０～令和４年度の取り組みについて　１５：００～意見交換\n②要対協に登録された全ケースのリスク管理及び新規ケースについての要対協登録にかかる検討\n　１４：００～新規ケース検討　１５：００継続ケース検討\n③要対協に登録されたケースのうち、軽微なケースの検討\n④子どもと家庭の情報把握、課題の整理とその解決に向けた具体的な支援内容の検討\n　児童の一時保護開始時、一時保護解除前、関係機関からの要請があった場合、その他子育て支援室が必要と判断した場合に開催する。\n　"]
[]
[]
[]
[]
[null,"挨拶者",null,null,null,null,null,"―"]
[null,"来賓紹介",null,null,null,null,null,"―"]
[null,"祝電紹介の方法",null,null,null,null,null,"―"]
[null,"動員の方法",null,null,null,null,null,"―"]
["その他他課との連携等",null,null,null,null,null,null,"―"]
["前年度実績",null,null,null,null,null,null,"・代表者会議　3月30日付け資料送付\n・実務者会議　年間１６回開催\n・個別ケース検討会議　５８件\n・虐待レベルの改善率  ４４％　・要対協登録件数　延べ２３５件・養護相談受理件数　１４１３件（うち虐待相談　１７０件） \n・家庭児童相談員対応数　要対協ケース５５件、家庭児童相談ケース６５件（うち継続支援 19件）（令和３年度）  \n・乳幼児心理相談数　144件"]
["業績目標",null,null,null,"実績",null,null,"代表者会議の開催（１回）\n実務者会議の開催（年間１２回）\n支援室会議の開催（毎月２回程度）\n個別ケース検討会議（一時保護開始後、一時保護解除前、その他要対協の進捗管理上情報共有や関係機関の役割分担を検討する必要が生じた際などに開催）\n家庭児童相談（新規相談・継続相談）",null,null,null,null,null,null,null,null,null,null,null,null,"代表者会議の開催（１回）\n実務者会議の開催（１２回）\n支援室会議の開催（３７回）\n個別ケース検討会議（４０件）\n家庭児童相談受理件数（６１２件うち虐待相談９４件、虐待以外の養護相談４３４件）\n",null,null,null,null,null,null,null,null,"自己評価"]
[null,null,null,null,null,null,null,null,null,null,null,null,null,null,null,null,null,null,null,null,null,null,null,null,null,null,null,null,null,"◎"]
[]
[]
["成果目標",null,null,null,"実績",null,null,"要保護児童対策地域協議会登録ケースについて\n・児童虐待にかかる危険度判断や支援内容の見直しを行い、１００％の進捗管理を実施する。\n・登録中のケースについて、改善率が前年度（４４％）を上回る状況。\n（基準日を年度初めと年度末に定め進行管理台帳の登録レベルを比較する）",null,null,null,null,null,null,null,null,null,null,null,null,"要対協登録件数　延べ２４８件\n・進捗管理実施　１００％\n・改善率　４０％（98/２４８）",null,null,null,null,null,null,null,null,"△"]
[]
[]
[]
[]
["中期展望",null,null,null,null,null,null,"児童に関わる関係機関（学校、保育所、幼稚園、保健師、生活支援、こども相談センター、警察等）の共通理解を促進し、代表者会議におけるそれぞれの役割の確認を通じて、具体的な事例における円滑な連携を確立する。"]
[]
[]
["成果目標が\n中期展望に\n寄与する理由",null,null,null,null,null,null,"要保護児童対策地域協議会登録ケースについて、確実な進捗管理がなされ、ケースが改善されることは、関係機関の連携がなされ支援が実行されたことの結果であるとともに、さらなる連携の確立につながることとなるため。"]
[]
[]
[]
[]
["SDGｓゴール",null,null,null,1,null,null,null,{"$f":"+IF(ISERROR(VLOOKUP($E86,[1]SDGｓ!$A$2:$B$18,2,0)),\"\",VLOOKUP($E86,[1]SDGｓ!$A$2:$B$18,2,0))","v":"貧困をなくそう"}]
[null,null,null,null,3,null,null,null,{"$f":"+IF(ISERROR(VLOOKUP($E87,[1]SDGｓ!$A$2:$B$18,2,0)),\"\",VLOOKUP($E87,[1]SDGｓ!$A$2:$B$18,2,0))","v":"すべての人に健康と福祉を"}]
[null,null,null,null,16,null,null,null,{"$f":"+IF(ISERROR(VLOOKUP($E88,[1]SDGｓ!$A$2:$B$18,2,0)),\"\",VLOOKUP($E88,[1]SDGｓ!$A$2:$B$18,2,0))","v":"平和と公正をすべての人に"}]
[]
["修正履歴"]

{"sheet":"3-6-3","index":28,"n_rows":90,"n_cols":34,"rows_kept":90,"cut":false,"hidden":false,"merged":[[0,0,0,3],[0,4,0,20],[0,21,0,27],[0,28,0,29],[0,30,0,31],[1,0,2,3],[1,4,2,20],[1,21,2,27],[1,28,2,29],[1,30,2,31],[4,0,4,6],[4,7,4,31],[5,0,19,0],[5,1,8,6],[5,7,8,31],[5,33,7,34],[9,1,16,6],[9,7,16,31],[17,1,17,6],[17,7,17,31],[18,1,18,6],[18,7,18,31],[19,1,19,6],[19,7,19,31],[20,0,27,0],[20,1,20,6],[20,7,20,31],[21,1,23,6],[21,7,23,31],[24,1,26,6],[30,0,32,0],[30,1,32,1],[30,2,32,23],[30,24,32,27],[30,28,32,29],[30,30,32,31],[24,7,26,31],[27,1,27,6],[27,7,27,31],[29,0,29,23],[29,24,29,27],[29,28,29,29],[29,30,29,31],[33,0,35,1],[33,2,35,23],[33,24,35,27],[33,28,35,29],[33,30,35,31],[36,0,38,1],[36,2,38,23],[36,24,38,27],[36,28,38,29],[36,30,38,31],[45,0,46,1],[45,2,46,31],[47,0,47,6],[47,7,47,31],[48,0,48,6],[48,7,48,31],[39,0,41,1],[39,2,41,23],[39,24,41,27],[39,28,41,29],[39,30,41,31],[42,0,44,1],[42,2,44,23],[42,24,44,27],[42,28,44,29],[42,30,44,31],[53,7,53,31],[54,1,54,6],[54,7,54,31],[55,1,55,6],[55,7,55,31],[56,1,56,6],[56,7,56,31],[49,0,65,0],[49,1,49,6],[49,7,49,31],[50,1,50,6],[50,7,50,31],[51,1,51,6],[51,7,51,31],[52,1,52,6],[52,7,52,31],[53,1,53,6],[64,1,64,6],[64,7,64,31],[65,1,65,6],[65,7,65,31],[66,0,66,6],[66,7,66,31],[57,1,61,6],[57,7,61,31],[62,1,62,6],[62,7,62,31],[63,1,63,6],[63,7,63,31],[72,0,76,3],[72,4,76,6],[72,7,76,19],[72,20,76,28],[72,29,76,31],[77,0,79,6],[77,7,79,31],[67,0,67,6],[67,7,67,31],[68,0,71,3],[68,4,71,6],[68,7,71,19],[68,20,71,28],[68,29,68,31],[69,29,71,31],[89,0,89,3],[89,4,89,31],[80,0,83,6],[80,7,83,31],[85,0,87,3],[85,4,85,7],[85,8,85,31],[86,4,86,7],[86,8,86,31],[87,4,87,7],[87,8,87,31]]}
["取組番号",null,null,null,"事業名",null,null,null,null,null,null,null,null,null,null,null,null,null,null,null,null,"作成年月日・担当",null,null,null,null,null,null,"重点",null,"新規"]
["3-5-1\n3-6-3",null,null,null,"区独自スクールソーシャルワーカーの活用事業",null,null,null,null,null,null,null,null,null,null,null,null,null,null,null,null,"令和４年４月１日\n保健福祉課（こども・教育）"]
[]
[]
["項目",null,null,null,null,null,null,"内容"]
["事業・業務概要","目的\n（事業の背景を含む）",null,null,null,null,null,"今日の子どもの問題行動の背景には、児童・生徒の心の問題や家庭、友人関係、地域、学校等の環境の問題が複雑に絡み合っている。子どもの生活に関する実態調査からは「①困窮度の高い子育て世帯には複合的な課題がある。」「②諸施策はあるが十分に届かず適切な支援ができていない」ことが明らかになっており、こどもサポートネット事業と連携した総合的な働きかけが必要となっていることから、区独自スクールソーシャルワーカーをこどもサポートネット事業の一員として配置することにより、これら子どもの問題行動の課題解決に努めるとともに、すべての家庭が安心して子育てができる環境を作ることを目的とする。",null,null,null,null,null,null,null,null,null,null,null,null,null,null,null,null,null,null,null,null,null,null,null,null,null,"一覧へ戻る"]
[]
[]
[]
[null,"内容",null,null,null,null,null,"\n社会福祉等の専門的な知識や教育分野に関する知識を有するスクールソーシャルワーカーを区独自に雇用し、課題を抱える児童・生徒及び家庭への支援のアセスメントを行い（児童・生徒及び家庭の状況や変化に応じて、アセスメント内容を適宜再検討）、具体支援への継続的な働きかけや、関係機関等とのネットワークの構築・調整、学校に対しての課題解決のノウハウの伝授等を行うとともに、こどもサポートネットスクールソーシャルワーカー、こどもサポート推進員を総括し、区の児童、生徒への支援を円滑に進める。\n"]
[]
[]
[]
[]
[]
[]
[]
[null,"予算額（予算科目）",null,null,null,null,null,"【校長経営戦略支援予算】3,809千円（国庫補助1/3）\n（其他委員等報酬、期末勤勉手当、費用弁償、其他委員等旅費、消耗品費、通信運搬費）"]
[null,"事業実施期間（回数）",null,null,null,null,null,"令和４年４月１日～令和５年３月31日（週18時間・52週）"]
[null,"事業対象者（人数）",null,null,null,null,null,"区域内全児童・生徒"]
["委託関係","契約・入札方法",null,null,null,null,null,"公募※ただし更新あり（２回まで最長３年）"]
[null,"募集要項のポイント",null,null,null,null,null,"次の（１）から（３）をすべて満たす者を資格要件としている。\n（１）社会福祉士または精神保健福祉士の資格を有する者\n（２）社会福祉士または精神保健福祉士の資格の保有を条件として採用され、学校教育及び社会福祉に関して専門的な知識や技術を有し、過去に教育や福祉の分野で活動経験の実績等がある者\n（３）地方公務員法第16条各号（欠格条項）に該当しない者　"]
[]
[]
[null,"仕様書のポイント",null,null,null,null,null,"こどもサポートネットスクールソーシャルワーカー、こどもサポート推進員、家庭児童相談員、臨床心理士、スクールカウンセラー等を総括し、教育分野及び社会福祉に関する専門的な知識・技術を用いて、児童生徒やその家庭への支援等を行うよう規定"]
[]
[]
[null,"選考委員等選考方式",null,null,null,null,null,"―"]
[]
["スケジュール（実施決裁、入札募集開始、説明会、選考会、事業の実施　等）",null,null,null,null,null,null,null,null,null,null,null,null,null,null,null,null,null,null,null,null,null,null,null,"広報スケジュール",null,null,null,"スケ",null,"作業"]
["（前年度）","1月～3月","契約更新手続き等\n更新しない場合は、募集・雇用契約手続き",null,null,null,null,null,null,null,null,null,null,null,null,null,null,null,null,null,null,null,null,null,"【１月】ホームページにて募集開始",null,null,null,"〇",null,"〇"]
[]
[]
["4月～\n6月",null,"・こどもサポートネットスクリーニング会議Ⅱへの出席、学校・家庭訪問\n・アセスメントを行った児童・生徒等へ支援\n・区役所との打合せ、活動報告",null,null,null,null,null,null,null,null,null,null,null,null,null,null,null,null,null,null,null,null,null,null,null,null,null,"〇",null,"〇"]
[]
[]
["7月～\n9月",null,"・こどもサポートネットスクリーニング会議Ⅱへの出席、学校・家庭訪問\n・アセスメントを行った児童・生徒等へ支援\n・区役所との打合せ、中間活動報告、活動の検証",null,null,null,null,null,null,null,null,null,null,null,null,null,null,null,null,null,null,null,null,null,null,null,null,null,"〇",null,"〇"]
[]
[]
["10月～\n12月",null,"・こどもサポートネットスクリーニング会議Ⅱへの出席、学校・家庭訪問\n・アセスメントを行った児童・生徒等へ支援\n・区役所との打合せ、活動報告",null,null,null,null,null,null,null,null,null,null,null,null,null,null,null,null,null,null,null,null,null,null,null,null,null,"〇",null,"〇"]
[]
[]
["1月～\n3月",null,"・こどもサポートネットスクリーニング会議Ⅱへの出席、学校・家庭訪問\n・アセスメントを行った児童・生徒等へ支援\n・区役所との打合せ、年度末活動報告、活動の検証",null,null,null,null,null,null,null,null,null,null,null,null,null,null,null,null,null,null,null,null,null,null,null,null,null,"〇",null,"〇"]
[]
[]
["備考"]
[]
["項目",null,null,null,null,null,null,"内容"]
["講座・イベント・会議名",null,null,null,null,null,null,"―"]
["イベント等開催関係","開催日時",null,null,null,null,null,"―"]
[null,"開催場所",null,null,null,null,null,"―"]
[null,"区役所の主催等",null,null,null,null,null,"―"]
[null,"その他主催団体・組織等",null,null,null,null,null,"―"]
[null,"共催団体・組織等",null,null,null,null,null,"―"]
[null,"後援団体・組織等",null,null,null,null,null,"―"]
[null,"目標事業規模",null,null,null,null,null,"―"]
[null,"その他留意事項",null,null,null,null,null,"―"]
[null,"イベント等\n当日タイムテーブル",null,null,null,null,null,"―"]
[]
[]
[]
[]
[null,"挨拶者",null,null,null,null,null,"―"]
[null,"来賓紹介",null,null,null,null,null,"―"]
[null,"祝電紹介の方法",null,null,null,null,null,"―"]
[null,"動員の方法",null,null,null,null,null,"―"]
["その他他課との連携等",null,null,null,null,null,null,"児童・生徒が抱える課題解決に向け、各校や子育て支援室、家庭児童相談員と連携を行っている。"]
["前年度実績",null,null,null,null,null,null,"・スクリーニング会議Ⅱにより支援が必要とされた児童・生徒へのアウトリーチ数：42ケース、100回（令和３年度）\n・取り扱った件数のうち、具体支援策により課題や状況が解決、改善された件数：10ケース（令和３年度）\n・区独自SSWがこサポSSW、推進員等の活動内容について十分に確認を行い、それを踏まえ、学校に対して課題解決のノウハウを伝授する等、積極的に学校を支援した件数：７件（令和３年度）"]
["業績目標",null,null,null,"実績",null,null,"スクリーニング会議Ⅱにより支援が必要とされた児童・生徒へのアウトリーチ数：40ケース、100回以上",null,null,null,null,null,null,null,null,null,null,null,null,"スクリーニング会議Ⅱにより支援が必要とされた児童・生徒へのアウトリーチ数：46ケース、126回",null,null,null,null,null,null,null,null,"自己評価"]
[null,null,null,null,null,null,null,null,null,null,null,null,null,null,null,null,null,null,null,null,null,null,null,null,null,null,null,null,null,"◎"]
[]
[]
["成果目標",null,null,null,"実績",null,null,"・全件把握したケースに対して、具体支援策により課題や状況が解決、改善された件数：10ケース以上\n・区独自SSWがこサポSSW、推進員等の活動内容について十分に確認を行い、それを踏まえ、学校に対して課題解決のノウハウを伝授する等、積極的に学校を支援した件数：５件以上",null,null,null,null,null,null,null,null,null,null,null,null,"・全件把握したケースに対して、具体支援策により課題や状況が解決、改善された件数：17ケース\n・区独自SSWがこサポSSW、推進員等の活動内容について十分に確認を行い、それを踏まえ、学校に対して課題解決のノウハウを伝授する等、積極的に学校を支援した件数：10件",null,null,null,null,null,null,null,null,"◎"]
[]
[]
[]
[]
["中期展望",null,null,null,null,null,null,"区全体で問題解決に取組み、家庭や地域で問題解決が図れるようコーディネイトし、関係機関等とのネットワークが構築され、地域生活課題を地域において包括的に支援できている状態をめざす。"]
[]
[]
["成果目標が\n中期展望に\n寄与する理由",null,null,null,null,null,null,"区独自SSWがこどもサポートネットSSW、こどもサポート推進員を総括するなど、マネジメントを強化するとともに、児童・生徒が抱える問題を解決・改善することにより、課題解決のノウハウや関係機関との連携実績が蓄積でき、地域における包括的な支援体制の構築が図られる。"]
[]
[]
[]
[]
["SDGｓゴール",null,null,null,1,null,null,null,{"$f":"+IF(ISERROR(VLOOKUP($E86,[5]SDGｓ!$A$2:$B$18,2,0)),\"\",VLOOKUP($E86,[5]SDGｓ!$A$2:$B$18,2,0))","v":"貧困をなくそう"}]
[null,null,null,null,4,null,null,null,{"$f":"+IF(ISERROR(VLOOKUP($E87,[5]SDGｓ!$A$2:$B$18,2,0)),\"\",VLOOKUP($E87,[5]SDGｓ!$A$2:$B$18,2,0))","v":"質の高い教育をみんなに"}]
[null,null,null,null,null,null,null,null,{"$f":"+IF(ISERROR(VLOOKUP($E88,[5]SDGｓ!$A$2:$B$18,2,0)),\"\",VLOOKUP($E88,[5]SDGｓ!$A$2:$B$18,2,0))","v":""}]
[]
["修正履歴"]

{"sheet":"3-6-4","index":29,"n_rows":90,"n_cols":34,"rows_kept":90,"cut":false,"hidden":false,"merged":[[89,0,89,3],[89,4,89,31],[80,0,83,6],[80,7,83,31],[85,0,87,3],[85,4,85,7],[85,8,85,31],[86,4,86,7],[86,8,86,31],[87,4,87,7],[87,8,87,31],[77,0,79,6],[77,7,79,31],[67,0,67,6],[67,7,67,31],[68,0,71,3],[68,4,71,6],[68,7,71,19],[68,20,71,28],[68,29,68,31],[69,29,71,31],[66,0,66,6],[66,7,66,31],[57,1,61,6],[57,7,61,31],[62,1,62,6],[62,7,62,31],[63,1,63,6],[63,7,63,31],[72,0,76,3],[72,4,76,6],[72,7,76,19],[72,20,76,28],[72,29,76,31],[53,7,53,31],[54,1,54,6],[54,7,54,31],[55,1,55,6],[55,7,55,31],[56,1,56,6],[56,7,56,31],[49,0,65,0],[49,1,49,6],[49,7,49,31],[50,1,50,6],[50,7,50,31],[51,1,51,6],[51,7,51,31],[52,1,52,6],[52,7,52,31],[53,1,53,6],[64,1,64,6],[64,7,64,31],[65,1,65,6],[65,7,65,31],[45,0,46,1],[45,2,46,31],[47,0,47,6],[47,7,47,31],[48,0,48,6],[48,7,48,31],[39,0,41,1],[39,2,41,23],[39,24,41,27],[39,28,41,29],[39,30,41,31],[42,0,44,1],[42,2,44,23],[42,24,44,27],[42,28,44,29],[42,30,44,31],[33,0,35,1],[33,2,35,23],[33,24,35,27],[33,28,35,29],[33,30,35,31],[36,0,38,1],[36,2,38,23],[36,24,38,27],[36,28,38,29],[36,30,38,31],[29,0,29,23],[29,24,29,27],[29,28,29,29],[29,30,29,31],[30,0,32,0],[30,1,32,1],[30,2,32,23],[30,24,32,27],[30,28,32,29],[30,30,32,31],[20,0,27,0],[20,1,20,6],[20,7,20,31],[21,1,23,6],[21,7,23,31],[24,1,26,6],[24,7,26,31],[27,1,27,6],[27,7,27,31],[5,33,7,34],[9,1,16,6],[9,7,16,31],[17,1,17,6],[17,7,17,31],[18,1,18,6],[18,7,18,31],[4,0,4,6],[4,7,4,31],[5,0,19,0],[5,1,8,6],[5,7,8,31],[19,1,19,6],[19,7,19,31],[0,0,0,3],[0,4,0,20],[0,21,0,27],[0,28,0,29],[0,30,0,31],[1,4,2,20],[1,21,2,27],[1,28,2,29],[1,30,2,31],[1,0,2,3]]}
["取組番号",null,null,null,"事業名",null,null,null,null,null,null,null,null,null,null,null,null,null,null,null,null,"作成年月日・担当",null,null,null,null,null,null,"重点",null,"新規"]
[{"$f":"RIGHT(CELL(\"filename\",A4),LEN(CELL(\"filename\",A4))-FIND(\"]\",CELL(\"filename\",A4)))","v":"3-6-4"},null,null,null,"民間事業者を活用した課外学習支援事業",null,null,null,null,null,null,null,null,null,null,null,null,null,null,null,null,"令和４年４月１日\n保健福祉課（こども・教育）"]
[]
[]
["項目",null,null,null,null,null,null,"内容"]
["事業・業務概要","目的\n（事業の背景を含む）",null,null,null,null,null,"本市では「全国学力・学習状況調査」及び「大阪市子どもの生活実態調査の結果」等から、課外学習時間の短さが課題として現れており、各学校内での取組みだけでなく、課外学習の充実が求められ、各区において課外学習支援事業が進められている。\n当区においても、これら課題解決に向け、生徒の基礎学力の向上及び学習習慣の形成を図ることを目的とする。",null,null,null,null,null,null,null,null,null,null,null,null,null,null,null,null,null,null,null,null,null,null,null,null,null,"一覧へ戻る"]
[]
[]
[]
[null,"内容",null,null,null,null,null,"子どもの習熟の程度に応じたきめ細かい指導を行うなど、民間事業者の学習支援のノウハウを活用した放課後課外学習を実施する。実施にあたり、事業者に対して実施場所等を無償で提供し、また受講者の塾代負担の軽減を図るため、「大阪市塾代助成事業」で交付されているバウチャー（塾代助成カード）でも受講可能とする。\nこれらの取り組みについて、対象者への周知を図るとともに区民への認知度も高めていく。\n1クラス30名程度を定員とし、受講希望者が定員を超える場合は、クラス増を行う。"]
[]
[]
[]
[]
[]
[]
[]
[null,"予算額（予算科目）",null,null,null,null,null,"【校長経営戦略支援予算】105千円（報償金、普通旅費、光熱水費、通信運搬費）"]
[null,"事業実施期間（回数）",null,null,null,null,null,"令和４年４月１日～令和５年３月31日"]
[null,"事業対象者（人数）",null,null,null,null,null,"区内在住中学生"]
["委託関係","契約・入札方法",null,null,null,null,null,"公募型プロポーザル方式による特名随意契約"]
[null,"募集要項のポイント",null,null,null,null,null,"民間事業者の幅広い知識、経験、専門性等のノウハウを駆使した総合的なプログラム等の提案を求める。また、新型コロナウイルス感染症対策として、ICTの活用やオンライン学習など、教室型の授業に加え、新しい学習方法についても提案を求める。"]
[]
[]
[null,"仕様書のポイント",null,null,null,null,null,"各学年、各生徒の習熟度に合わせた教材作りや授業内容とし、子どもの習熟に応じたきめ細かい指導を行い、基礎学力の定着、学力向上及び学習習慣の形成に資する実施内容とする。\n"]
[]
[]
[null,"選考委員等選考方式",null,null,null,null,null,"教育、福祉等の専門知識を持つ外部委員3名による選定会議にて選定"]
[]
["スケジュール（実施決裁、入札募集開始、説明会、選考会、事業の実施　等）",null,null,null,null,null,null,null,null,null,null,null,null,null,null,null,null,null,null,null,null,null,null,null,"広報スケジュール",null,null,null,"スケ",null,"作業"]
["（前年度）","1月～3月","・選定会議の開催\n・理解度テスト、アンケートの実施、効果検証\n・協定書締結に向けた準備",null,null,null,null,null,null,null,null,null,null,null,null,null,null,null,null,null,null,null,null,null,"【２月】選定結果の公表\n",null,null,null,"〇",null,"〇"]
[]
[]
["4月～\n6月",null,"・放課後課外学習の実施\n【４月】\n・協定書締結\n・理解度テスト、アンケートの実施\n",null,null,null,null,null,null,null,null,null,null,null,null,null,null,null,null,null,null,null,null,null,"・ホームページ、広報紙にて生徒募集\n・区内掲示板へポスター貼付",null,null,null,"〇",null,"〇"]
[]
[]
["7月～\n9月",null,"・放課後課外学習の実施\n【９月】\n・理解度テスト、アンケートの実施",null,null,null,null,null,null,null,null,null,null,null,null,null,null,null,null,null,null,null,null,null,null,null,null,null,"〇",null,"〇"]
[]
[]
["10月～\n12月",null,"・放課後課外学習の実施\n【12月】\n・選定会議メンバーの選定、仕様書、募集要項の作成\n・公募開始\n",null,null,null,null,null,null,null,null,null,null,null,null,null,null,null,null,null,null,null,null,null,"【12月】ホームページにて公募開始",null,null,null,"〇",null,"〇"]
[]
[]
["1月～\n3月",null,"・放課後課外学習の実施\n【２月】\n・選定会議の開催\n【３月】\n・理解度テスト、アンケートの実施\n・協定書締結に向けた準備\n\n\n",null,null,null,null,null,null,null,null,null,null,null,null,null,null,null,null,null,null,null,null,null,"【２月】選定結果の公表",null,null,null,"〇",null,"〇"]
[]
[]
["備考"]
[]
["項目",null,null,null,null,null,null,"内容"]
["講座・イベント・会議名",null,null,null,null,null,null,"―"]
["イベント等開催関係","開催日時",null,null,null,null,null,"―"]
[null,"開催場所",null,null,null,null,null,"―"]
[null,"区役所の主催等",null,null,null,null,null,"―"]
[null,"その他主催団体・組織等",null,null,null,null,null,"―"]
[null,"共催団体・組織等",null,null,null,null,null,"―"]
[null,"後援団体・組織等",null,null,null,null,null,"―"]
[null,"目標事業規模",null,null,null,null,null,"―"]
[null,"その他留意事項",null,null,null,null,null,"―"]
[null,"イベント等\n当日タイムテーブル",null,null,null,null,null,"―"]
[]
[]
[]
[]
[null,"挨拶者",null,null,null,null,null,"―"]
[null,"来賓紹介",null,null,null,null,null,"―"]
[null,"祝電紹介の方法",null,null,null,null,null,"―"]
[null,"動員の方法",null,null,null,null,null,"―"]
["その他他課との連携等",null,null,null,null,null,null,"開講校（大正中央中学校）、事業者、区役所が連携して実施する。"]
["前年度実績",null,null,null,null,null,null,"・1クラス（30名）の利用者生徒数：16名（令和３年度）\n・参加者アンケートで、参加前よりも学校の授業がわかるようになったと回答した割合：93％（国語）、80％（数学）、80％（英語）（令和３年度、最終アンケート）"]
["業績目標",null,null,null,"実績",null,null,"1クラス（30名）の利用者生徒数：8割（1クラス24名）以上",null,null,null,null,null,null,null,null,null,null,null,null,"1クラス（30名）の利用者生徒数：73％（22人）",null,null,null,null,null,null,null,null,"自己評価"]
[null,null,null,null,null,null,null,null,null,null,null,null,null,null,null,null,null,null,null,null,null,null,null,null,null,null,null,null,null,"△"]
[]
[]
["成果目標",null,null,null,"実績",null,null,"参加者アンケートで、参加前よりも学校の授業がわかるようになったと回答した割合：90％以上",null,null,null,null,null,null,null,null,null,null,null,null,"参加者アンケートで、参加前よりも学校の授業がわかるようになったと回答した割合：68.3％",null,null,null,null,null,null,null,null,"×"]
[]
[]
[]
[]
["中期展望",null,null,null,null,null,null,"アンケート調査や効果検証により、開講日の増や、通塾回数の選択（週１回or２回）を可能にするなど、より多くの生徒に習熟の程度に応じたきめ細かい指導を行うことにより、基礎学力の向上及び学習習慣の形成を図る。"]
[]
[]
["成果目標が\n中期展望に\n寄与する理由",null,null,null,null,null,null,"参加前より学校の授業が分かりやすくなったと感じることにより、参加した生徒に自主的に学習に取り組もうとする意欲が生じ、基礎学力の向上や学習習慣の形成につながる。"]
[]
[]
[]
[]
["SDGｓゴール",null,null,null,4,null,null,null,{"$f":"+IF(ISERROR(VLOOKUP($E86,[5]SDGｓ!$A$2:$B$18,2,0)),\"\",VLOOKUP($E86,[5]SDGｓ!$A$2:$B$18,2,0))","v":"質の高い教育をみんなに"}]
[null,null,null,null,null,null,null,null,{"$f":"+IF(ISERROR(VLOOKUP($E87,[5]SDGｓ!$A$2:$B$18,2,0)),\"\",VLOOKUP($E87,[5]SDGｓ!$A$2:$B$18,2,0))","v":""}]
[null,null,null,null,null,null,null,null,{"$f":"+IF(ISERROR(VLOOKUP($E88,[5]SDGｓ!$A$2:$B$18,2,0)),\"\",VLOOKUP($E88,[5]SDGｓ!$A$2:$B$18,2,0))","v":""}]
[]
["修正履歴"]

{"sheet":"3-6-5","index":30,"n_rows":90,"n_cols":34,"rows_kept":90,"cut":false,"hidden":false,"merged":[[0,0,0,3],[0,4,0,20],[0,21,0,27],[0,28,0,29],[0,30,0,31],[1,0,2,3],[1,4,2,20],[1,21,2,27],[1,28,2,29],[1,30,2,31],[4,0,4,6],[4,7,4,31],[5,0,19,0],[5,1,8,6],[5,7,8,31],[5,33,7,34],[9,1,16,6],[9,7,16,31],[17,1,17,6],[17,7,17,31],[18,1,18,6],[18,7,18,31],[19,1,19,6],[19,7,19,31],[20,0,27,0],[20,1,20,6],[20,7,20,31],[21,1,23,6],[21,7,23,31],[24,1,26,6],[30,0,32,0],[30,1,32,1],[30,2,32,23],[30,24,32,27],[30,28,32,29],[30,30,32,31],[24,7,26,31],[27,1,27,6],[27,7,27,31],[29,0,29,23],[29,24,29,27],[29,28,29,29],[29,30,29,31],[33,0,35,1],[33,2,35,23],[33,24,35,27],[33,28,35,29],[33,30,35,31],[36,0,38,1],[36,2,38,23],[36,24,38,27],[36,28,38,29],[36,30,38,31],[45,0,46,1],[45,2,46,31],[47,0,47,6],[47,7,47,31],[48,0,48,6],[48,7,48,31],[39,0,41,1],[39,2,41,23],[39,24,41,27],[39,28,41,29],[39,30,41,31],[42,0,44,1],[42,2,44,23],[42,24,44,27],[42,28,44,29],[42,30,44,31],[53,7,53,31],[54,1,54,6],[54,7,54,31],[55,1,55,6],[55,7,55,31],[56,1,56,6],[56,7,56,31],[49,0,65,0],[49,1,49,6],[49,7,49,31],[50,1,50,6],[50,7,50,31],[51,1,51,6],[51,7,51,31],[52,1,52,6],[52,7,52,31],[53,1,53,6],[64,1,64,6],[64,7,64,31],[65,1,65,6],[65,7,65,31],[66,0,66,6],[66,7,66,31],[57,1,61,6],[57,7,61,31],[62,1,62,6],[62,7,62,31],[63,1,63,6],[63,7,63,31],[72,0,76,3],[72,4,76,6],[72,7,76,19],[72,20,76,28],[72,29,76,31],[77,0,79,6],[77,7,79,31],[67,0,67,6],[67,7,67,31],[68,0,71,3],[68,4,71,6],[68,7,71,19],[68,20,71,28],[68,29,68,31],[69,29,71,31],[89,0,89,3],[89,4,89,31],[80,0,83,6],[80,7,83,31],[85,0,87,3],[85,4,85,7],[85,8,85,31],[86,4,86,7],[86,8,86,31],[87,4,87,7],[87,8,87,31]]}
["取組番号",null,null,null,"事業名",null,null,null,null,null,null,null,null,null,null,null,null,null,null,null,null,"作成年月日・担当",null,null,null,null,null,null,"重点",null,"新規"]
["3-5-2\n3-6-5",null,null,null,"学習・登校サポート事業",null,null,null,null,null,null,null,null,null,null,null,null,null,null,null,null,"令和４年４月１日\n保健福祉課（こども・教育）",null,null,null,null,null,null,"〇"]
[]
[]
["項目",null,null,null,null,null,null,"内容"]
["事業・業務概要","目的\n（事業の背景を含む）",null,null,null,null,null,"学校の授業以外で学習機会の少ない生活困窮家庭の児童やひとり親家庭で家庭学習機会が失われている児童、また不登校や病気による長期欠席等により学習機会を逃した児童・生徒に、家庭や学校、関係機関を含めた場所で、事業者による一人ひとりの状況に応じたきめ細かい学習サポートや登校に向けた支援を行い、基礎学力の向上を図り、貧困の連鎖を断ち切る一助とするとともに児童・生徒の健やかな育成を図ることを目的とする。",null,null,null,null,null,null,null,null,null,null,null,null,null,null,null,null,null,null,null,null,null,null,null,null,null,"一覧へ戻る"]
[]
[]
[]
[null,"内容",null,null,null,null,null,"家庭や学校等で、事業者による貧困等により学習支援等が必要な児童・生徒一人ひとりの状況に応じたきめ細かい学習サポートや登校に向けた支援を行う。\n（１）学校、保護者等との面談\n　こどもサポートネットスクリーニング会議で対象家庭を抽出し、支援内容（家庭への支援、児童・生徒への支援）について、学校、保護者と面談等を行う。\n（２）学習支援\n　個別を基本とし、状況に応じて家庭、学校施設等で児童・生徒へ学習支援を行い貧困対策（貧困の連鎖を生まないため）に取り組む。\n（3）登校支援等\n　不登校や不登校傾向にある児童・生徒に対して、登校の再開や定着にむけ登校支援を行う。\nまた、支援の進捗について、スクリーニング会議で報告を行う。"]
[]
[]
[]
[]
[]
[]
[]
[null,"予算額（予算科目）",null,null,null,null,null,"【区重点】13,182千円（報償金、通信運搬費、委託料）"]
[null,"事業実施期間（回数）",null,null,null,null,null,"令和４年４月１日～令和５年３月31日"]
[null,"事業対象者（人数）",null,null,null,null,null,"区内小学生・中学生（約51名）"]
["委託関係","契約・入札方法",null,null,null,null,null,"公募型プロポーザル方式による特名随意契約"]
[null,"募集要項のポイント",null,null,null,null,null,"民間事業者の幅広い知識、経験、専門性等のノウハウを駆使した総合的なプログラム等の提案を求める。"]
[]
[]
[null,"仕様書のポイント",null,null,null,null,null,"学校、保護者等と面談を行い、対象者一人ひとりに適した支援を実施することにより、基礎学力の定着および学力向上に資する実施内容とする。\n※提案内容は、新型コロナウイルス感染症対策を踏まえたものを必須とする。"]
[]
[]
[null,"選考委員等選考方式",null,null,null,null,null,"教育、福祉等の専門知識を持つ外部委員3名による選定会議にて選定。"]
[]
["スケジュール（実施決裁、入札募集開始、説明会、選考会、事業の実施　等）",null,null,null,null,null,null,null,null,null,null,null,null,null,null,null,null,null,null,null,null,null,null,null,"広報スケジュール",null,null,null,"スケ",null,"作業"]
["（前年度）","1月～3月","・アンケート調査（３月）\n・効果検証\n・公募開始、選定会議の開催\n・契約書締結に向けた協議\n\n",null,null,null,null,null,null,null,null,null,null,null,null,null,null,null,null,null,null,null,null,null,"【１月】ホームページにて公募開始\n【３月】選定結果の公表\n",null,null,null,"〇",null,"〇"]
[]
[]
["4月～\n6月",null,"【４月】\n・契約書締結\n・こどもサポートネットと連携し、学習・登校支援を実施",null,null,null,null,null,null,null,null,null,null,null,null,null,null,null,null,null,null,null,null,null,null,null,null,null,"〇",null,"〇"]
[]
[]
["7月～\n9月",null,"・こどもサポートネットと連携し、学習・登校支援を実施\n・中間検証\n・アンケート調査（１学期終了時）\n・４年間の事業の総括及び令和５年度以降の本事業の方向性について検討",null,null,null,null,null,null,null,null,null,null,null,null,null,null,null,null,null,null,null,null,null,null,null,null,null,"〇",null,"〇"]
[]
[]
["10月～\n12月",null,"・こどもサポートネットと連携し、学習・登校支援を実施\n・アンケート調査（２学期終了時）\n【12月】\n・選定会議メンバーの選定、仕様書、募集要項の作成",null,null,null,null,null,null,null,null,null,null,null,null,null,null,null,null,null,null,null,null,null,null,null,null,null,"〇",null,"〇"]
[]
[]
["1月～\n3月",null,"・こどもサポートネットと連携し、学習・登校支援を実施\n・アンケート調査（３月）\n・効果検証\n・公募開始、選定会議の開催\n・契約書締結に向けた協議",null,null,null,null,null,null,null,null,null,null,null,null,null,null,null,null,null,null,null,null,null,"【１月】ホームページにて公募開始\n【３月】選定結果の公表\n",null,null,null,"〇",null,"〇"]
[]
[]
["備考"]
[]
["項目",null,null,null,null,null,null,"内容"]
["講座・イベント・会議名",null,null,null,null,null,null,"―"]
["イベント等開催関係","開催日時",null,null,null,null,null,"―"]
[null,"開催場所",null,null,null,null,null,"―"]
[null,"区役所の主催等",null,null,null,null,null,"―"]
[null,"その他主催団体・組織等",null,null,null,null,null,"―"]
[null,"共催団体・組織等",null,null,null,null,null,"―"]
[null,"後援団体・組織等",null,null,null,null,null,"―"]
[null,"目標事業規模",null,null,null,null,null,"―"]
[null,"その他留意事項",null,null,null,null,null,"―"]
[null,"イベント等\n当日タイムテーブル",null,null,null,null,null,"―"]
[]
[]
[]
[]
[null,"挨拶者",null,null,null,null,null,"―"]
[null,"来賓紹介",null,null,null,null,null,"―"]
[null,"祝電紹介の方法",null,null,null,null,null,"―"]
[null,"動員の方法",null,null,null,null,null,"―"]
["その他他課との連携等",null,null,null,null,null,null,"事業者、区役所（子ども・教育担当・福祉・生活支援）、学校、地域が連携して実施する。"]
["前年度実績",null,null,null,null,null,null,"・スクリーニング会議Ⅱで本事業の支援が必要判断した対象児童・生徒60人のうち50人に学習・登校支援を実施：83.3％（令和４年３月末時点）\n・事業に参加した児童・生徒が以前より学校の授業が分かりやすくなったと感じる割合：79％（１回目アンケート）、79％（２回目アンケート）、78％（３回目アンケート）\n・学力面において、学習理解度の向上が見られた児童・生徒の割合：算数・数学73％、国語・英語84％（令和３年度）"]
["業績目標",null,null,null,"実績",null,null,"スクリーニング会議Ⅱで本事業の支援が必要と判断した対象児童・生徒へ具体支援（学習支援・登校支援）を行った児童・生徒の割合を前年度（83.3％）より向上させる。",null,null,null,null,null,null,null,null,null,null,null,null,"スクリーニング会議Ⅱで本事業の支援が必要と判断した対象児童・生徒へ具体支援（学習支援・登校支援）を行った児童・生徒の割合：85.7％（R３：83.3％）",null,null,null,null,null,null,null,null,"自己評価"]
[null,null,null,null,null,null,null,null,null,null,null,null,null,null,null,null,null,null,null,null,null,null,null,null,null,null,null,null,null,"○"]
[]
[]
["成果目標",null,null,null,"実績",null,null,"事業に参加した児童・生徒が以前より学校の授業が分かりやすくなったと感じる割合：80％以上",null,null,null,null,null,null,null,null,null,null,null,null,"事業に参加した児童・生徒が以前より学校の授業が分かりやすくなったと感じる割合\n１学期：65％\n２学期：59％\n３学期：59％",null,null,null,null,null,null,null,null,"×"]
[]
[]
[]
[]
["中期展望",null,null,null,null,null,null,"事業に参加した児童・生徒が進学後も引き続き、学習習慣の定着が維持されている状態をめざす。"]
[]
[]
["成果目標が\n中期展望に\n寄与する理由",null,null,null,null,null,null,"授業が分かりやすくなったと感じることで、学習面での不安が解消されるとともに学習意欲が高まることにより、学習習慣の定着に寄与することが期待できる。"]
[]
[]
[]
[]
["SDGｓゴール",null,null,null,1,null,null,null,{"$f":"+IF(ISERROR(VLOOKUP($E86,[7]SDGｓ!$A$2:$B$18,2,0)),\"\",VLOOKUP($E86,[7]SDGｓ!$A$2:$B$18,2,0))","v":"貧困をなくそう"}]
[null,null,null,null,4,null,null,null,{"$f":"+IF(ISERROR(VLOOKUP($E87,[7]SDGｓ!$A$2:$B$18,2,0)),\"\",VLOOKUP($E87,[7]SDGｓ!$A$2:$B$18,2,0))","v":"質の高い教育をみんなに"}]
[null,null,null,null,null,null,null,null,{"$f":"+IF(ISERROR(VLOOKUP($E88,[7]SDGｓ!$A$2:$B$18,2,0)),\"\",VLOOKUP($E88,[7]SDGｓ!$A$2:$B$18,2,0))","v":""}]
[]
["修正履歴"]

{"sheet":"3-6-6","index":31,"n_rows":90,"n_cols":34,"rows_kept":90,"cut":false,"hidden":false,"merged":[[89,0,89,3],[89,4,89,31],[80,0,83,6],[80,7,83,31],[85,0,87,3],[85,4,85,7],[85,8,85,31],[86,4,86,7],[86,8,86,31],[87,4,87,7],[87,8,87,31],[77,0,79,6],[77,7,79,31],[67,0,67,6],[67,7,67,31],[68,0,71,3],[68,4,71,6],[68,7,71,19],[68,20,71,28],[68,29,68,31],[69,29,71,31],[66,0,66,6],[66,7,66,31],[57,1,61,6],[57,7,61,31],[62,1,62,6],[62,7,62,31],[63,1,63,6],[63,7,63,31],[72,0,76,3],[72,4,76,6],[72,7,76,19],[72,20,76,28],[72,29,76,31],[53,7,53,31],[54,1,54,6],[54,7,54,31],[55,1,55,6],[55,7,55,31],[56,1,56,6],[56,7,56,31],[49,0,65,0],[49,1,49,6],[49,7,49,31],[50,1,50,6],[50,7,50,31],[51,1,51,6],[51,7,51,31],[52,1,52,6],[52,7,52,31],[53,1,53,6],[64,1,64,6],[64,7,64,31],[65,1,65,6],[65,7,65,31],[45,0,46,1],[45,2,46,31],[47,0,47,6],[47,7,47,31],[48,0,48,6],[48,7,48,31],[39,2,41,23],[39,28,41,29],[39,30,41,31],[42,0,44,1],[42,2,44,23],[42,28,44,29],[42,30,44,31],[33,0,35,1],[33,2,35,23],[33,24,44,27],[33,28,35,29],[33,30,35,31],[36,0,38,1],[36,2,38,23],[36,28,38,29],[36,30,38,31],[39,0,41,1],[29,0,29,23],[29,24,29,27],[29,28,29,29],[29,30,29,31],[30,0,32,0],[30,1,32,1],[30,2,32,23],[30,24,32,27],[30,28,32,29],[30,30,32,31],[20,0,27,0],[20,1,20,6],[20,7,20,31],[21,1,23,6],[21,7,23,31],[24,1,26,6],[24,7,26,31],[27,1,27,6],[27,7,27,31],[5,33,7,34],[9,1,16,6],[9,7,16,31],[17,1,17,6],[17,7,17,31],[18,1,18,6],[18,7,18,31],[4,0,4,6],[4,7,4,31],[5,0,19,0],[5,1,8,6],[5,7,8,31],[19,1,19,6],[19,7,19,31],[0,0,0,3],[0,4,0,20],[0,21,0,27],[0,28,0,29],[0,30,0,31],[1,4,2,20],[1,21,2,27],[1,28,2,29],[1,30,2,31],[1,0,2,3]]}
["取組番号",null,null,null,"事業名",null,null,null,null,null,null,null,null,null,null,null,null,null,null,null,null,"作成年月日・担当",null,null,null,null,null,null,"重点",null,"新規"]
[{"$f":"RIGHT(CELL(\"filename\",A4),LEN(CELL(\"filename\",A4))-FIND(\"]\",CELL(\"filename\",A4)))","v":"3-6-6"},null,null,null,"つつじサポーター（大正教育活動協力隊）の活用",null,null,null,null,null,null,null,null,null,null,null,null,null,null,null,null,"令和４年４月１日\n保健福祉課（こども・教育）"]
[]
[]
["項目",null,null,null,null,null,null,"内容"]
["事業・業務概要","目的\n（事業の背景を含む）",null,null,null,null,null,"　大阪市及び大正区では、授業中や放課後等に学習支援を行う学力向上支援サポーターや学校図書館の館内環境整備等の補助を行う図書館支援ボランティアなど各種サポート事業を実施しており、サポーター・ボランティアをそれぞれ募集しているが、人材確保が課題となっている。\n　大正区で児童生徒に対する教育的支援や福祉的支援を行うサポート・ボランティアを「つつじサポーター（大正教育活動協力隊）」として、区において広く人材を募集、確保し、その人材を活用することにより区内教育活動を活性化させる。 ",null,null,null,null,null,null,null,null,null,null,null,null,null,null,null,null,null,null,null,null,null,null,null,null,null,"一覧へ戻る"]
[]
[]
[]
[null,"内容",null,null,null,null,null,"各学校や局で行う事業別の募集に加え、区役所の広報力（HP/SNS等）を活用し、広くサポーターやボランティアの募集を行う。\n学校が必要としているサポーターやボランティアを確認したうえ、学校の希望条件を考慮しながら、適宜必要としている学校へつなぐことにより、地域と連携した教育活動の推進、教職員の業務負担の軽減につなげる。\n埋もれた人材を掘り起こすため、HP/SNS等を活用し、サポーターの活動の様子や学校の声などを積極的な発信を行い、様々な知識や技能を持った人の情報の提供を呼びかける。\n※従来型の学校での従事に加え、新型コロナウイルス感染症防止に対応できるリモートでの支援についても、学校のニーズを適切に把握のうえ、募集を行う。"]
[]
[]
[]
[]
[]
[]
[]
[null,"予算額（予算科目）",null,null,null,null,null,"―"]
[null,"事業実施期間（回数）",null,null,null,null,null,"令和４年４月１日～令和５年３月３１日"]
[null,"事業対象者（人数）",null,null,null,null,null,"―"]
["委託関係","契約・入札方法",null,null,null,null,null,"―"]
[null,"募集要項のポイント",null,null,null,null,null,"学力向上支援サポーター（学びサポーター）、発達障がいサポーター、英語力向上ボランティア、音楽活動ボランティア、図書館支援ボランティアなど、大正区の教育活動に協力していただけるサポーター、ボランティアを募集。"]
[]
[]
[null,"仕様書のポイント",null,null,null,null,null,"―"]
[]
[]
[null,"選考委員等選考方式",null,null,null,null,null,"―"]
[]
["スケジュール（実施決裁、入札募集開始、説明会、選考会、事業の実施　等）",null,null,null,null,null,null,null,null,null,null,null,null,null,null,null,null,null,null,null,null,null,null,null,"広報スケジュール",null,null,null,"スケ",null,"作業"]
["（前年度）","1月～3月","次年度に向けて、各学校へ必要としているサポーター・ボランティアの活動情報を確認",null,null,null,null,null,null,null,null,null,null,null,null,null,null,null,null,null,null,null,null,null,null,null,null,null,"〇",null,"〇"]
[]
[]
["4月～\n6月",null,"【随時】応募のあったサポーター・ボランティアを適宜学校へつなぐ。",null,null,null,null,null,null,null,null,null,null,null,null,null,null,null,null,null,null,null,null,null,"【随時】つつじサポーターの募集・活動の様子などの発信（区広報紙・ホームページ・フェイスブック・ツイッター）",null,null,null,"〇",null,"〇"]
[]
[]
["7月～\n9月",null,"【随時】応募のあったサポーター・ボランティアを適宜学校へつなぐ。",null,null,null,null,null,null,null,null,null,null,null,null,null,null,null,null,null,null,null,null,null,null,null,null,null,"〇",null,"〇"]
[]
[]
["10月～\n12月",null,"【随時】応募のあったサポーター・ボランティアを適宜学校へつなぐ。",null,null,null,null,null,null,null,null,null,null,null,null,null,null,null,null,null,null,null,null,null,null,null,null,null,"〇",null,"〇"]
[]
[]
["1月～\n3月",null,"【随時】応募のあったサポーター・ボランティアを適宜学校へつなぐ。",null,null,null,null,null,null,null,null,null,null,null,null,null,null,null,null,null,null,null,null,null,null,null,null,null,"〇",null,"〇"]
[]
[]
["備考"]
[]
["項目",null,null,null,null,null,null,"内容"]
["講座・イベント・会議名",null,null,null,null,null,null,"―"]
["イベント等開催関係","開催日時",null,null,null,null,null,"―"]
[null,"開催場所",null,null,null,null,null,"―"]
[null,"区役所の主催等",null,null,null,null,null,"―"]
[null,"その他主催団体・組織等",null,null,null,null,null,"―"]
[null,"共催団体・組織等",null,null,null,null,null,"―"]
[null,"後援団体・組織等",null,null,null,null,null,"―"]
[null,"目標事業規模",null,null,null,null,null,"―"]
[null,"その他留意事項",null,null,null,null,null,"―"]
[null,"イベント等\n当日タイムテーブル",null,null,null,null,null,"―"]
[]
[]
[]
[]
[null,"挨拶者",null,null,null,null,null,"―"]
[null,"来賓紹介",null,null,null,null,null,"―"]
[null,"祝電紹介の方法",null,null,null,null,null,"―"]
[null,"動員の方法",null,null,null,null,null,"―"]
["その他他課との連携等",null,null,null,null,null,null,"―"]
["前年度実績",null,null,null,null,null,null,"・区役所から学校へつないだ件数：０件（令和３年度）\n・区民意識調査で「つつじサポーター（大正教育活動協力隊）が区内教育活動の活性化に寄与していると感じる」割合：52.1％（令和３年度）\n・地域人材の活用などにより、各校のニーズに合ったサポーター等が配置され、各校の教育活動の活性化に寄与したと回答する学校：配置された学校全校（令和３年度実績なし）"]
["業績目標",null,null,null,"実績",null,null,"区役所から学校へつないだ件数：３件以上",null,null,null,null,null,null,null,null,null,null,null,null,"区役所から学校へつないだ件数：０件\n※応募者２名を学校へつないだが、学校のニーズとマッチしなかった。",null,null,null,null,null,null,null,null,"自己評価"]
[null,null,null,null,null,null,null,null,null,null,null,null,null,null,null,null,null,null,null,null,null,null,null,null,null,null,null,null,null,"×"]
[]
[]
["成果目標",null,null,null,"実績",null,null,"・地域人材の活用などにより、各校のニーズに合ったサポーター等が配置され、各校の教育活動の活性化に寄与したと回答する学校：配置された学校全校",null,null,null,null,null,null,null,null,null,null,null,null,"地域人材の活用などにより、各校のニーズに合ったサポーター等が配置され、各校の教育活動の活性化に寄与したと回答する学校：配置された学校０件",null,null,null,null,null,null,null,null,"―"]
[]
[]
[]
[]
["中期展望",null,null,null,null,null,null,"学校などの教育現場で必要とされている教育活動への支援や補助が行き届き、区内教育活動が活性化された状態。"]
[]
[]
["成果目標が\n中期展望に\n寄与する理由",null,null,null,null,null,null,"各校のニーズに合ったサポーター等を適切につなぐことにより、学校の実情に応じた教育活動の活性化が図られることで、区内全体の教育活動の活性化につながる。"]
[]
[]
[]
[]
["SDGｓゴール",null,null,null,4,null,null,null,{"$f":"+IF(ISERROR(VLOOKUP($E86,[5]SDGｓ!$A$2:$B$18,2,0)),\"\",VLOOKUP($E86,[5]SDGｓ!$A$2:$B$18,2,0))","v":"質の高い教育をみんなに"}]
[null,null,null,null,null,null,null,null,{"$f":"+IF(ISERROR(VLOOKUP($E87,[5]SDGｓ!$A$2:$B$18,2,0)),\"\",VLOOKUP($E87,[5]SDGｓ!$A$2:$B$18,2,0))","v":""}]
[null,null,null,null,null,null,null,null,{"$f":"+IF(ISERROR(VLOOKUP($E88,[5]SDGｓ!$A$2:$B$18,2,0)),\"\",VLOOKUP($E88,[5]SDGｓ!$A$2:$B$18,2,0))","v":""}]
[]
["修正履歴"]

{"sheet":"3-6-7","index":32,"n_rows":90,"n_cols":34,"rows_kept":90,"cut":false,"hidden":false,"merged":[[0,0,0,3],[0,4,0,20],[0,21,0,27],[0,28,0,29],[0,30,0,31],[1,0,2,3],[1,4,2,20],[1,21,2,27],[1,28,2,29],[1,30,2,31],[4,0,4,6],[4,7,4,31],[5,0,19,0],[5,1,8,6],[5,7,8,31],[5,33,7,34],[9,1,16,6],[9,7,16,31],[17,1,17,6],[17,7,17,31],[18,1,18,6],[18,7,18,31],[19,1,19,6],[19,7,19,31],[20,0,27,0],[20,1,20,6],[20,7,20,31],[21,1,23,6],[21,7,23,31],[24,1,26,6],[30,0,32,0],[30,1,32,1],[30,2,32,23],[30,24,32,27],[30,28,32,29],[30,30,32,31],[24,7,26,31],[27,1,27,6],[27,7,27,31],[29,0,29,23],[29,24,29,27],[29,28,29,29],[29,30,29,31],[33,0,35,1],[33,2,35,23],[33,24,35,27],[33,28,35,29],[33,30,35,31],[36,0,38,1],[36,2,38,23],[36,24,38,27],[36,28,38,29],[36,30,38,31],[45,0,46,1],[45,2,46,31],[47,0,47,6],[47,7,47,31],[48,0,48,6],[48,7,48,31],[39,0,41,1],[39,2,41,23],[39,24,41,27],[39,28,41,29],[39,30,41,31],[42,0,44,1],[42,2,44,23],[42,24,44,27],[42,28,44,29],[42,30,44,31],[53,7,53,31],[54,1,54,6],[54,7,54,31],[55,1,55,6],[55,7,55,31],[56,1,56,6],[56,7,56,31],[49,0,65,0],[49,1,49,6],[49,7,49,31],[50,1,50,6],[50,7,50,31],[51,1,51,6],[51,7,51,31],[52,1,52,6],[52,7,52,31],[53,1,53,6],[64,1,64,6],[64,7,64,31],[65,1,65,6],[65,7,65,31],[66,0,66,6],[66,7,66,31],[57,1,61,6],[57,7,61,31],[62,1,62,6],[62,7,62,31],[63,1,63,6],[63,7,63,31],[72,0,76,3],[72,4,76,6],[72,7,76,19],[72,20,76,28],[72,29,76,31],[77,0,79,6],[77,7,79,31],[67,0,67,6],[67,7,67,31],[68,0,71,3],[68,4,71,6],[68,7,71,19],[68,20,71,28],[68,29,68,31],[69,29,71,31],[89,0,89,3],[89,4,89,31],[80,0,83,6],[80,7,83,31],[85,0,87,3],[85,4,85,7],[85,8,85,31],[86,4,86,7],[86,8,86,31],[87,4,87,7],[87,8,87,31]]}
["取組番号",null,null,null,"事業名",null,null,null,null,null,null,null,null,null,null,null,null,null,null,null,null,"作成年月日・担当",null,null,null,null,null,null,"重点",null,"新規"]
["3-1-6\n3-6-7",null,null,null,"就学前（４・５歳児）こどもサポートネット事業（大正区版ネウボラ）",null,null,null,null,null,null,null,null,null,null,null,null,null,null,null,null,"令和４年４月１日\n保健福祉課（こども・教育）",null,null,null,null,null,null,"〇"]
[]
[]
["項目",null,null,null,null,null,null,"内容"]
["事業・業務概要","目的\n（事業の背景を含む）",null,null,null,null,null," 妊娠期から３歳までは、母子手帳の交付にはじまり、各種健診などの母子保健制度により、また、小学生からはこどもサポートネットにより、こどもの健康や生活状況などを把握している。\n 現行制度では４・５歳児の状況把握が他の年齢と比べると不十分となっている。\n この年齢のこどもの状況を把握(全件)することで、抱える課題を早期に発見し、必要な支援につなげる必要がある。\n こうしたことから、妊娠期から中学生までの間、切れ目のない支援をすることで、児童虐待の未然防止を図り、重大虐待ゼロをめざす。",null,null,null,null,null,null,null,null,null,null,null,null,null,null,null,null,null,null,null,null,null,null,null,null,null,"一覧へ戻る"]
[]
[]
[]
[null,"内容",null,null,null,null,null,"１．令和２年度より事業を開始し、４・５歳児の健康状況や生活状況を把握し、スクリーニング会議（ⅰ・ⅱ）を1回開催、情報共有し、支援につなげた。今後の課題としては、会議の開催回数や支援について進捗状況の共有や継続した支援が不十分な点がある。\nそのため、令和４年度はスクリーニング会議ⅱを春～冬にかけて順次調整後開催、保育所・幼稚園への訪問、情報共有等連携を強化図り、支援を継続的に行う体制の構築を行う。【試行期間：R2～R4年度】\n（１）発見の場の設置⇒ 保育所（園）や幼稚園において、スクリーニング会議ⅰを実施。\n（２）発見ツールの導入⇒保育所（園）や幼稚園において全児童生徒を対象にしてスクリーニングシートを作成し、未就園については保健師が家庭訪問し、保健指導と相談並びに記録票を作成し課題発見に活用する。\n（３）情報共有会議の実施⇒次年度就学児童（世帯）についての情報共有を目的に就学予定小学校ごとに実施する。\n\n２．区役所、保育所（園）や幼稚園、地域、支援機関による情報共有および連携を強化しPDCAの実行。\n（１）スクリーニングシートによる課題抽出およびスクリーニング会議ⅱによる支援方針の策定（P）。\n（２）推進員および保健師等具体支援機関による支援の実施（D）。\n（３）スクリーニング会議ⅱによる支援結果の検証（C）。\n（４）課題の再抽出および支援方針の更新（A）。\n\n【情報発信】\n就学前こどもサポートネット事業をはじめ、子育てに関する内容（具体的な相談先など）を\n情報発信するとともに、「大正区版ネウボラ」について広く区民に広報することで、児童虐待に対する意識の醸成をめざす。"]
[]
[]
[]
[]
[]
[]
[]
[null,"予算額（予算科目）",null,null,null,null,null,"7,７33千円(報酬・其他委員報酬（区長）（「重大な児童虐待ゼロ」に向けた区重点）"]
[null,"事業実施期間（回数）",null,null,null,null,null,"　令和4年4月1日～令和5年3月31日"]
[null,"事業対象者（人数）",null,null,null,null,null,"区内4.5歳児"]
["委託関係","契約・入札方法",null,null,null,null,null,"4・5歳児スタートアップ推進員（会計年度任用職員）　公募"]
[null,"募集要項のポイント"]
[]
[]
[null,"仕様書のポイント"]
[]
[]
[null,"選考委員等選考方式"]
[]
["スケジュール（実施決裁、入札募集開始、説明会、選考会、事業の実施　等）",null,null,null,null,null,null,null,null,null,null,null,null,null,null,null,null,null,null,null,null,null,null,null,"広報スケジュール",null,null,null,"スケ",null,"作業"]
["（前年度）","1月～3月","スクリーニング会議の開催\n事前アセスメントの実施　個別支援の実施\n・園へのアンケートを実施し,事業にかかる課題抽出、整理をし来年度実施の準備\n",null,null,null,null,null,null,null,null,null,null,null,null,null,null,null,null,null,null,null,null,null,null,null,null,null,"〇",null,"〇"]
[]
[]
["4月～\n6月",null,"・各園においてスクリーニングシートを作成（随時：スクリーニング会議ⅰ）\n・園を訪問し、情報収集や児童の状況把握（随時）\n・区役所おいてアセスメントを実施・スクリーニング会議ⅱを開催\n・個別支援の実施　",null,null,null,null,null,null,null,null,null,null,null,null,null,null,null,null,null,null,null,null,null,"事業チラシの配付",null,null,null,"〇",null,"〇"]
[]
[]
["7月～\n9月",null,"・各園においてスクリーニングシートを作成（随時：スクリーニング会議ⅰ）\n・園を訪問し、情報収集や児童の状況把握（随時）\n・区役所おいてアセスメントを実施・スクリーニング会議ⅱ開催\n・個別支援の実施　・3年間の事業の総括及び令和５年度以降の本事業の方向性について検討",null,null,null,null,null,null,null,null,null,null,null,null,null,null,null,null,null,null,null,null,null,"ホームページ",null,null,null,"〇",null,"〇"]
[]
[]
["10月～\n12月",null,"・各園においてスクリーニングシートを作成（随時：スクリーニング会議ⅰ）\n・園を訪問し、支援の進捗、情報共有、児童の状況把握（随時）\n・区役所おいてアセスメントを実施・スクリーニング会議ⅱを開催\n・個別支援の実施",null,null,null,null,null,null,null,null,null,null,null,null,null,null,null,null,null,null,null,null,null,"広報紙",null,null,null,"〇",null,"〇"]
[]
[]
["1月～\n3月",null,"・園を訪問し、支援の進捗、情報共有、児童の状況把握（随時）\n・区役所おいてアセスメントを実施・就学小学校ごとの情報共有会議を開催\n・個別支援の実施",null,null,null,null,null,null,null,null,null,null,null,null,null,null,null,null,null,null,null,null,null,null,null,null,null,"〇",null,"〇"]
[]
[]
["備考"]
[]
["項目",null,null,null,null,null,null,"内容"]
["講座・イベント・会議名",null,null,null,null,null,null,"―"]
["イベント等開催関係","開催日時",null,null,null,null,null,"―"]
[null,"開催場所",null,null,null,null,null,"―"]
[null,"区役所の主催等",null,null,null,null,null,"―"]
[null,"その他主催団体・組織等",null,null,null,null,null,"―"]
[null,"共催団体・組織等",null,null,null,null,null,"―"]
[null,"後援団体・組織等",null,null,null,null,null,"―"]
[null,"目標事業規模",null,null,null,null,null,"―"]
[null,"その他留意事項",null,null,null,null,null,"―"]
[null,"イベント等\n当日タイムテーブル",null,null,null,null,null,"―"]
[]
[]
[]
[]
[null,"挨拶者",null,null,null,null,null,"―"]
[null,"来賓紹介",null,null,null,null,null,"―"]
[null,"祝電紹介の方法",null,null,null,null,null,"―"]
[null,"動員の方法",null,null,null,null,null,"―"]
["その他他課との連携等",null,null,null,null,null,null,"保健福祉課（保健活動）及び（生活支援）、窓口サービス課（就学担当）"]
["前年度実績",null,null,null,null,null,null,"\n６月～提出されたスクリーニングシートに基づき区役所での事前アセスメントを実施。\n７月～令和４年３月　1４園、1４４名に対しスクリーニング会議ⅱを1～２回、計１９回開催\n1４４名全員の支援方針を決定し具体支援機関へつなげる。\n支援例として、登園支援、発達相談、検査や療育利用、家庭支援等を行う。\n5歳児、73名を各就学予定小学校に情報共有を行い、継続した支援へつなぐことでしくみの構築を行った"]
["業績目標",null,null,null,"実績",null,null,"スクリーニング会議ⅱを2回、情報共有会議を1回開催する",null,null,null,null,null,null,null,null,null,null,null,null,"区内１６園中、ニーズのあった15園に対し、スクリーニング会議ⅱを28回、情報共有会議を10回開催",null,null,null,null,null,null,null,null,"自己評価"]
[null,null,null,null,null,null,null,null,null,null,null,null,null,null,null,null,null,null,null,null,null,null,null,null,null,null,null,null,null,"◎"]
[]
[]
["成果目標",null,null,null,"実績",null,null,"園ごと、未就園児ごとのスクリーニングにより把握された要支援児童を具体支援機関（園、保健師、小学校等）へつなぐ割合\n100％",null,null,null,null,null,null,null,null,null,null,null,null,"支援児童を具体支援機関（園、保健師、小学校等）へつないだ割合\n100％",null,null,null,null,null,null,null,null,"〇"]
[]
[]
[]
[]
["中期展望",null,null,null,null,null,null,"妊娠期から中学生までのすべてのこどもの健康状態を把握し切れ目のない子育て支援を行う「大正区版ネウボラ」を構築、そのしくみを活用し切れ目のない支援・児童虐待の未然防止を図り、重大虐待ゼロを中期展望とする"]
[]
[]
["成果目標が\n中期展望に\n寄与する理由",null,null,null,null,null,null,"課題を抱える幼児と世帯を必要とする支援につなげ、既存のこどもｻﾎﾟｰﾄﾈｯﾄ事業へ引継ぎ継続した支援が行える体制を構築することで児童虐待のリスクになりうる課題を早期に発見し、早期の支援、継続した支援がおこなえることが中期展望に寄与する。"]
[]
[]
[]
[]
["SDGｓゴール",null,null,null,4,null,null,null,{"$f":"+IF(ISERROR(VLOOKUP($E86,[3]SDGｓ!$A$2:$B$18,2,0)),\"\",VLOOKUP($E86,[3]SDGｓ!$A$2:$B$18,2,0))","v":"質の高い教育をみんなに"}]
[null,null,null,null,5,null,null,null,{"$f":"+IF(ISERROR(VLOOKUP($E87,[3]SDGｓ!$A$2:$B$18,2,0)),\"\",VLOOKUP($E87,[3]SDGｓ!$A$2:$B$18,2,0))","v":"ジェンダー平等を実現しよう"}]
[null,null,null,null,10,null,null,null,{"$f":"+IF(ISERROR(VLOOKUP($E88,[3]SDGｓ!$A$2:$B$18,2,0)),\"\",VLOOKUP($E88,[3]SDGｓ!$A$2:$B$18,2,0))","v":"人や国の不平等をなくそう"}]
[]
["修正履歴"]

{"sheet":"3-6-8","index":33,"n_rows":90,"n_cols":34,"rows_kept":90,"cut":false,"hidden":false,"merged":[[89,0,89,3],[89,4,89,31],[80,0,83,6],[80,7,83,31],[85,0,87,3],[85,4,85,7],[85,8,85,31],[86,4,86,7],[86,8,86,31],[87,4,87,7],[87,8,87,31],[77,0,79,6],[77,7,79,31],[67,0,67,6],[67,7,67,31],[68,0,71,3],[68,4,71,6],[68,7,71,19],[68,20,71,28],[68,29,68,31],[69,29,71,31],[66,0,66,6],[66,7,66,31],[57,1,61,6],[57,7,61,31],[62,1,62,6],[62,7,62,31],[63,1,63,6],[63,7,63,31],[72,0,76,3],[72,4,76,6],[72,7,76,19],[72,20,76,28],[72,29,76,31],[53,7,53,31],[54,1,54,6],[54,7,54,31],[55,1,55,6],[55,7,55,31],[56,1,56,6],[56,7,56,31],[49,0,65,0],[49,1,49,6],[49,7,49,31],[50,1,50,6],[50,7,50,31],[51,1,51,6],[51,7,51,31],[52,1,52,6],[52,7,52,31],[53,1,53,6],[64,1,64,6],[64,7,64,31],[65,1,65,6],[65,7,65,31],[45,0,46,1],[45,2,46,31],[47,0,47,6],[47,7,47,31],[48,0,48,6],[48,7,48,31],[39,0,41,1],[39,2,41,23],[39,24,41,27],[39,28,41,29],[39,30,41,31],[42,0,44,1],[42,2,44,23],[42,24,44,27],[42,28,44,29],[42,30,44,31],[33,0,35,1],[33,2,35,23],[33,24,35,27],[33,28,35,29],[33,30,35,31],[36,0,38,1],[36,2,38,23],[36,24,38,27],[36,28,38,29],[36,30,38,31],[29,0,29,23],[29,24,29,27],[29,28,29,29],[29,30,29,31],[30,0,32,0],[30,1,32,1],[30,2,32,23],[30,24,32,27],[30,28,32,29],[30,30,32,31],[20,0,27,0],[20,1,20,6],[20,7,20,31],[21,1,23,6],[21,7,23,31],[24,1,26,6],[24,7,26,31],[27,1,27,6],[27,7,27,31],[5,33,7,34],[9,1,16,6],[9,7,16,31],[17,1,17,6],[17,7,17,31],[18,1,18,6],[18,7,18,31],[4,0,4,6],[4,7,4,31],[5,0,19,0],[5,1,8,6],[5,7,8,31],[19,1,19,6],[19,7,19,31],[0,0,0,3],[0,4,0,20],[0,21,0,27],[0,28,0,29],[0,30,0,31],[1,4,2,20],[1,21,2,27],[1,28,2,29],[1,30,2,31],[1,0,2,3]]}
["取組番号",null,null,null,"事業名",null,null,null,null,null,null,null,null,null,null,null,null,null,null,null,null,"作成年月日・担当",null,null,null,null,null,null,"重点",null,"新規"]
[{"$f":"RIGHT(CELL(\"filename\",A4),LEN(CELL(\"filename\",A4))-FIND(\"]\",CELL(\"filename\",A4)))","v":"3-6-8"},null,null,null,"基礎学力向上支援事業",null,null,null,null,null,null,null,null,null,null,null,null,null,null,null,null,"令和４年４月１日\n保健福祉課（こども・教育）"]
[]
[]
["項目",null,null,null,null,null,null,"内容"]
["事業・業務概要","目的\n（事業の背景を含む）",null,null,null,null,null,"大正区においては、平成29年度に子育て・教育・青少年健全育成に係る課題に特化した議論を行う場として、区総合教育会議を設置し、これまでの議論において、「基礎学力が低い」、「中学校へ進学しても小学校の基礎学力が身についていない」という意見があった。また、学力経年調査結果において、小学５年生へ進級後、４教科の平均正答率が下がっている傾向が多くみられることから、事業対象者を小学５・６年生とし、基礎学力を向上させることとを目的とする。",null,null,null,null,null,null,null,null,null,null,null,null,null,null,null,null,null,null,null,null,null,null,null,null,null,"一覧へ戻る"]
[]
[]
[]
[null,"内容",null,null,null,null,null,"学力向上に向けた施策については、大阪市教育委員会事務局や第３教育ブロックにおいても実施しているところではあるが、大正区としては、分権型教育行政の観点から、これら施策と重複することなく、区の実情に応じた施策を実施していく必要があると考える。\n令和４年度については、大阪市教育委員会事務局及び第３教育ブロックの学力向上施策にかかる事業内容を踏まえ、令和３年度に引き続き、学校ごとの課題に応じた教材を配布し、その教材に取り組むことで中学校進学までに必要な基礎学力を習得していく。\nまた、各校の取組みについては大阪市教育委員会や第３教育ブロックとも連携のうえ、効果検証を行い、教育行政連絡会等の場において情報共有するとともに今後の教育支援事業につなげる。"]
[]
[]
[]
[]
[]
[]
[]
[null,"予算額（予算科目）",null,null,null,null,null,"【校長経営戦略支援予算】874千円（消耗品費）"]
[null,"事業実施期間（回数）",null,null,null,null,null,"令和４年４月１日～令和５年３月３１日"]
[null,"事業対象者（人数）",null,null,null,null,null,"区内小学５年生・６年生"]
["委託関係","契約・入札方法",null,null,null,null,null,"－"]
[null,"募集要項のポイント",null,null,null,null,null,"－"]
[]
[]
[null,"仕様書のポイント",null,null,null,null,null,"－"]
[]
[]
[null,"選考委員等選考方式",null,null,null,null,null,"－"]
[]
["スケジュール（実施決裁、入札募集開始、説明会、選考会、事業の実施　等）",null,null,null,null,null,null,null,null,null,null,null,null,null,null,null,null,null,null,null,null,null,null,null,"広報スケジュール",null,null,null,"スケ",null,"作業"]
["（前年度）","1月～3月","・次年度の各校の課題に応じた教材について、各校へ調査",null,null,null,null,null,null,null,null,null,null,null,null,null,null,null,null,null,null,null,null,null,null,null,null,null,"〇",null,"〇"]
[]
[]
["4月～\n6月",null,"・教材の購入及び各校へ配布",null,null,null,null,null,null,null,null,null,null,null,null,null,null,null,null,null,null,null,null,null,null,null,null,null,"〇",null,"〇"]
[]
[]
["7月～\n9月",null,"・各校において教材に取り組む",null,null,null,null,null,null,null,null,null,null,null,null,null,null,null,null,null,null,null,null,null,null,null,null,null,"〇",null,"〇"]
[]
[]
["10月～\n12月",null,"・学力経年調査の実施",null,null,null,null,null,null,null,null,null,null,null,null,null,null,null,null,null,null,null,null,null,null,null,null,null,"〇",null,"〇"]
[]
[]
["1月～\n3月",null,"・効果検証、教育行政連絡会での報告",null,null,null,null,null,null,null,null,null,null,null,null,null,null,null,null,null,null,null,null,null,null,null,null,null,"〇",null,"〇"]
[]
[]
["備考"]
[]
["項目",null,null,null,null,null,null,"内容"]
["講座・イベント・会議名",null,null,null,null,null,null,"―"]
["イベント等開催関係","開催日時",null,null,null,null,null,"―"]
[null,"開催場所",null,null,null,null,null,"―"]
[null,"区役所の主催等",null,null,null,null,null,"―"]
[null,"その他主催団体・組織等",null,null,null,null,null,"―"]
[null,"共催団体・組織等",null,null,null,null,null,"―"]
[null,"後援団体・組織等",null,null,null,null,null,"―"]
[null,"目標事業規模",null,null,null,null,null,"―"]
[null,"その他留意事項",null,null,null,null,null,"―"]
[null,"イベント等\n当日タイムテーブル",null,null,null,null,null,"―"]
[]
[]
[]
[]
[null,"挨拶者",null,null,null,null,null,"―"]
[null,"来賓紹介",null,null,null,null,null,"―"]
[null,"祝電紹介の方法",null,null,null,null,null,"―"]
[null,"動員の方法",null,null,null,null,null,"―"]
["その他他課との連携等",null,null,null,null,null,null,"区内小学校と連携して実施。"]
["前年度実績",null,null,null,null,null,null,"各校の課題に応じた教材に取り組む：小学校全校（１０校）\n令和３年度学力経年調査における標準化得点（大阪市平均を100とした大阪市立全校の相対的な得点）の区内５・６年生平均97.175点\n"]
["業績目標",null,null,null,"実績",null,null,"区内全小学校（10校）において、小学５・６年生が教材等に取組む。",null,null,null,null,null,null,null,null,null,null,null,null,"区内全小学校（10校）において、小学５・６年生が教材等に取組んだ。",null,null,null,null,null,null,null,null,"自己評価"]
[null,null,null,null,null,null,null,null,null,null,null,null,null,null,null,null,null,null,null,null,null,null,null,null,null,null,null,null,null,"〇"]
[]
[]
["成果目標",null,null,null,"実績",null,null,"令和４年度学力経年調査における標準化得点（大阪市平均を100とした大阪市立全校の相対的な得点）の区内５・６年生平均を前年度より向上させる。",null,null,null,null,null,null,null,null,null,null,null,null,"令和３年度学力経年調査における標準化得点（大阪市平均を100とした大阪市立全校の相対的な得点）の区内５・６年生平均97.175点であり、令和４年度は平均95.195であった。",null,null,null,null,null,null,null,null,"△"]
[]
[]
[]
[]
["中期展望",null,null,null,null,null,null,"各校の課題に応じた教材に取組むことで、苦手や課題を克服し、基礎学力を身につけることで、学習意欲の向上を図り、基礎学力の向上を図る。"]
[]
[]
["成果目標が\n中期展望に\n寄与する理由",null,null,null,null,null,null,"学力経年調査の標準化得点の区内平均が向上することにより、取組みの効果を児童が実感することで、日々の学習においてやる気やモチベーションが高まるとともに、自ら学ぶ習慣が身に付くことから学力の向上が期待できる。"]
[]
[]
[]
[]
["SDGｓゴール",null,null,null,4,null,null,null,{"$f":"+IF(ISERROR(VLOOKUP($E86,[5]SDGｓ!$A$2:$B$18,2,0)),\"\",VLOOKUP($E86,[5]SDGｓ!$A$2:$B$18,2,0))","v":"質の高い教育をみんなに"}]
[null,null,null,null,null,null,null,null,{"$f":"+IF(ISERROR(VLOOKUP($E87,[5]SDGｓ!$A$2:$B$18,2,0)),\"\",VLOOKUP($E87,[5]SDGｓ!$A$2:$B$18,2,0))","v":""}]
[null,null,null,null,null,null,null,null,{"$f":"+IF(ISERROR(VLOOKUP($E88,[5]SDGｓ!$A$2:$B$18,2,0)),\"\",VLOOKUP($E88,[5]SDGｓ!$A$2:$B$18,2,0))","v":""}]
[]
["修正履歴"]

{"sheet":"1-1-12","index":34,"n_rows":90,"n_cols":34,"rows_kept":90,"cut":false,"hidden":true,"merged":[[89,0,89,3],[89,4,89,31],[80,0,83,6],[80,7,83,31],[85,0,87,3],[85,4,85,7],[85,8,85,31],[86,4,86,7],[86,8,86,31],[87,4,87,7],[87,8,87,31],[77,0,79,6],[77,7,79,31],[67,0,67,6],[67,7,67,31],[68,0,71,3],[68,4,71,6],[68,7,71,19],[68,20,71,28],[68,29,68,31],[69,29,71,31],[66,0,66,6],[66,7,66,31],[57,1,61,6],[57,7,61,31],[62,1,62,6],[62,7,62,31],[63,1,63,6],[63,7,63,31],[72,0,76,3],[72,4,76,6],[72,7,76,19],[72,20,76,28],[72,29,76,31],[53,7,53,31],[54,1,54,6],[54,7,54,31],[55,1,55,6],[55,7,55,31],[56,1,56,6],[56,7,56,31],[49,0,65,0],[49,1,49,6],[49,7,49,31],[50,1,50,6],[50,7,50,31],[51,1,51,6],[51,7,51,31],[52,1,52,6],[52,7,52,31],[53,1,53,6],[64,1,64,6],[64,7,64,31],[65,1,65,6],[65,7,65,31],[45,0,46,1],[45,2,46,31],[47,0,47,6],[47,7,47,31],[48,0,48,6],[48,7,48,31],[39,0,41,1],[39,2,41,23],[39,24,41,27],[39,28,41,29],[39,30,41,31],[42,0,44,1],[42,2,44,23],[42,24,44,27],[42,28,44,29],[42,30,44,31],[33,0,35,1],[33,2,35,23],[33,24,35,27],[33,28,35,29],[33,30,35,31],[36,0,38,1],[36,2,38,23],[36,24,38,27],[36,28,38,29],[36,30,38,31],[29,0,29,23],[29,24,29,27],[29,28,29,29],[29,30,29,31],[30,0,32,0],[30,1,32,1],[30,2,32,23],[30,24,32,27],[30,28,32,29],[30,30,32,31],[20,0,27,0],[20,1,20,6],[20,7,20,31],[21,1,23,6],[21,7,23,31],[24,1,26,6],[24,7,26,31],[27,1,27,6],[27,7,27,31],[5,33,7,34],[9,1,16,6],[9,7,16,31],[17,1,17,6],[17,7,17,31],[18,1,18,6],[18,7,18,31],[2,0,2,3],[3,0,3,3],[4,0,4,6],[4,7,4,31],[5,0,19,0],[5,1,8,6],[5,7,8,31],[19,1,19,6],[19,7,19,31],[0,0,0,3],[0,4,0,20],[0,21,0,27],[0,28,0,29],[0,30,0,31],[1,0,1,3],[1,4,2,20],[1,21,2,27],[1,28,2,29],[1,30,2,31]]}
["取組番号",null,null,null,"事業名",null,null,null,null,null,null,null,null,null,null,null,null,null,null,null,null,"作成年月日・担当",null,null,null,null,null,null,"重点",null,"新規"]
["保福7",null,null,null,"福祉課題の解決に向けた地域による自律的な話し合いへの支援\n小学校区福祉委員会（仮称）の設置及び運営支援",null,null,null,null,null,null,null,null,null,null,null,null,null,null,null,null,"令和3年8月1日\n保健福祉課（福祉）"]
["令和３年度取組番号"]
["1-1-12"]
["項目",null,null,null,null,null,null,"内容"]
["事業・業務概要","目的\n（事業の背景を含む）",null,null,null,null,null,"地域団体等による福祉課題の解決に向けた自律的な話し合いの場を設けるために必要な支援を行うことで、大正区地域福祉ビジョンがめざす「だれもが自分らしく安心して暮らし続けられる地域づくり」の推進に寄与する。",null,null,null,null,null,null,null,null,null,null,null,null,null,null,null,null,null,null,null,null,null,null,null,null,null,"一覧へ戻る"]
[]
[]
[]
[null,"内容",null,null,null,null,null,"大正区役所、大正区社会福祉協議会、関係機関と連携し、地域団体等による自律的な話し合いの場を設けるために必要な支援を行う。\n「区政会議」をはじめとする会議体への報告等に必要な支援を行う。\n・地域への意向調査\n・関係部署・関係機関等との連絡調整\n・資料準備・作成\n・話し合いへの参加（福祉Ｇ、区社協、関係部署・機関等）\n・その他必要な支援"]
[]
[]
[]
[]
[]
[]
[]
[null,"予算額（予算科目）",null,null,null,null,null,"－"]
[null,"事業実施期間（回数）",null,null,null,null,null,"令和4年4月1日～令和5年3月31日"]
[null,"事業対象者（人数）",null,null,null,null,null,"地域団体など"]
["委託関係","契約・入札方法",null,null,null,null,null,"－"]
[null,"募集要項のポイント",null,null,null,null,null,"－"]
[]
[]
[null,"仕様書のポイント",null,null,null,null,null,"－"]
[]
[]
[null,"選考委員等選考方式",null,null,null,null,null,"－"]
[]
["スケジュール（実施決裁、入札募集開始、説明会、選考会、事業の実施　等）",null,null,null,null,null,null,null,null,null,null,null,null,null,null,null,null,null,null,null,null,null,null,null,"広報スケジュール",null,null,null,"スケ",null,"作業"]
["（前年度）","1月～3月","【随時】\n・地域への意向確認、関係部署・関係機関等との連絡調整、資料準備・作成、話し合いへの参加、その他必要な支援"]
[]
[]
["4月～\n6月",null,"【随時】\n・地域への意向確認、関係部署・関係機関等との連絡調整、資料準備・作成、話し合いへの参加、その他必要な支援"]
[]
[]
["7月～\n9月",null,"【随時】\n・地域への意向確認、関係部署・関係機関等との連絡調整、資料準備・作成、話し合いへの参加、その他必要な支援"]
[]
[]
["10月～\n12月",null,"【随時】\n・地域への意向確認、関係部署・関係機関等との連絡調整、資料準備・作成、話し合いへの参加、その他必要な支援"]
[]
[]
["1月～\n3月",null,"【随時】\n・地域への意向確認、関係部署・関係機関等との連絡調整、資料準備・作成、話し合いへの参加、その他必要な支援"]
[]
[]
["備考"]
[]
["項目",null,null,null,null,null,null,"内容"]
["講座・イベント・会議名"]
["イベント等開催関係","開催日時",null,null,null,null,null,"―"]
[null,"開催場所",null,null,null,null,null,"―"]
[null,"区役所の主催等",null,null,null,null,null,"―"]
[null,"その他主催団体・組織等",null,null,null,null,null,"地域団体"]
[null,"共催団体・組織等",null,null,null,null,null,"－"]
[null,"後援団体・組織等",null,null,null,null,null,"大正区役所、大正区社会福祉協議会、関係部署、関係機関"]
[null,"目標事業規模",null,null,null,null,null,"【地域住民】地域活動協議会"]
[null,"その他留意事項",null,null,null,null,null,"－"]
[null,"イベント等\n当日タイムテーブル",null,null,null,null,null,"―"]
[]
[]
[]
[]
[null,"挨拶者",null,null,null,null,null,"－"]
[null,"来賓紹介",null,null,null,null,null,"－"]
[null,"祝電紹介の方法",null,null,null,null,null,"－"]
[null,"動員の方法",null,null,null,null,null,"－"]
["その他他課との連携等",null,null,null,null,null,null,"―"]
["前年度実績",null,null,null,null,null,null,"なし"]
["業績目標",null,null,null,"実績",null,null,"地域団体等による自律的な地域福祉課題の解決に向けた話し合いの開催回数：年10回",null,null,null,null,null,null,null,null,null,null,null,null,null,null,null,null,null,null,null,null,null,"自己評価"]
[]
[]
[]
["成果目標",null,null,null,"実績",null,null,"区の支援が地域福祉課題の解決に役に立っていると感じる参加者の割合：60％以上。"]
[]
[]
[]
[]
["中期展望",null,null,null,null,null,null,"大正区地域福祉ビジョンがめざす「だれもが自分らしく安心して暮らし続けられる地域づくり」が充実・強化されている状態\n"]
[]
[]
["成果目標が\n中期展望に\n寄与する理由",null,null,null,null,null,null,"区の支援が地域福祉課題の解決に役に立っていると感じている参加者の割合が向上していることは、地域団体等による話し合いが地域福祉課題の解決に資することにより「だれもが自分らしく安心して暮らし続けられる地域づくり」の充実・強化にに寄与していると考えられるため\n"]
[]
[]
[]
[]
["SDGｓゴール",null,null,null,3,null,null,null,{"$f":"+IF(ISERROR(VLOOKUP($E86,[8]SDGｓ!$A$2:$B$18,2,0)),\"\",VLOOKUP($E86,[8]SDGｓ!$A$2:$B$18,2,0))","v":"すべての人に健康と福祉を"}]
[null,null,null,null,null,null,null,null,{"$f":"+IF(ISERROR(VLOOKUP($E87,[8]SDGｓ!$A$2:$B$18,2,0)),\"\",VLOOKUP($E87,[8]SDGｓ!$A$2:$B$18,2,0))","v":""}]
[null,null,null,null,null,null,null,null,{"$f":"+IF(ISERROR(VLOOKUP($E88,[8]SDGｓ!$A$2:$B$18,2,0)),\"\",VLOOKUP($E88,[8]SDGｓ!$A$2:$B$18,2,0))","v":""}]
[]
["修正履歴"]